{"text_format":"1","workbook":"xlsx","n_sheets":4,"sheets":["Cerere de Finantare","Anexa 1 HG_907","Anexa 2 HG_907","Anexa 3 HG_907"],"not_rendered":{"charts":0,"images":1,"macros":1,"external_links":0,"defined_names":2,"comments":0,"pivot_tables":0},"unopened":[],"bounds":{"document_bytes":16777216,"sheet_cells":100000,"rows_first":2000,"rows_last":500,"rows_between":2000,"halvings":0,"cell_chars":16384,"cell_head_chars":4096},"cells_cut":0,"cells_raw":0,"read":"whole","date_system":"1900"}

{"sheet":"Cerere de Finantare","index":0,"n_rows":1244,"n_cols":62,"rows_kept":1244,"cut":false,"hidden":false,"merged":[[977,0,977,41],[971,2,971,12],[971,13,971,16],[971,17,971,20],[971,21,971,24],[971,25,971,28],[971,29,971,33],[971,34,971,37],[971,38,971,41],[969,0,971,1],[976,0,976,1],[976,2,976,12],[976,13,976,16],[976,17,976,20],[976,21,976,24],[976,25,976,28],[976,29,976,33],[976,34,976,37],[976,38,976,41],[972,2,972,12],[972,13,972,16],[972,17,972,20],[972,21,972,24],[972,25,972,28],[972,29,972,33],[972,34,972,37],[972,38,972,41],[970,2,970,12],[970,13,970,16],[970,17,970,20],[970,21,970,24],[970,25,970,28],[975,0,975,1],[975,2,975,12],[975,13,975,16],[975,17,975,20],[975,21,975,24],[975,25,975,28],[975,29,975,33],[975,34,975,37],[975,38,975,41],[969,2,969,41],[972,0,972,1],[973,0,973,1],[973,2,973,12],[973,13,973,16],[973,17,973,20],[973,21,973,24],[973,25,973,28],[973,29,973,33],[973,34,973,37],[973,38,973,41],[974,0,974,1],[974,2,974,12],[974,13,974,16],[974,17,974,20],[974,21,974,24],[974,25,974,28],[974,29,974,33],[974,34,974,37],[974,38,974,41],[970,29,970,33],[970,34,970,37],[970,38,970,41],[964,0,964,41],[965,13,965,41],[967,0,967,12],[967,13,967,24],[967,25,967,37],[968,0,968,1],[968,2,968,12],[968,13,968,16],[968,17,968,20],[968,21,968,24],[968,25,968,28],[968,29,968,33],[968,34,968,37],[968,38,968,41],[962,2,962,12],[962,13,962,16],[962,17,962,20],[962,21,962,24],[962,25,962,28],[962,29,962,33],[962,34,962,37],[962,38,962,41],[962,0,962,1],[965,0,965,1],[963,0,963,41],[965,2,965,12],[966,0,966,1],[966,2,966,12],[966,13,966,16],[966,17,966,20],[966,21,966,24],[966,25,966,28],[961,0,961,1],[961,2,961,12],[961,13,961,16],[961,17,961,20],[961,21,961,24],[961,25,961,28],[961,29,961,33],[961,34,961,37],[961,38,961,41],[960,0,960,1],[960,2,960,12],[960,13,960,16],[960,17,960,20],[960,21,960,24],[960,25,960,28],[960,29,960,33],[960,34,960,37],[960,38,960,41],[958,0,958,1],[949,2,949,12],[949,13,949,16],[949,17,949,20],[949,21,949,24],[949,25,949,28],[949,29,949,33],[949,34,949,37],[949,38,949,41],[951,2,951,12],[951,13,951,16],[951,17,951,20],[958,2,958,12],[958,13,958,41],[959,0,959,1],[959,2,959,12],[959,13,959,16],[959,17,959,20],[959,21,959,24],[959,25,959,28],[959,29,959,33],[959,34,959,37],[959,38,959,41],[955,21,955,24],[955,25,955,28],[955,29,955,33],[955,34,955,37],[955,38,955,41],[948,25,948,37],[949,0,949,1],[950,0,951,1],[950,2,950,41],[952,0,952,1],[952,2,952,12],[952,13,952,16],[952,17,952,20],[952,21,952,24],[952,25,952,28],[952,29,952,33],[952,34,952,37],[952,38,952,41],[953,0,953,1],[954,0,954,1],[955,0,955,1],[957,0,957,41],[953,25,953,28],[953,29,953,33],[953,34,953,37],[953,38,953,41],[954,2,954,12],[954,13,954,16],[954,17,954,20],[954,21,954,24],[954,25,954,28],[954,29,954,33],[954,34,954,37],[954,38,954,41],[955,2,955,12],[955,13,955,16],[955,17,955,20],[966,29,966,33],[966,34,966,37],[966,38,966,41],[956,0,956,41],[951,21,951,24],[951,25,951,28],[951,29,951,33],[951,34,951,37],[951,38,951,41],[953,2,953,12],[953,13,953,16],[953,17,953,20],[953,21,953,24],[943,2,943,12],[943,13,943,16],[943,17,943,20],[943,21,943,24],[943,25,943,28],[943,29,943,33],[943,34,943,37],[943,38,943,41],[945,0,945,41],[946,0,946,1],[946,2,946,12],[946,13,946,41],[947,0,947,1],[947,2,947,12],[947,13,947,16],[947,17,947,20],[947,21,947,24],[947,25,947,28],[947,29,947,33],[947,34,947,37],[947,38,947,41],[948,0,948,12],[948,13,948,24],[935,2,935,12],[935,13,935,16],[935,17,935,20],[935,21,935,24],[935,25,935,28],[935,29,935,33],[935,34,935,37],[935,38,935,41],[940,2,940,12],[940,13,940,16],[940,17,940,20],[940,21,940,24],[940,25,940,28],[940,29,940,33],[940,34,940,37],[940,38,940,41],[944,13,944,16],[944,17,944,20],[944,21,944,24],[944,25,944,28],[944,29,944,33],[944,34,944,37],[944,38,944,41],[942,38,942,41],[944,2,944,12],[936,25,936,28],[936,29,936,33],[936,34,936,37],[914,0,914,59],[921,2,921,12],[921,13,921,16],[921,17,921,20],[921,21,921,24],[921,25,921,28],[921,29,921,33],[921,34,921,37],[921,38,921,41],[924,2,924,12],[924,13,924,16],[924,17,924,20],[924,21,924,24],[924,25,924,28],[924,29,924,33],[924,34,924,37],[924,38,924,41],[917,29,917,33],[917,34,917,37],[917,38,917,41],[918,0,918,1],[918,2,918,41],[919,0,929,1],[919,2,919,12],[919,13,919,16],[919,17,919,20],[919,21,919,24],[919,25,919,28],[919,29,919,33],[919,34,919,37],[919,38,919,41],[920,2,920,12],[937,0,944,1],[937,2,937,41],[938,2,938,12],[938,13,938,16],[938,17,938,20],[938,21,938,24],[938,25,938,28],[938,29,938,33],[938,34,938,37],[938,38,938,41],[939,2,939,12],[939,13,939,16],[939,17,939,20],[939,21,939,24],[939,25,939,28],[939,29,939,33],[939,34,939,37],[939,38,939,41],[941,2,941,41],[942,2,942,12],[942,13,942,16],[942,17,942,20],[942,21,942,24],[942,25,942,28],[942,29,942,33],[942,34,942,37],[931,0,936,1],[931,2,931,41],[932,2,932,12],[932,13,932,16],[932,17,932,20],[932,21,932,24],[932,25,932,28],[932,29,932,33],[932,34,932,37],[932,38,932,41],[933,2,933,12],[933,13,933,16],[933,17,933,20],[933,21,933,24],[933,25,933,28],[933,29,933,33],[933,34,933,37],[933,38,933,41],[934,2,934,12],[934,13,934,16],[934,17,934,20],[934,21,934,24],[934,25,934,28],[934,29,934,33],[934,34,934,37],[934,38,934,41],[936,2,936,12],[936,13,936,16],[936,17,936,20],[936,21,936,24],[936,38,936,41],[929,2,929,12],[929,13,929,16],[929,17,929,20],[929,21,929,24],[929,25,929,28],[929,29,929,33],[929,34,929,37],[929,38,929,41],[928,17,928,20],[928,21,928,24],[928,25,928,28],[928,29,928,33],[928,34,928,37],[928,38,928,41],[928,2,928,12],[928,13,928,16],[930,0,930,1],[930,2,930,41],[923,17,923,20],[923,21,923,24],[923,25,923,28],[923,29,923,33],[923,34,923,37],[923,38,923,41],[925,2,925,12],[925,13,925,16],[925,17,925,20],[925,21,925,24],[925,25,925,28],[925,29,925,33],[925,34,925,37],[925,38,925,41],[926,2,926,41],[927,2,927,12],[927,13,927,16],[927,17,927,20],[927,21,927,24],[927,25,927,28],[927,29,927,33],[927,34,927,37],[927,38,927,41],[272,35,272,43],[272,0,272,34],[271,35,271,43],[271,0,271,34],[270,35,270,43],[270,0,270,34],[269,35,269,43],[269,0,269,34],[795,0,795,3],[795,4,795,41],[795,42,795,50],[795,51,795,60],[797,0,797,3],[797,4,797,41],[797,42,797,50],[797,51,797,60],[798,0,798,3],[794,0,794,3],[794,4,794,41],[794,42,794,50],[794,51,794,60],[793,0,793,3],[772,0,772,3],[780,51,780,60],[785,0,785,3],[785,4,785,41],[785,42,785,50],[785,51,785,60],[787,0,787,3],[787,4,787,41],[787,42,787,50],[787,51,787,60],[1108,0,1108,60],[1150,5,1150,60],[1151,5,1151,60],[1152,5,1152,60],[1128,31,1128,59],[805,4,805,60],[779,0,779,60],[714,0,714,43],[889,0,889,41],[889,42,913,61],[880,0,880,41],[881,0,881,41],[880,42,887,61],[888,0,888,60],[915,0,915,41],[916,0,916,1],[916,2,916,12],[916,13,916,41],[917,0,917,1],[917,2,917,12],[917,13,917,16],[917,17,917,20],[1103,0,1103,6],[920,17,920,20],[920,21,920,24],[920,25,920,28],[920,29,920,33],[920,34,920,37],[920,38,920,41],[922,2,922,41],[923,2,923,12],[923,13,923,16],[1130,3,1131,60],[1135,3,1135,60],[1154,0,1154,2],[1156,1,1156,31],[1157,1,1157,31],[1156,41,1156,52],[1157,41,1157,50],[1149,5,1149,60],[1148,5,1148,60],[1153,5,1153,60],[1147,5,1147,60],[1233,21,1233,59],[1241,13,1241,34],[807,4,807,50],[809,4,809,50],[811,4,811,50],[812,4,812,50],[815,4,815,50],[817,4,817,50],[819,4,819,50],[820,4,820,50],[1231,12,1231,59],[1229,12,1229,59],[1109,0,1116,60],[1117,0,1118,60],[1106,0,1106,6],[1106,7,1106,25],[1106,26,1106,32],[1106,33,1106,39],[1106,40,1106,46],[1106,47,1106,53],[1106,54,1106,60],[1103,7,1103,25],[1103,26,1103,32],[1103,33,1103,39],[1103,40,1103,46],[1103,47,1103,53],[1103,54,1103,60],[1104,0,1104,6],[1104,7,1104,25],[1104,26,1104,32],[1104,33,1104,39],[1104,40,1104,46],[1104,47,1104,53],[1104,54,1104,60],[1105,0,1105,6],[1105,7,1105,25],[1105,26,1105,32],[1105,33,1105,39],[1105,40,1105,46],[1105,47,1105,53],[1105,54,1105,60],[1100,0,1100,6],[1100,7,1100,25],[1100,26,1100,32],[1100,33,1100,39],[1100,40,1100,46],[1100,47,1100,53],[1100,54,1100,60],[1101,0,1101,6],[1101,7,1101,25],[1101,26,1101,32],[1101,33,1101,39],[1101,40,1101,46],[1101,47,1101,53],[1101,54,1101,60],[1102,0,1102,6],[1102,7,1102,25],[1102,26,1102,32],[1102,33,1102,39],[1102,40,1102,46],[1102,47,1102,53],[1102,54,1102,60],[1097,0,1097,6],[1097,7,1097,25],[1097,26,1097,32],[1097,33,1097,39],[1097,40,1097,46],[1097,47,1097,53],[1097,54,1097,60],[1098,0,1098,6],[1098,7,1098,25],[1098,26,1098,32],[1098,33,1098,39],[1098,40,1098,46],[1098,47,1098,53],[1098,54,1098,60],[1099,0,1099,6],[1099,7,1099,25],[1099,26,1099,32],[1099,33,1099,39],[1099,40,1099,46],[1099,47,1099,53],[1099,54,1099,60],[1094,0,1094,6],[1094,7,1094,25],[1094,26,1094,32],[1094,33,1094,39],[1094,40,1094,46],[1094,47,1094,53],[1094,54,1094,60],[1095,0,1095,6],[1095,7,1095,25],[1095,26,1095,32],[1095,33,1095,39],[1095,40,1095,46],[1095,47,1095,53],[1095,54,1095,60],[1096,0,1096,6],[1096,7,1096,25],[1096,26,1096,32],[1096,33,1096,39],[1096,40,1096,46],[1096,47,1096,53],[1096,54,1096,60],[1091,0,1091,6],[1091,7,1091,25],[1091,26,1091,32],[1091,33,1091,39],[1091,40,1091,46],[1091,47,1091,53],[1091,54,1091,60],[1092,0,1092,6],[1092,7,1092,25],[1092,26,1092,32],[1092,33,1092,39],[1092,40,1092,46],[1092,47,1092,53],[1092,54,1092,60],[1093,0,1093,6],[1093,7,1093,25],[1093,26,1093,32],[1093,33,1093,39],[1093,40,1093,46],[1093,47,1093,53],[1093,54,1093,60],[1088,0,1088,6],[1088,7,1088,25],[1088,26,1088,32],[1088,33,1088,39],[1088,40,1088,46],[1088,47,1088,53],[1088,54,1088,60],[1089,0,1089,6],[1089,7,1089,25],[1089,26,1089,32],[1089,33,1089,39],[1089,40,1089,46],[1089,47,1089,53],[1089,54,1089,60],[1090,0,1090,6],[1090,7,1090,25],[1090,26,1090,32],[1090,33,1090,39],[1090,40,1090,46],[1090,47,1090,53],[1090,54,1090,60],[1085,0,1085,6],[1085,7,1085,25],[1085,26,1085,32],[1085,33,1085,39],[1085,40,1085,46],[1085,47,1085,53],[1085,54,1085,60],[1086,0,1086,6],[1086,7,1086,25],[1086,26,1086,32],[1086,33,1086,39],[1086,40,1086,46],[1086,47,1086,53],[1086,54,1086,60],[1087,0,1087,6],[1087,7,1087,25],[1087,26,1087,32],[1087,33,1087,39],[1087,40,1087,46],[1087,47,1087,53],[1087,54,1087,60],[1082,0,1082,6],[1082,7,1082,25],[1082,26,1082,32],[1082,33,1082,39],[1082,40,1082,46],[1082,47,1082,53],[1082,54,1082,60],[1083,0,1083,6],[1083,7,1083,25],[1083,26,1083,32],[1083,33,1083,39],[1083,40,1083,46],[1083,47,1083,53],[1083,54,1083,60],[1084,0,1084,6],[1084,7,1084,25],[1084,26,1084,32],[1084,33,1084,39],[1084,40,1084,46],[1084,47,1084,53],[1084,54,1084,60],[1077,0,1077,60],[1079,0,1079,6],[1079,7,1079,25],[1079,26,1079,32],[1079,33,1079,39],[1079,40,1079,46],[1079,47,1079,53],[1079,54,1079,60],[1080,0,1080,6],[1080,7,1080,25],[1080,26,1080,32],[1080,33,1080,39],[1080,40,1080,46],[1080,47,1080,53],[1080,54,1080,60],[1081,0,1081,6],[1081,7,1081,25],[1081,26,1081,32],[1081,33,1081,39],[1081,40,1081,46],[1081,47,1081,53],[1081,54,1081,60],[1071,22,1071,25],[1071,7,1071,21],[1072,7,1072,21],[1072,22,1072,25],[1073,7,1073,21],[1073,22,1073,25],[1074,7,1074,21],[1074,22,1074,25],[1070,0,1074,6],[1070,33,1074,39],[1070,40,1074,46],[1070,47,1074,53],[1070,54,1074,60],[1070,26,1074,32],[1075,0,1075,6],[1075,7,1075,25],[1075,26,1075,32],[1075,33,1075,39],[1075,40,1075,46],[1075,47,1075,53],[1075,54,1075,60],[1070,7,1070,25],[1067,0,1067,6],[1067,7,1067,25],[1067,26,1067,32],[1067,33,1067,39],[1067,40,1067,46],[1067,47,1067,53],[1067,54,1067,60],[1068,0,1068,6],[1068,7,1068,25],[1068,26,1068,32],[1068,33,1068,39],[1068,40,1068,46],[1068,47,1068,53],[1068,54,1068,60],[1069,0,1069,6],[1069,7,1069,25],[1069,26,1069,32],[1069,33,1069,39],[1069,40,1069,46],[1069,47,1069,53],[1069,54,1069,60],[1065,0,1065,6],[1065,7,1065,25],[1065,26,1065,32],[1065,33,1065,39],[1065,40,1065,46],[1065,47,1065,53],[1065,54,1065,60],[1066,0,1066,6],[1066,7,1066,25],[1066,26,1066,32],[1066,33,1066,39],[1066,40,1066,46],[1066,47,1066,53],[1066,54,1066,60],[1062,0,1062,6],[1062,7,1062,25],[1062,26,1062,32],[1062,33,1062,39],[1062,40,1062,46],[1062,47,1062,53],[1062,54,1062,60],[1063,0,1063,6],[1063,7,1063,25],[1063,26,1063,32],[1063,33,1063,39],[1063,40,1063,46],[1063,47,1063,53],[1063,54,1063,60],[1064,0,1064,6],[1064,7,1064,25],[1064,26,1064,32],[1064,33,1064,39],[1064,40,1064,46],[1064,47,1064,53],[1064,54,1064,60],[1059,0,1059,6],[1059,7,1059,25],[1059,26,1059,32],[1059,33,1059,39],[1059,40,1059,46],[1059,47,1059,53],[1059,54,1059,60],[1060,0,1060,6],[1060,7,1060,25],[1060,26,1060,32],[1060,33,1060,39],[1060,40,1060,46],[1060,47,1060,53],[1060,54,1060,60],[1061,0,1061,6],[1061,7,1061,25],[1061,26,1061,32],[1061,33,1061,39],[1061,40,1061,46],[1061,47,1061,53],[1061,54,1061,60],[1056,0,1056,6],[1056,7,1056,25],[1056,26,1056,32],[1056,33,1056,39],[1056,40,1056,46],[1056,47,1056,53],[1056,54,1056,60],[1057,0,1057,6],[1057,7,1057,25],[1057,26,1057,32],[1057,33,1057,39],[1057,40,1057,46],[1057,47,1057,53],[1057,54,1057,60],[1058,0,1058,6],[1058,7,1058,25],[1058,26,1058,32],[1058,33,1058,39],[1058,40,1058,46],[1058,47,1058,53],[1058,54,1058,60],[1053,0,1053,6],[1053,7,1053,25],[1053,26,1053,32],[1053,33,1053,39],[1053,40,1053,46],[1053,47,1053,53],[1053,54,1053,60],[1054,0,1054,6],[1054,7,1054,25],[1054,26,1054,32],[1054,33,1054,39],[1054,40,1054,46],[1054,47,1054,53],[1054,54,1054,60],[1055,0,1055,6],[1055,7,1055,25],[1055,26,1055,32],[1055,33,1055,39],[1055,40,1055,46],[1055,47,1055,53],[1055,54,1055,60],[1050,0,1050,6],[1050,7,1050,25],[1050,26,1050,32],[1050,33,1050,39],[1050,40,1050,46],[1050,47,1050,53],[1050,54,1050,60],[1051,0,1051,6],[1051,7,1051,25],[1051,26,1051,32],[1051,33,1051,39],[1051,40,1051,46],[1051,47,1051,53],[1051,54,1051,60],[1052,0,1052,6],[1052,7,1052,25],[1052,26,1052,32],[1052,33,1052,39],[1052,40,1052,46],[1052,47,1052,53],[1052,54,1052,60],[1047,0,1047,6],[1047,7,1047,25],[1047,26,1047,32],[1047,33,1047,39],[1047,40,1047,46],[1047,47,1047,53],[1047,54,1047,60],[1048,0,1048,6],[1048,7,1048,25],[1048,26,1048,32],[1048,33,1048,39],[1048,40,1048,46],[1048,47,1048,53],[1048,54,1048,60],[1049,0,1049,6],[1049,7,1049,25],[1049,26,1049,32],[1049,33,1049,39],[1049,40,1049,46],[1049,47,1049,53],[1049,54,1049,60],[1045,0,1045,6],[1045,7,1045,25],[1045,26,1045,32],[1045,33,1045,39],[1045,40,1045,46],[1045,47,1045,53],[1045,54,1045,60],[1046,0,1046,6],[1046,7,1046,25],[1046,26,1046,32],[1046,33,1046,39],[1046,40,1046,46],[1046,47,1046,53],[1046,54,1046,60],[1042,0,1042,6],[1042,7,1042,25],[1042,26,1042,32],[1042,33,1042,39],[1042,40,1042,46],[1042,47,1042,53],[1042,54,1042,60],[1043,0,1043,6],[1043,7,1043,25],[1043,26,1043,32],[1043,33,1043,39],[1043,40,1043,46],[1043,47,1043,53],[1043,54,1043,60],[1044,0,1044,6],[1044,7,1044,25],[1044,26,1044,32],[1044,33,1044,39],[1044,40,1044,46],[1044,47,1044,53],[1044,54,1044,60],[1039,0,1039,6],[1039,7,1039,25],[1039,26,1039,32],[1039,33,1039,39],[1039,40,1039,46],[1039,47,1039,53],[1039,54,1039,60],[1040,0,1040,6],[1040,7,1040,25],[1040,26,1040,32],[1040,33,1040,39],[1040,40,1040,46],[1040,47,1040,53],[1040,54,1040,60],[1041,0,1041,6],[1041,7,1041,25],[1041,26,1041,32],[1041,33,1041,39],[1041,40,1041,46],[1041,47,1041,53],[1041,54,1041,60],[1036,0,1036,6],[1036,7,1036,25],[1036,26,1036,32],[1036,33,1036,39],[1036,40,1036,46],[1036,47,1036,53],[1036,54,1036,60],[1037,0,1037,6],[1037,7,1037,25],[1037,26,1037,32],[1037,33,1037,39],[1037,40,1037,46],[1037,47,1037,53],[1037,54,1037,60],[1038,0,1038,6],[1038,7,1038,25],[1038,26,1038,32],[1038,33,1038,39],[1038,40,1038,46],[1038,47,1038,53],[1038,54,1038,60],[1032,47,1032,53],[1032,54,1032,60],[1033,0,1033,6],[1033,7,1033,25],[1033,26,1033,32],[1033,33,1033,39],[1033,40,1033,46],[1033,47,1033,53],[1033,54,1033,60],[1034,0,1034,6],[1034,7,1034,25],[1034,26,1034,32],[1034,33,1034,39],[1034,40,1034,46],[1034,47,1034,53],[1034,54,1034,60],[1035,0,1035,6],[1035,7,1035,25],[1035,26,1035,32],[1035,33,1035,39],[1035,40,1035,46],[1035,47,1035,53],[1035,54,1035,60],[994,35,994,41],[995,35,995,41],[1007,35,1007,41],[1007,30,1007,34],[1018,30,1018,34],[1018,35,1018,41],[1018,42,1018,49],[1018,50,1018,54],[1018,55,1018,60],[1020,50,1020,54],[1020,55,1020,60],[1027,0,1027,6],[1027,7,1027,25],[1027,26,1027,32],[1027,33,1027,39],[1027,40,1027,46],[1027,47,1027,53],[1027,54,1027,60],[1022,0,1022,60],[1023,54,1023,60],[1023,47,1023,53],[1023,0,1023,6],[1023,7,1023,25],[1023,26,1023,32],[1023,33,1023,39],[1023,40,1023,46],[1021,55,1021,60],[1011,30,1011,34],[1011,35,1011,41],[1011,42,1011,49],[1011,50,1011,54],[1011,55,1011,60],[870,0,870,1],[870,46,870,49],[990,0,990,29],[991,0,991,29],[991,30,991,34],[991,35,991,41],[991,42,991,49],[991,50,991,54],[991,55,991,60],[989,0,989,29],[981,30,984,60],[984,0,984,16],[984,17,984,18],[986,0,987,54],[986,55,986,60],[987,55,987,60],[1019,30,1019,34],[1019,35,1019,41],[1019,55,1019,60],[994,55,994,60],[995,50,995,54],[995,55,995,60],[992,42,992,49],[993,42,993,49],[994,42,994,49],[995,42,995,49],[992,30,992,34],[993,30,993,34],[994,30,994,34],[995,30,995,34],[992,35,992,41],[993,35,993,41]],"merged_total":4030,"flags":["merged_cut"]}
[null,null,null,null,null,null,"MINISTERUL AGRICULTURII ŞI DEZVOLTĂRII RURALE",null,null,null,null,null,null,null,null,null,null,null,null,null,null,null,null,null,null,null,null,null,null,null,null,null,null,null,null,null,null,null,null,null,null,null,null,null,null,null,null,null,null,null,null,null,null,null,null,null,null,null,null,null,null,5]
[null,null,null,null,null,null,"AGENŢIA PENTRU FINANŢAREA INVESTIŢIILOR RURALE",null,null,null,null,null,null,null,null,null,null,null,null,null,null,null,null,null,null,null,null,null,null,null,null,null,null,null,null,null,null,null,null,null,null,null,null,null,null,null,null,null,null,null,null,null,null,null,null,null,null,null,null,null,null,3]
[null,null,null,null,null,null,null,null,null,null,null,null,null,null,null,null,null,null,null,null,null,null,null,null,null,null,null,null,null,null,null,null,null,null,null,null,null,null,null,null,null,null,null,null,null,null,null,null,null,null,null,null,null,null,null,null,null,null,null,null,null,1]
[null,null,null,null,null,null,null,null,null,null,null,null,null,null,null,null,null,null,null,null,null,null,null,null,null,null,null,null,null,null,null,null,null,null,null,null,null,null,null,null,null,null,"SECŢIUNE GENERALĂ",null,null,null,null,null,null,null,null,null,null,null,null,null,null,null,null,null,null,1]
[null,null,null,null,null,null,null,null,null,null,null,null,null,null,null,null,null,null,null,null,null,null,null,null,null,null,null,null,null,null,null,null,null,null,null,null,null,null,null,null,null,null,null,null,null,null,null,null,null,null,null,null,null,null,null,null,null,null,null,null,null,5]
["DATE DE ÎNREGISTRARE",null,null,null,null,null,null,null,null,null,null,null,null,null,null,null,null,null,null,null,null,null,null,null,null,null,null,null,null,null,null,null,null,null,null,null,"NUME ŞI PRENUME DIRECTOR OJFIR/",null,null,null,null,null,null,null,null,null,null,null,null,null,null,null,null,null,null,null,null,null,null,null,null,10]
[null,null,null,null,null,null,null,null,null,null,null,null,null,null,null,null,null,null,null,null,null,null,null,null,null,null,null,null,null,null,null,null,null,null,null,null,"DIRECTOR GENERAL ADJUNCT CRFIR"]
["Se completează de către Agenția pentru Finanțarea Investițiilor Rurale - Oficiul"]
["Judeţean/ Centrul Regional - Programul FEADR pentru cereri de finanţare"]
[null,null,null,null,null,null,null,null,null,null,null,null,null,null,null,null,null,null,null,null,null,null,null,null,null,null,null,null,null,null,null,null,null,null,null,null,"Semnătura Director OJFIR/Director General Adjunct CRFIR"]
["OJFIR/CRFIR"]
[null,null,null,null,null,null,null,null,null,null,null,null,null,null,null,null,null,null,null,null,null,null,null,null,null,null,null,null,null,null,null,null,null,null,null,null,"Ştampila CRFIR"]
["Număr "]
["înregistrare"]
[]
[]
[]
[]
["Data Înregistrării"]
["Numele şi prenumele persoanei care înregistrează"]
["Semnătura:"]
["Data primirii cererii de finanţare la contractare:"]
["Se completează de către solicitant"]
["A PREZENTARE GENERALĂ"]
[]
[null,"A1 Măsura:",null,null,null,null,null,null,null,null,"Sub-măsura 19.2"]
[null,null,null,null,null,null,null,null,null,null,"              - Măsura 2.1. (2A) - Modernizarea exploatațiilor agricole si pomicole"]
[]
[null,"A2 Nume prenume / Denumire solicitant:"]
[]
[null,"A3 Titlu proiect:"]
[]
[]
[]
[]
[null,"A4 Descrierea succintă a proiectului:"]
[]
[]
[]
[]
[]
[]
[]
[]
[]
[]
[]
[null,null,"A5 Amplasarea proiectului:"]
[]
["Regiunea de dezvoltare:",null,null,null,null,null,null,null,null,null,null,null,null,null,null,null,null,null,null,null,null,null,null,null,null,null,null,"Judeţ:"]
[]
[null,"Obiectivele investiţiei",null,null,null,null,null,null,null,null,null,null,null,null,null,"Judeţ",null,null,null,null,null,null,null,null,null,null,null,"Comună/Oraş",null,null,null,null,null,null,null,null,null,null,null,"Sat/Sector",null,null,null,null,null,null,null,null,null,null,"Sat/Sector"]
[]
[]
[]
[]
[]
[]
[]
[]
[]
[]
[]
[]
[]
[]
[]
[]
[]
[]
[]
[]
[]
[]
[]
[]
[]
[]
[]
[]
[]
[]
[]
[]
[]
[]
[]
[]
[]
[]
[]
[]
[null,"A6 Date despre tipul de proiect şi beneficiar:",null,null,null,null,null,null,null,null,null,null,null,null,null,null,null,null,null,null,null,null,null,null,null,null,null,null,null,null,null,null,null,null,null,null,null,null,null,null,"A 6.5 Sectoare vizate prin proiect"]
[]
[null,"A 6.1",null,null,null,null,"Proiect cu construcţii-montaj",null,null,null,null,null,null,null,null,null,null,null,null,null,null,null,"A 6.3",null,null,null,null,"Beneficiar public",null,null,null,null,null,null,null,null,null,null,null,null,null,null,null,null,null,"Animal"]
[null,null,null,null,null,null,"Proiect fără construcţii-montaj",null,null,null,null,null,null,null,null,null,null,null,null,null,null,null,null,null,null,null,null,"Beneficiar privat",null,null,null,null,null,null,null,null,null,null,null,null,null,null,null,null,null,"Vegetal"]
[null,null,null,null,null,null,null,null,null,null,null,null,null,null,null,null,null,null,null,null,null,null,null,null,null,null,null,null,null,null,null,null,null,null,null,null,null,null,null,null,null,null,null,null,null,"Exploataţii pomicole"]
[null,"A 6.2",null,null,null,null,"Modernizare şi/sau Extindere"]
[null,null,null,null,null,null,"Investiţie nouă"]
[]
[]
[]
[]
[]
[null,null,null,null,null,null,null,null,null,null,null,null,null,"Proiect tehnic",null,null,null,null,null,null,null,null,null,"Acord de mediu",null,null,null,null,null,null,null,null,null,null,null,null,"Aviz Natura2000"]
[]
[null,"Denumire consultant:"]
[null,null,null,null,null,null,null,null,null,null,null,null,null,null,null,null,null,null,null,null,null,null,null,null,null,null,null,null,null,null,"CUI"]
[]
[null,null,null,null,null,null,null,null,null,null,null,null,null,null,null,null,null,null,null,null,null,null,null,null,null,null,null,null,null,null,"Nr. Înreg. ONRC"]
[]
[null,"Denumire proiectant:"]
[null,null,null,null,null,null,null,null,null,null,null,null,null,null,null,null,null,null,null,null,null,null,null,null,null,null,null,null,null,null,"CUI"]
[]
[null,null,null,null,null,null,null,null,null,null,null,null,null,null,null,null,null,null,null,null,null,null,null,null,null,null,null,null,null,null,"Nr. Înreg. ONRC"]
[]
[null,"Detaliere criterii de selecţie îndeplinite"]
[]
[]
[]
[]
[]
[]
[]
[]
[]
[]
["B INFORMAŢII PRIVIND SOLICITANTUL"]
["B1 Descrierea solicitantului"]
["B1.1 Informaţii privind solicitantul"]
[null,"Data înființării / Data de naştere",null,null,null,null,null,null,null,null,null,null,null,null,null,null,null,null,null,"Cod Unic de Înregistrare și/sau Codul de",null,null,null,null,null,null,null,null,null,null,null,null,null,null,null,null,null,null,null,null,null,null,null,"Statut juridic al solicitantului"]
[null,null,null,null,null,null,null,null,null,null,null,null,null,null,null,null,null,null,null,"Înregistrare Fiscală"]
[]
[]
[null,"Număr de înregistrare în registrul comerțului / Registrul asociaţiilor şi fundaţiilor"]
[]
[null,"Codul CAEN al activităţii/activităţilor finanţate prin proiect:"]
[]
[]
[]
[null,"Codul unic de înregistrare APIA",null,null,null,null,null,null,null,null,null,null,null,null,null,null,null,null,null,null,null,null,null,null,null,null,null,null,null,null,null,null,null,null,null,null,"Anul atribuirii codului"]
[]
[]
[null,"B1.2 Sediul social / Domiciliul stabil al solicitantului / Reşedinţa din România"]
[null,"Judeţ",null,null,null,null,null,null,null,null,null,null,null,null,null,null,null,null,null,null,null,null,"Localitate",null,null,null,null,null,null,null,null,null,null,null,null,null,null,null,null,null,null,null,"Sat"]
[]
[null,"Cod Poştal",null,null,null,null,null,null,null,null,null,null,null,null,null,"Strada",null,null,null,null,null,null,null,null,null,null,null,null,null,null,null,null,null,null,null,null,null,null,null,null,null,null,null,null,null,null,null,null,null,null,null,null,"Nr."]
[]
[null,"Bloc",null,null,null,null,null,null,null,null,null,null,null,null,null,null,null,"Scara",null,null,null,null,null,null,null,null,null,null,null,null,null,null,"Et. ",null,null,null,null,null,null,"Ap.",null,null,null,null,null,null,"Sector"]
[]
[null,"Telefon fix/ mobil",null,null,null,null,null,null,null,null,null,null,null,null,null,null,null,null,null,null,"Fax",null,null,null,null,null,null,null,null,null,null,null,null,null,null,null,"E-mail"]
[]
[]
[null,"B1.3 Numele şi prenumele reprezentantului legal şi funcţia acestuia în cadrul organizaţiei, precum şi"]
[null,"specimenul de semnatură:"]
[]
[null,null,null,"Numele",null,null,null,null,null,null,null,null,null,null,"Prenumele",null,null,null,null,null,null,null,null,null,null,"Funcţia",null,null,null,null,null,null,null,null,null,null,"Reprezentant legal",null,null,null,null,null,null,null,null,null,null,"Specimen de"]
[null,null,null,null,null,null,null,null,null,null,null,null,null,null,null,null,null,null,null,null,null,null,null,null,null,null,null,null,null,null,null,null,null,null,null,null,null,null,null,null,null,null,null,null,null,null,null,"semnătură"]
[]
[null,null,null,null,null,null,null,null,null,null,null,null,null,null,null,null,null,null,null,null,null,null,null,null,null,null,null,null,null,null,null,null,null,null,null,null,"LEGAL"]
[]
[]
["B2 Informaţii referitoare la reprezentantul legal de proiect"]
[null,"B2.1 Date de identitate ale reprezentantului legal de proiect"]
[]
[null,null,null,"Data naşterii",null,null,null,null,null,null,null,null,null,null,null,null,null,null,null,null,null,null,null,null,"Cod numeric personal"]
[]
[]
[]
[]
[null,null,null,null,"Act de identitate",null,null,null,null,null,null,null,null,null,null,null,null,null,"Seria",null,null,"Nr.",null,null,null,null,null,null,"Eliberat la data de",null,null,null,null,null,null,null,null,"de:",null,null,null,null,null,null,null,null,null,null,null,null,null,"Valabil până la:"]
[null,null,null,null,"B.I.",null,null,"C.I.",null,null,"Paşaport"]
[]
[]
[]
[null,null,null,"Studii şi coordonate:"]
[]
[]
[]
[]
[]
[]
[]
[]
[]
[]
[]
[]
[null,"B2.2 Domiciliul stabil al reprezentantului legal de proiect"]
[null,"Judeţ",null,null,null,null,null,null,null,null,null,null,null,null,null,null,null,null,null,null,null,null,"Localitate",null,null,null,null,null,null,null,null,null,null,null,null,null,null,null,null,null,null,null,"Sat"]
[]
[null,"Cod Poştal",null,null,null,null,null,null,null,null,null,null,"Strada",null,null,null,null,null,null,null,null,null,null,null,null,null,null,null,null,null,"Nr.",null,null,null,null,null,"Bloc",null,null,null,null,null,null,null,null,null,null,null,"Scara",null,null,null,null,null,"Ap."]
[]
[null,"Telefon fix",null,null,null,null,null,null,null,null,null,null,null,null,null,null,null,null,null,null,"Telefon mobil",null,null,null,null,null,null,null,null,null,null,null,null,null,null,null,null,null,"Fax"]
[]
[null,"E-mail"]
[]
[]
["B3 Informaţii privind contul bancar pentru proiect F.E.A.D.R."]
[]
[null,null,"B3.1 Denumirea Băncii",null,null,null,null,null,null,null,null,null,null,null,null,null,null,null,null,null,null,null,null,null,null,null,null,null,null,null,null,"Denumirea Sucursalei/Filialei"]
[]
[]
[null,null,"B3.2 Adresa Băncii/Sucursalei"]
[]
[]
[null,null,"B3.3 Cod IBAN",null,null,null,null,null,null,null,null,null,null,null,null,null,null,null,null,null,null,null,null,null,null,null,null,null,null,null,null,"B3.4 Titularul contului bancar"]
[]
[]
["REGULI DE COMPLETARE\nCâmpurile \"Numele şi prenumele persoanei care înregistrează. Semnătura\", se vor completa după data primirii în format letric a acesteia împreună cu documentele justificative.\nSolicitantul are posibilitatea să opteze pentru Buget indicativ şi anexe conform HG 907/2016, prin bifarea check-box-ului corespunzător din câmpul A6 sau pentru Buget indicativ şi anexe conform HG 28/2008 prin nebifarea check-box-ului.\nCompletaţi devizele aferente capitolelor de cheltuieli, defalcat pe cheltuieli eligibile şi neeligibile prin completarea tabelelor incluse în acest document, respectiv:\n1. Tabelul \"Deviz financiar_cap3\" cuprinde cheltuielile aferente capitolului 3 - Cheltuieli pentru proiectare şi asistenţă tehnică, cheltuieli care trebuie să se regăsească atât în Bugetul Indicativ (Tabel \"Buget indicativ\" din cererea de finanţare, partea specifică) cât şi în Devizul General din Studiul de Fezabilitate.\n2. Tabelul \"Devize obiect\" cuprinde formatul cadru al devizului pe obiect, iar solicitantul va completa atâtea devize pe obiect câte obiecte de investiţie sunt incluse în proiect. Suma tuturor devizelor pe obiect trebuie să se regăseasca atat in Bugetul Indicativ (tabelul \"Buget indicativ\" din cererea de finanţare, partea specifică) cât şi în Devizul General din Studiul de Fezabilitate În cazul în care proiectul de investiţii presupune mai multe devize pe obiect, solicitantul va crea în documentul curent câte o copie a tabelului \"Devize obiect\" pentru fiecare deviz pe obiect şi va detalia cheltuielile eligibile şi neeligibile pe fiecare în parte.\n3. Tabelul \"cap.2+cap.5\" cuprinde cheltuieli aferente capitolelor 2 şi 5 şi trebuie să se regăsească atât în Bugetul Indicativ (tabel \"Buget indicativ\" din cererea de finanţare, partea specifică) cât şi Devizul General din Studiul de Fezabilitate.\n4. Tabelul \"Deviz culturi\" cuprinde devizele aferente tuturor tipurilor de culturi, plantaţii, vizate de proiect.\n5. În cazul înfiinţării şi/sau reconversiei plantaţiilor pomicole se va completa Deviz pe obiect specific, conform\nFişei privind costurile standard și contribuția în natură prezentă în cererea de finanțare și în fișa submăsurii în\nsecțiunea ,,Sume aplicabile și rate de sprijin”, cu precizări referitoare la suprafaţa plantaţiei pomicole, densitatea\nutilizată, specia etc., în vederea calculării valorii totale necesare realizării investiţiei în funcţie de costurile standard\nși contribuția în natură.\n6. În situaţia în care solicitantul îşi propune realizarea unor cheltuieli după depunerea cererii de finanţare şi\nînainte de semnarea contractului aceste se vor preciza într-un deviz distinct.\n7. În cazul art 28 (Agromediu), intensitatea suplimentară se acordă după cum urmează:\n1 - Pentru investiţiile adresate terenurilor arabile cu condiția ca suprafața aflată sub angajament sa reprezinte mai mult de 50% din terenul arabil aparținand exploataţiei agricole.\nIntensitatea mărită se acordă pentru utilajele si echipamentele specifice lucrărilor de arat, grăpat, discuit, semănat/însămânţat, tocat resturi vegetale, încorporat resturi vegetale în sol, numai în cazul în care peste 50% din terenul arabil deținut în cadrul fermei se află sub un angajament în derulare in cazul următoarelor pachete promovate prin Măsura 10 - Agromediu și climă (AGM): Pachetul 4 - culturi verzi, Pachetul 7 - terenuri arabile importante ca zone de hrănire pentru gâsca cu gât roșu (Branta ruficollis), suprafețe pe care se realizează lucrări de tehnologie a culturilor; Intensitatea mărită se acordă pentru facilităţi necesare depozitării şi compostării gunoiului de grajd numai în cazul în care peste 50% din terenul arabil deținut în cadrul fermei se află sub un angajament în derulare in cazul Pachetului 4 - culturi verzi, Pachetului 5 - adaptarea la efectele schimbărilor climatice şi Pachetului 7 - terenuri arabile importante ca zone de hrănire pentru gâsca cu gât roșu (Branta ruficollis).\n2 -Pentru investiţiile adresate pajiștilor cu condiția ca suprafața aflată sub angajament să reprezinte mai mult de 50% din suprafața de pajiști aparținând fermei.\nIntensitatea suplimentară se acordă doar pentru contravaloarea următoarelor:\n- utilajelor folosite pentru cosit, strâns, balotat şi transportat fânul și a altor asemenea investitii utilizate in cazul pajistilor care fac obiectul sprijinului acordat prin Pachetul 1 - pajiști cu înaltă valoare naturală (HNV) fără Pachetul 2 - practici agricole tradiţionale,\n- utilajelor uşoare (utilaje cu lama scurtă, greutate redusă și viteză mică de deplasare) folosite pentru cosit, strâns, balotat şi transportat fânul și a altor asemenea investitii utilizate in cazul pajistilor care fac obiectul sprijinului acordat prin varianta 2.2 - utilaje ușoare pe pajiști permanente utilizate ca fânețe din pachetul 2 - practici agricole tradiţionale, varianta 3.1.2 -utilaje ușoare pe pajiști importante pentru Crex crex din sub-pachetul 3.1 - Crex crex, varianta 3.2.2 -utilaje ușoare pe pajiști importante pentru Lanius minor și Falco vespertinus din sub-pachetul 3.2 - Lanius minor și Falco vespertinus, varianta 6.2 - utilaje ușoare pe pajiști importante pentru fluturi (Maculinea sp.) din pachetul 6 - pajiști importante pentru fluturi (Maculinea sp.);\n- platformele pentru depozitarea şi/sau compostarea gunoiul de grajd şi utilajele/echipamentele de transport şi de\nîmprăştiere a gunoiului de grajd - în cazul pachetelor 1, 3.1, 3.2 şi 6;\n3 -Pentru investitiile ce deservesc animalele care fac obiectul angajamentelor pachetului nr. 8 (rase locale în pericol de abandon)\n- contravaloarea investiţiei în cauză se obţine înmulțind procentul pe care îl detine nucleul de rase locale în pericol de\nabandon în total efective de animale, cu total valoare eligibilă a proiectului. Intensitatea mărită se acordă doar pentru această contravaloare.\nEx. dacă rasele în pericol de abandon reprezintă 10% din total efective (exprimate in UVM), se aplica acest procent la valoarea totala eligibila, si se acorda 20 puncte procentuale suplimentare la intensitate sprijin doar pentru această cota de 10% din valoarea totala eligibilă.\n8. Punctul A6.2 se va completa ţinând cont de următoarele:\nInvestiţie nouă - cuprinde lucrările de construcţii-montaj, utilaje, instalaţii, care se realizează pe amplasamente noi, lucrarile pentru construcţiile existente cărora li se schimbă destinaţia nefuncționale/dezafectate\nModernizarea - cuprinde lucrările de construcţii şi instalaţii privind retehnologizarea, reutilarea și refacerea sau extinderea construcţiilor existente aferente unităţilor în funcţiune şi cu autorizaţii de funcţionare valabile, fără modificarea destinaţiei iniţiale, inclusiv utilarea/reutilarea cu mașini, utilaje și echipamente necesare unei exploatații agricole pentru producția agricolă primară și, după caz, pentru procesare la nivel de fermă.\n9. Trebuie bifate şi anexate toate documentele de pe coloana “DEPUNERE-Obligatoriu pentru toate proiectele” din secțiunea E - Lista documentelor anexate."]
[]
[]
[]
[]
[]
[]
[]
[]
[]
[]
[]
[]
[]
[]
[]
[]
[]
[]
[]
[]
[]
[]
[]
[]
[]
[]
[]
[]
[]
[]
[]
[]
[]
[]
[]
[]
[]
[]
[]
[]
[]
[]
[]
[]
[]
[]
[]
[]
[]
[null,"Buget Indicativ HG 907 (Euro) pentru INVESTIŢII în activitatea de producţie AGRICOLĂ "]
["MINISTERUL AGRICULTURII ŞI DEZVOLTĂRII RURALE"]
["AGENŢIA PENTRU FINANŢAREA INVESTIŢIILOR RURALE"]
[]
[]
[null,"Procentul aferent intensităţii",null,null,null,null,null,null,null,null,null,null,null,null,null,null,null,null,null,"Curs EURO",null,null,null,null,null,null,null,null,null,null,null,null,null,null,null,"Data întocmirii Studiului de Fezabilitate"]
[]
["Măsura",null,null,null,null,null,null,null,null,null,null,null,null,null,null,null,null,null,null,null,null,null,null,null,null,null,null,null,null,null,null,null,null,null,null,"2.1. (2A)"]
["Denumirea capitolelor de cheltuieli",null,null,null,null,null,null,null,null,null,null,null,null,null,null,null,null,null,null,null,null,null,null,null,null,null,null,null,null,null,null,null,null,null,null,"Cheltuieli eligibile",null,null,null,null,null,null,null,null,"Cheltuieli neeligibile",null,null,null,null,null,null,null,"Total"]
[null,null,null,null,null,null,null,null,null,null,null,null,null,null,null,null,null,null,null,null,null,null,null,null,null,null,null,null,null,null,null,null,null,null,null,"EURO",null,null,null,null,null,null,null,null,"EURO",null,null,null,null,null,null,null,"EURO"]
[1,null,null,null,null,null,null,null,null,null,null,null,null,null,null,null,null,null,null,null,null,null,null,null,null,null,null,null,null,null,null,null,null,null,null,2,null,null,null,null,null,null,null,null,3,null,null,null,null,null,null,null,4]
["Capitolul 1 Cheltuieli pentru obtinerea şi amenajarea terenului - total, din care:",null,null,null,null,null,null,null,null,null,null,null,null,null,null,null,null,null,null,null,null,null,null,null,null,null,null,null,null,null,null,null,null,null,null,{"$f":"SUM(AJ273:AR275)","v":0},null,null,null,null,null,null,null,null,{"$f":"SUM(AS272:AZ275)","v":0},null,null,null,null,null,null,null,{"$f":"SUM(AJ271:AZ271)","v":0}]
["1.1 Obţinerea terenului",null,null,null,null,null,null,null,null,null,null,null,null,null,null,null,null,null,null,null,null,null,null,null,null,null,null,null,null,null,null,null,null,null,null,null,null,null,null,null,null,null,null,null,null,null,null,null,null,null,null,null,{"$f":"SUM(AJ272:AZ272)","v":0}]
["1.2 Amenajarea terenului",null,null,null,null,null,null,null,null,null,null,null,null,null,null,null,null,null,null,null,null,null,null,null,null,null,null,null,null,null,null,null,null,null,null,null,null,null,null,null,null,null,null,null,null,null,null,null,null,null,null,null,0]
["1.3 Amenajari pentru protecţia mediului şi aducerea la starea iniţială",null,null,null,null,null,null,null,null,null,null,null,null,null,null,null,null,null,null,null,null,null,null,null,null,null,null,null,null,null,null,null,null,null,null,null,null,null,null,null,null,null,null,null,null,null,null,null,null,null,null,null,0]
["1.4 Cheltuieli pentru relocarea/protecţia utilităţilor",null,null,null,null,null,null,null,null,null,null,null,null,null,null,null,null,null,null,null,null,null,null,null,null,null,null,null,null,null,null,null,null,null,null,null,null,null,null,null,null,null,null,null,null,null,null,null,null,null,null,null,0]
["Capitolul 2 Cheltuieli pentru asigurarea utilităţilor necesare obiectivului de investiţii",null,null,null,null,null,null,null,null,null,null,null,null,null,null,null,null,null,null,null,null,null,null,null,null,null,null,null,null,null,null,null,null,null,null,null,null,null,null,null,null,null,null,null,null,null,null,null,null,null,null,null,0]
["Capitolul 3 Cheltuieli pentru proiectare şi asistenţă tehnică - total, din care:",null,null,null,null,null,null,null,null,null,null,null,null,null,null,null,null,null,null,null,null,null,null,null,null,null,null,null,null,null,null,null,null,null,null,{"$f":"AJ278+AJ282+AJ283+AJ284+AJ285+AJ293+AJ296","v":0},null,null,null,null,null,null,null,null,{"$f":"AS278+AS282+AS283+AS284+AS285+AS292+AS293+AS296","v":0},null,null,null,null,null,null,null,0]
["3.1 Studii",null,null,null,null,null,null,null,null,null,null,null,null,null,null,null,null,null,null,null,null,null,null,null,null,null,null,null,null,null,null,null,null,null,null,{"$f":"SUM(AJ279:AR281)","v":0},null,null,null,null,null,null,null,null,{"$f":"SUM(AS279:AZ281)","v":0},null,null,null,null,null,null,null,0]
["       3.1.1 Studii de teren",null,null,null,null,null,null,null,null,null,null,null,null,null,null,null,null,null,null,null,null,null,null,null,null,null,null,null,null,null,null,null,null,null,null,null,null,null,null,null,null,null,null,null,null,null,null,null,null,null,null,null,0]
["       3.1.2 Raport privind impactul asupra mediului",null,null,null,null,null,null,null,null,null,null,null,null,null,null,null,null,null,null,null,null,null,null,null,null,null,null,null,null,null,null,null,null,null,null,null,null,null,null,null,null,null,null,null,null,null,null,null,null,null,null,null,0]
["       3.1.3 Alte studii specifice",null,null,null,null,null,null,null,null,null,null,null,null,null,null,null,null,null,null,null,null,null,null,null,null,null,null,null,null,null,null,null,null,null,null,null,null,null,null,null,null,null,null,null,null,null,null,null,null,null,null,null,0]
["3.2 Documentaţii-suport şi cheltuieli pentru obţinerea de avize, acorduri şi autorizaţii",null,null,null,null,null,null,null,null,null,null,null,null,null,null,null,null,null,null,null,null,null,null,null,null,null,null,null,null,null,null,null,null,null,null,null,null,null,null,null,null,null,null,null,null,null,null,null,null,null,null,null,0]
["3.3 Expertizare tehnică",null,null,null,null,null,null,null,null,null,null,null,null,null,null,null,null,null,null,null,null,null,null,null,null,null,null,null,null,null,null,null,null,null,null,null,null,null,null,null,null,null,null,null,null,null,null,null,null,null,null,null,0]
["3.4 Certificarea performanţei energetice şi auditul energetic al clădirilor",null,null,null,null,null,null,null,null,null,null,null,null,null,null,null,null,null,null,null,null,null,null,null,null,null,null,null,null,null,null,null,null,null,null,null,null,null,null,null,null,null,null,null,null,null,null,null,null,null,null,null,0]
["3.5 Proiectare",null,null,null,null,null,null,null,null,null,null,null,null,null,null,null,null,null,null,null,null,null,null,null,null,null,null,null,null,null,null,null,null,null,null,{"$f":"SUM(AJ286:AR291)","v":0},null,null,null,null,null,null,null,null,{"$f":"SUM(AS286:AZ291)","v":0},null,null,null,null,null,null,null,0]
["      3.5.1 Temă de proiectare",null,null,null,null,null,null,null,null,null,null,null,null,null,null,null,null,null,null,null,null,null,null,null,null,null,null,null,null,null,null,null,null,null,null,null,null,null,null,null,null,null,null,null,null,null,null,null,null,null,null,null,0]
["      3.5.2 Studiu de prefezabilitate",null,null,null,null,null,null,null,null,null,null,null,null,null,null,null,null,null,null,null,null,null,null,null,null,null,null,null,null,null,null,null,null,null,null,null,null,null,null,null,null,null,null,null,null,null,null,null,null,null,null,null,0]
["      3.5.3. Studiu de fezabilitate/documentaţie de avizare a lucrărilor de intervenţii\n                şi deviz general",null,null,null,null,null,null,null,null,null,null,null,null,null,null,null,null,null,null,null,null,null,null,null,null,null,null,null,null,null,null,null,null,null,null,null,null,null,null,null,null,null,null,null,null,null,null,null,null,null,null,null,0]
["      3.5.4. Documentaţiile tehnice necesare în vederea obţinerii avizelor/\n                acordurilor/autorizaţiilor",null,null,null,null,null,null,null,null,null,null,null,null,null,null,null,null,null,null,null,null,null,null,null,null,null,null,null,null,null,null,null,null,null,null,null,null,null,null,null,null,null,null,null,null,null,null,null,null,null,null,null,0]
["      3.5.5. Verificarea tehnică de calitate a proiectului tehnic şi a detaliilor de execuţie",null,null,null,null,null,null,null,null,null,null,null,null,null,null,null,null,null,null,null,null,null,null,null,null,null,null,null,null,null,null,null,null,null,null,null,null,null,null,null,null,null,null,null,null,null,null,null,null,null,null,null,0]
["      3.5.6. Proiect tehnic şi detalii de execuţie",null,null,null,null,null,null,null,null,null,null,null,null,null,null,null,null,null,null,null,null,null,null,null,null,null,null,null,null,null,null,null,null,null,null,null,null,null,null,null,null,null,null,null,null,null,null,null,null,null,null,null,0]
["3.6 Organizarea procedurilor de achiziţie",null,null,null,null,null,null,null,null,null,null,null,null,null,null,null,null,null,null,null,null,null,null,null,null,null,null,null,null,null,null,null,null,null,null,null,null,null,null,null,null,null,null,null,null,null,null,null,null,null,null,null,0]
["3.7 Consultanţă",null,null,null,null,null,null,null,null,null,null,null,null,null,null,null,null,null,null,null,null,null,null,null,null,null,null,null,null,null,null,null,null,null,null,{"$f":"AJ294","v":0},null,null,null,null,null,null,null,null,{"$f":"AS294+AS295","v":0},null,null,null,null,null,null,null,0]
["      3.7.1 Managementul de proiect pentru obiectivul de investiţii",null,null,null,null,null,null,null,null,null,null,null,null,null,null,null,null,null,null,null,null,null,null,null,null,null,null,null,null,null,null,null,null,null,null,null,null,null,null,null,null,null,null,null,null,null,null,null,null,null,null,null,0]
["     3.7.2 Auditul financiar",null,null,null,null,null,null,null,null,null,null,null,null,null,null,null,null,null,null,null,null,null,null,null,null,null,null,null,null,null,null,null,null,null,null,null,null,null,null,null,null,null,null,null,null,null,null,null,null,null,null,null,0]
["3.8 Asistenţă Tehnică",null,null,null,null,null,null,null,null,null,null,null,null,null,null,null,null,null,null,null,null,null,null,null,null,null,null,null,null,null,null,null,null,null,null,{"$f":"AJ297+AS300","v":0},null,null,null,null,null,null,null,null,{"$f":"AS297+AS300","v":0},null,null,null,null,null,null,null,0]
["      3.8.1 Asistenţă Tehnică din partea proiectantului",null,null,null,null,null,null,null,null,null,null,null,null,null,null,null,null,null,null,null,null,null,null,null,null,null,null,null,null,null,null,null,null,null,null,{"$f":"AJ298+AJ299","v":0},null,null,null,null,null,null,null,null,{"$f":"AS298+AS299","v":0},null,null,null,null,null,null,null,0]
["           3.8.1.1 pe perioada de execuţie a lucrărilor",null,null,null,null,null,null,null,null,null,null,null,null,null,null,null,null,null,null,null,null,null,null,null,null,null,null,null,null,null,null,null,null,null,null,null,null,null,null,null,null,null,null,null,null,null,null,null,null,null,null,null,0]
["           3.8.1.2 pentru participarea proiectantului la fazele incluse în programul de control al\n                       lucrărilor de execuţie, avizat de către Inspectoratul de Stat în Construcţii",null,null,null,null,null,null,null,null,null,null,null,null,null,null,null,null,null,null,null,null,null,null,null,null,null,null,null,null,null,null,null,null,null,null,null,null,null,null,null,null,null,null,null,null,null,null,null,null,null,null,null,0]
["      3.8.2 Dirigenţie de şantier",null,null,null,null,null,null,null,null,null,null,null,null,null,null,null,null,null,null,null,null,null,null,null,null,null,null,null,null,null,null,null,null,null,null,null,null,null,null,null,null,null,null,null,null,null,null,null,null,null,null,null,0]
["Verificare încadrare cheltuieli capitolul 3",null,null,null,null,null,null,null,null,null,null,null,null,null,null,null,null,null,null,null,null,null,null,null,null,null,null,null,null,null,null,null,{"$f":"AJ271+AJ276+AJ302","v":0},{"$f":"IF(AG301=0,0,AI301)","v":0},null,"verificarea se face in Totalizator"]
["Capitolul 4 Cheltuieli pentru investiţia de bază - total, din care:",null,null,null,null,null,null,null,null,null,null,null,null,null,null,null,null,null,null,null,null,null,null,null,null,null,null,null,null,null,null,null,null,null,null,{"$f":"AJ303+AJ310","v":0},null,null,null,null,null,null,null,null,{"$f":"AS303+AS310","v":0},null,null,null,null,null,null,null,{"$f":"SUM(AJ302:AZ302)","v":0}]
["A - Constructii şi lucrări de intervenţii - total, din care:",null,null,null,null,null,null,null,null,null,null,null,null,null,null,null,null,null,null,null,null,null,null,null,null,null,null,null,null,null,null,null,null,null,null,{"$f":"SUM(AJ304:AR309)","v":0},null,null,null,null,null,null,null,null,{"$f":"SUM(AS304:AZ309)","v":0},null,null,null,null,null,null,null,0]
["4.1 Construcţii şi instalaţii",null,null,null,null,null,null,null,null,null,null,null,null,null,null,null,null,null,null,null,null,null,null,null,null,null,null,null,null,null,null,null,null,null,null,null,null,null,null,null,null,null,null,null,null,null,null,null,null,null,null,null,0]
["4.2 Montaj utilaje, echipamente tehnologice şi funcţionale",null,null,null,null,null,null,null,null,null,null,null,null,null,null,null,null,null,null,null,null,null,null,null,null,null,null,null,null,null,null,null,null,null,null,null,null,null,null,null,null,null,null,null,null,null,null,null,null,null,null,null,0]
["4.3 Utilaje, echipamente tehnologice şi funcţionale care necesită montaj",null,null,null,null,null,null,null,null,null,null,null,null,null,null,null,null,null,null,null,null,null,null,null,null,null,null,null,null,null,null,null,null,null,null,null,null,null,null,null,null,null,null,null,null,null,null,null,null,null,null,null,0]
["4.4 Utilaje, echipamente tehnologice şi funcţionale care nu necesită montaj şi echipamente",null,null,null,null,null,null,null,null,null,null,null,null,null,null,null,null,null,null,null,null,null,null,null,null,null,null,null,null,null,null,null,null,null,null,null,null,null,null,null,null,null,null,null,null,null,null,null,null,null,null,null,0]
["4.5 Dotări",null,null,null,null,null,null,null,null,null,null,null,null,null,null,null,null,null,null,null,null,null,null,null,null,null,null,null,null,null,null,null,null,null,null,null,null,null,null,null,null,null,null,null,null,null,null,null,null,null,null,null,0]
["4.6 Active necorporale",null,null,null,null,null,null,null,null,null,null,null,null,null,null,null,null,null,null,null,null,null,null,null,null,null,null,null,null,null,null,null,null,null,null,null,null,null,null,null,null,null,null,null,null,null,null,null,null,null,null,null,0]
["B - Cheltuieli pentru investitii în culturi/plantaţii",null,null,null,null,null,null,null,null,null,null,null,null,null,null,null,null,null,null,null,null,null,null,null,null,null,null,null,null,null,null,null,null,null,null,{"$f":"SUM(AJ311:AR315)","v":0},null,null,null,null,null,null,null,null,{"$f":"SUM(AS311:AZ315)","v":0},null,null,null,null,null,null,null,0]
["Subcapitol 1 - Lucrări de pregătire a terenului",null,null,null,null,null,null,null,null,null,null,null,null,null,null,null,null,null,null,null,null,null,null,null,null,null,null,null,null,null,null,null,null,null,null,null,null,null,null,null,null,null,null,null,null,null,null,null,null,null,null,null,0]
["Subcapitol 2 - Infiinţarea plantaţiei",null,null,null,null,null,null,null,null,null,null,null,null,null,null,null,null,null,null,null,null,null,null,null,null,null,null,null,null,null,null,null,null,null,null,null,null,null,null,null,null,null,null,null,null,null,null,null,null,null,null,null,0]
["Subcapitol 3 - Intreţinere plantaţie în anul 1",null,null,null,null,null,null,null,null,null,null,null,null,null,null,null,null,null,null,null,null,null,null,null,null,null,null,null,null,null,null,null,null,null,null,null,null,null,null,null,null,null,null,null,null,null,null,null,null,null,null,null,0]
["Subcapitol 4 - Intreţinere plantaţie în anul 2",null,null,null,null,null,null,null,null,null,null,null,null,null,null,null,null,null,null,null,null,null,null,null,null,null,null,null,null,null,null,null,null,null,null,null,null,null,null,null,null,null,null,null,null,null,null,null,null,null,null,null,0]
["Subcapitol 5 - Instalat sistem susţinere şi împrejmuire",null,null,null,null,null,null,null,null,null,null,null,null,null,null,null,null,null,null,null,null,null,null,null,null,null,null,null,null,null,null,null,null,null,null,null,null,null,null,null,null,null,null,null,null,null,null,null,null,null,null,null,0]
["Capitolul 5 Alte cheltuieli - total, din care:",null,null,null,null,null,null,null,null,null,null,null,null,null,null,null,null,null,null,null,null,null,null,null,null,null,null,null,null,null,null,null,null,null,null,{"$f":"AJ317+AJ320+AJ326+AJ327","v":0},null,null,null,null,null,null,null,null,{"$f":"AS317+AS320+AS326+AS327","v":0},null,null,null,null,null,null,null,0]
["5.1 Organizare de şantier",null,null,null,null,null,null,null,null,null,null,null,null,null,null,null,null,null,null,null,null,null,null,null,null,null,null,null,null,null,null,null,null,null,null,{"$f":"SUM(AJ318:AR319)","v":0},null,null,null,null,null,null,null,null,{"$f":"SUM(AS318:AZ319)","v":0},null,null,null,null,null,null,null,0]
["      5.1.1 lucrări de construcţii şi instalaţii aferente organizării de şantier",null,null,null,null,null,null,null,null,null,null,null,null,null,null,null,null,null,null,null,null,null,null,null,null,null,null,null,null,null,null,null,null,null,null,null,null,null,null,null,null,null,null,null,null,null,null,null,null,null,null,null,0]
["      5.1.2 cheltuieli conexe orgănizării şantierului",null,null,null,null,null,null,null,null,null,null,null,null,null,null,null,null,null,null,null,null,null,null,null,null,null,null,null,null,null,null,null,null,null,null,null,null,null,null,null,null,null,null,null,null,null,null,null,null,null,null,null,0]
["5.2 Comisioane, taxe, costul creditului",null,null,null,null,null,null,null,null,null,null,null,null,null,null,null,null,null,null,null,null,null,null,null,null,null,null,null,null,null,null,null,null,null,null,{"$f":"SUM(AJ321:AR325)","v":0},null,null,null,null,null,null,null,null,{"$f":"SUM(AS321:AZ325)","v":0},null,null,null,null,null,null,null,0]
["      5.2.1 Comisioanele şi dobânzile aferente creditului băncii finanţatoare",null,null,null,null,null,null,null,null,null,null,null,null,null,null,null,null,null,null,null,null,null,null,null,null,null,null,null,null,null,null,null,null,null,null,null,null,null,null,null,null,null,null,null,null,null,null,null,null,null,null,null,0]
["      5.2.2 Cota aferentă ISC pentru controlul calităţii lucrărilor de construcţii",null,null,null,null,null,null,null,null,null,null,null,null,null,null,null,null,null,null,null,null,null,null,null,null,null,null,null,null,null,null,null,null,null,null,null,null,null,null,null,null,null,null,null,null,null,null,null,null,null,null,null,0]
["      5.2.3 Cota aferentă ISC pentru controlul statului în amenajarea teritoriului,\n               urbanism şi pentru autorizarea lucrărilor de construcţii",null,null,null,null,null,null,null,null,null,null,null,null,null,null,null,null,null,null,null,null,null,null,null,null,null,null,null,null,null,null,null,null,null,null,null,null,null,null,null,null,null,null,null,null,null,null,null,null,null,null,null,0]
["      5.2.4 Cota aferentă Casei Sociale a Constructorilor - CSC",null,null,null,null,null,null,null,null,null,null,null,null,null,null,null,null,null,null,null,null,null,null,null,null,null,null,null,null,null,null,null,null,null,null,null,null,null,null,null,null,null,null,null,null,null,null,null,null,null,null,null,0]
["      5.2.5 Taxe pentru acorduri, avize conforme şi autorizaţia de construire/desfiinţare",null,null,null,null,null,null,null,null,null,null,null,null,null,null,null,null,null,null,null,null,null,null,null,null,null,null,null,null,null,null,null,null,null,null,null,null,null,null,null,null,null,null,null,null,null,null,null,null,null,null,null,0]
["5.3 Cheltuieli diverse şi neprevăzute",null,null,null,null,null,null,null,null,null,null,null,null,null,null,null,null,null,null,null,null,null,null,null,null,null,null,null,null,null,null,null,null,null,null,null,null,null,null,null,null,null,null,null,null,null,null,null,null,null,null,null,0]
["5.4 Cheltuieli pentru informare şi publicitate",null,null,null,null,null,null,null,null,null,null,null,null,null,null,null,null,null,null,null,null,null,null,null,null,null,null,null,null,null,null,null,null,null,null,null,null,null,null,null,null,null,null,null,null,null,null,null,null,null,null,null,0]
["Procent cheltuieli diverse şi neprevăzute"]
["Capitolul 6 Cheltuieli pentru darea în exploatare - total, din care:",null,null,null,null,null,null,null,null,null,null,null,null,null,null,null,null,null,null,null,null,null,null,null,null,null,null,null,null,null,null,null,null,null,null,{"$f":"SUM(AJ330:AR331)","v":0},null,null,null,null,null,null,null,null,{"$f":"SUM(AS330:AZ331)","v":0},null,null,null,null,null,null,null,0]
["6.1 Pregătirea personalului de exploatare",null,null,null,null,null,null,null,null,null,null,null,null,null,null,null,null,null,null,null,null,null,null,null,null,null,null,null,null,null,null,null,null,null,null,null,null,null,null,null,null,null,null,null,null,null,null,null,null,null,null,null,0]
["6.2 Probe tehnologice şi teste",null,null,null,null,null,null,null,null,null,null,null,null,null,null,null,null,null,null,null,null,null,null,null,null,null,null,null,null,null,null,null,null,null,null,null,null,null,null,null,null,null,null,null,null,null,null,null,null,null,null,null,0]
["TOTAL GENERAL",null,null,null,null,null,null,null,null,null,null,null,null,null,null,null,null,null,null,null,null,null,null,null,null,null,null,null,null,null,null,null,null,null,null,{"$f":"AJ271+AJ276+AJ277+AJ302+AJ316+AJ329","v":0},null,null,null,null,null,null,null,null,{"$f":"AS271+AS276+AS277+AS302+AS316+AS329","v":0},null,null,null,null,null,null,null,0]
["Verificare actualizare",null,null,null,null,null,null,null,null,null,null,null,null,null,null,null,null,null,null,null,null,null,null,null,null,null,null,null,null,null,null,{"$f":"AJ334*100/AJ332","v":{"$error":"#DIV/0!"}},null,null,{"$f":"IF(AJ332=0,0,AF333)","v":0},{"$f":"IF(AI333<=5,\"actualizare mai mică de 5% din valoarea eligibila\",\"actualizare mai mare de 5% din valoarea eligibila\")","v":"actualizare mai mică de 5% din valoarea eligibila"}]
["ACTUALIZARE Cheltuieli Eligibile (max 5%)",null,null,null,null,null,null,null,null,null,null,null,null,null,null,null,null,null,null,null,null,null,null,null,null,null,null,null,null,null,null,null,null,null,null,null,null,null,null,null,null,null,null,null,null,null,null,null,null,null,null,null,{"$f":"SUM(AJ334:AZ334)","v":0}]
["TOTAL GENERAL CU ACTUALIZARE",null,null,null,null,null,null,null,null,null,null,null,null,null,null,null,null,null,null,null,null,null,null,null,null,null,null,null,null,null,null,null,null,null,null,{"$f":"AJ332+AJ334","v":0},null,null,null,null,null,null,null,null,{"$f":"AS332","v":0},null,null,null,null,null,null,null,0]
["Valoare TVA",null,null,null,null,null,null,null,null,null,null,null,null,null,null,null,null,null,null,null,null,null,null,null,null,null,null,null,null,null,null,null,null,null,null,null,null,null,null,null,null,null,null,null,null,null,null,null,null,null,null,null,0]
["TOTAL GENERAL inclusiv TVA",null,null,null,null,null,null,null,null,null,null,null,null,null,null,null,null,null,null,null,null,null,null,null,null,null,null,null,null,null,null,null,null,null,null,{"$f":"BA335+BA336","v":0}]
[null,null,null,null,null,null,null,null,null,null,null,null,null,null,null,null,null,null,null,null,null,null,null,null,null,null,null,null,null,null,null,null,null,null,null,"LEI",null,null,null,null,null,null,null,null,"EURO"]
["VALOARE TOTALĂ",null,null,null,null,null,null,null,null,null,null,null,null,null,null,null,null,null,null,null,null,null,null,null,null,null,null,null,null,null,null,null,null,null,null,{"$f":"AS339*Z265","v":0},null,null,null,null,null,null,null,null,{"$f":"AJ337","v":0}]
["VALOARE ELIGIBILĂ",null,null,null,null,null,null,null,null,null,null,null,null,null,null,null,null,null,null,null,null,null,null,null,null,null,null,null,null,null,null,null,null,null,null,{"$f":"AS340*Z265","v":0},null,null,null,null,null,null,null,null,{"$f":"AJ335+AJ336","v":0}]
["VALOARE NEELIGIBILĂ",null,null,null,null,null,null,null,null,null,null,null,null,null,null,null,null,null,null,null,null,null,null,null,null,null,null,null,null,null,null,null,null,null,null,{"$f":"AS341*Z265","v":0},null,null,null,null,null,null,null,null,{"$f":"AS335+AS336","v":0}]
[]
["Plan Financiar",null,null,null,null,null,null,null,null,null,null,null,null,null,null,null,null,null,null,null,null,null,null,null,null,null,null,null,null,null,null,null,null,null,null,"Cheltuieli eligibile EURO",null,null,null,null,null,null,null,null,"Cheltuieli neeligibile EURO",null,null,null,null,null,null,null,"Total"]
["Ajutor public nerambursabil (contribuţie UE şi cofinanţare naţională)",null,null,null,null,null,null,null,null,null,null,null,null,null,null,null,null,null,null,null,null,null,null,null,null,null,null,null,null,null,null,null,null,null,null,null,null,null,null,null,null,null,null,null,null,null,null,null,null,null,null,null,{"$f":"SUM(AJ344:AZ344)","v":0}]
["Cofinantare privata, din care:",null,null,null,null,null,null,null,null,null,null,null,null,null,null,null,null,null,null,null,null,null,null,null,null,null,null,null,null,null,null,null,null,null,null,{"$f":"SUM(AJ346:AR348)","v":0},null,null,null,null,null,null,null,null,{"$f":"SUM(AS346:AZ348)","v":0},null,null,null,null,null,null,null,0]
[null,null,null,null,null,null,null,null,null,null,null,null,null,null,null,"- contributia in natura",null,null,null,null,null,null,null,null,null,null,null,null,null,null,null,null,null,null,null,null,null,null,null,null,null,null,null,null,null,null,null,null,null,null,null,null,0]
[null,null,null,null,null,null,null,null,null,null,null,null,null,null,null,"- autofinanțare",null,null,null,null,null,null,null,null,null,null,null,null,null,null,null,null,null,null,null,null,null,null,null,null,null,null,null,null,null,null,null,null,null,null,null,null,0]
[null,null,null,null,null,null,null,null,null,null,null,null,null,null,null,"- împrumuturi",null,null,null,null,null,null,null,null,null,null,null,null,null,null,null,null,null,null,null,null,null,null,null,null,null,null,null,null,null,null,null,null,null,null,null,null,0]
["TOTAL PROIECT",null,null,null,null,null,null,null,null,null,null,null,null,null,null,null,null,null,null,null,null,null,null,null,null,null,null,null,null,null,null,null,null,null,null,{"$f":"AJ344+AJ345","v":0},null,null,null,null,null,null,null,null,{"$f":"AS345","v":0},null,null,null,null,null,null,null,0]
["Procent contribuţie publică",null,null,null,null,null,null,null,null,null,null,null,null,null,null,null,null,null,null,null,null,null,null,null,null,null,null,null,null,null,null,null,null,{"$f":"AJ344*100/AJ349","v":{"$error":"#DIV/0!"}},{"$f":"IF(AJ349=0,0,AH350)","v":0},{"$f":"AI350","v":0},null,null,null,null,null,null,null,"%"]
["Avans solicitat",null,null,null,null,null,null,null,null,null,null,null,null,null,null,null,null,null,null,null,null,null,null,null,null,null,null,null,null,null,null,null,null,null,null,0]
["Procent avans solicitat ca procent din ajutorul public nerambursabil",null,null,null,null,null,null,null,null,null,null,null,null,null,null,null,null,null,null,null,null,null,null,null,null,null,null,null,null,null,null,null,null,null,{"$f":"AJ351*100/AJ344","v":{"$error":"#DIV/0!"}},{"$f":"IF(AJ344=0,0,AI352)","v":0},null,null,null,null,null,null,null,null,{"$f":"IF(AJ352<=50,\"Suma avans mai mica de 50% din ajutorul public\",\"Suma avans mai mare de 50% din ajutorul public\")","v":"Suma avans mai mica de 50% din ajutorul public"}]
["Buget Indicativ HG 907 (Euro) pentru INVESTIŢII în activitatea de procesare şi/sau comercializare"]
["MINISTERUL AGRICULTURII ŞI DEZVOLTĂRII RURALE"]
["AGENŢIA PENTRU FINANŢAREA INVESTIŢIILOR RURALE"]
[]
[]
[null,"Procentul aferent intensităţii",null,null,null,null,null,null,null,null,null,null,null,null,null,null,null,null,null,"Curs EURO",null,null,null,null,null,{"$f":"Z265","v":0},null,null,null,null,null,null,null,null,null,"Data întocmirii Studiului de Fezabilitate"]
[]
["Măsura",null,null,null,null,null,null,null,null,null,null,null,null,null,null,null,null,null,null,null,null,null,null,null,null,null,null,null,null,null,null,null,null,null,null,"2.1. (2A)"]
["Denumirea capitolelor de cheltuieli",null,null,null,null,null,null,null,null,null,null,null,null,null,null,null,null,null,null,null,null,null,null,null,null,null,null,null,null,null,null,null,null,null,null,"Cheltuieli eligibile",null,null,null,null,null,null,null,null,"Cheltuieli neeligibile",null,null,null,null,null,null,null,"Total"]
[null,null,null,null,null,null,null,null,null,null,null,null,null,null,null,null,null,null,null,null,null,null,null,null,null,null,null,null,null,null,null,null,null,null,null,"EURO",null,null,null,null,null,null,null,null,"EURO",null,null,null,null,null,null,null,"EURO"]
[1,null,null,null,null,null,null,null,null,null,null,null,null,null,null,null,null,null,null,null,null,null,null,null,null,null,null,null,null,null,null,null,null,null,null,2,null,null,null,null,null,null,null,null,3,null,null,null,null,null,null,null,4]
["Capitolul 1 Cheltuieli pentru obtinerea şi amenajarea terenului - total, din care:",null,null,null,null,null,null,null,null,null,null,null,null,null,null,null,null,null,null,null,null,null,null,null,null,null,null,null,null,null,null,null,null,null,null,{"$f":"SUM(AJ366:AR368)","v":0},null,null,null,null,null,null,null,null,{"$f":"SUM(AS365:AZ368)","v":0},null,null,null,null,null,null,null,{"$f":"SUM(AJ364:AZ364)","v":0}]
["1.1 Obţinerea terenului",null,null,null,null,null,null,null,null,null,null,null,null,null,null,null,null,null,null,null,null,null,null,null,null,null,null,null,null,null,null,null,null,null,null,null,null,null,null,null,null,null,null,null,null,null,null,null,null,null,null,null,{"$f":"SUM(AJ365:AZ365)","v":0}]
["1.2 Amenajarea terenului",null,null,null,null,null,null,null,null,null,null,null,null,null,null,null,null,null,null,null,null,null,null,null,null,null,null,null,null,null,null,null,null,null,null,null,null,null,null,null,null,null,null,null,null,null,null,null,null,null,null,null,0]
["1.3 Amenajari pentru protecţia mediului şi aducerea la starea iniţială",null,null,null,null,null,null,null,null,null,null,null,null,null,null,null,null,null,null,null,null,null,null,null,null,null,null,null,null,null,null,null,null,null,null,null,null,null,null,null,null,null,null,null,null,null,null,null,null,null,null,null,0]
["1.4 Cheltuieli pentru relocarea/protecţia utilităţilor",null,null,null,null,null,null,null,null,null,null,null,null,null,null,null,null,null,null,null,null,null,null,null,null,null,null,null,null,null,null,null,null,null,null,null,null,null,null,null,null,null,null,null,null,null,null,null,null,null,null,null,0]
["Capitolul 2 Cheltuieli pentru asigurarea utilităţilor necesare obiectivului de investiţii",null,null,null,null,null,null,null,null,null,null,null,null,null,null,null,null,null,null,null,null,null,null,null,null,null,null,null,null,null,null,null,null,null,null,null,null,null,null,null,null,null,null,null,null,null,null,null,null,null,null,null,0]
["Capitolul 3 Cheltuieli pentru proiectare şi asistenţă tehnică - total, din care:",null,null,null,null,null,null,null,null,null,null,null,null,null,null,null,null,null,null,null,null,null,null,null,null,null,null,null,null,null,null,null,null,null,null,{"$f":"AJ371+AJ375+AJ376+AJ377+AJ378+AJ386+AJ389","v":0},null,null,null,null,null,null,null,null,{"$f":"AS371+AS375+AS376+AS377+AS378+AS385+AS386+AS389","v":0},null,null,null,null,null,null,null,0]
["3.1 Studii",null,null,null,null,null,null,null,null,null,null,null,null,null,null,null,null,null,null,null,null,null,null,null,null,null,null,null,null,null,null,null,null,null,null,{"$f":"SUM(AJ372:AR374)","v":0},null,null,null,null,null,null,null,null,{"$f":"SUM(AS372:AZ374)","v":0},null,null,null,null,null,null,null,0]
["       3.1.1 Studii de teren",null,null,null,null,null,null,null,null,null,null,null,null,null,null,null,null,null,null,null,null,null,null,null,null,null,null,null,null,null,null,null,null,null,null,null,null,null,null,null,null,null,null,null,null,null,null,null,null,null,null,null,0]
["       3.1.2 Raport privind impactul asupra mediului",null,null,null,null,null,null,null,null,null,null,null,null,null,null,null,null,null,null,null,null,null,null,null,null,null,null,null,null,null,null,null,null,null,null,null,null,null,null,null,null,null,null,null,null,null,null,null,null,null,null,null,0]
["       3.1.3 Alte studii specifice",null,null,null,null,null,null,null,null,null,null,null,null,null,null,null,null,null,null,null,null,null,null,null,null,null,null,null,null,null,null,null,null,null,null,null,null,null,null,null,null,null,null,null,null,null,null,null,null,null,null,null,0]
["3.2 Documentaţii-suport şi cheltuieli pentru obţinerea de avize, acorduri şi autorizaţii",null,null,null,null,null,null,null,null,null,null,null,null,null,null,null,null,null,null,null,null,null,null,null,null,null,null,null,null,null,null,null,null,null,null,null,null,null,null,null,null,null,null,null,null,null,null,null,null,null,null,null,0]
["3.3 Expertizare tehnică",null,null,null,null,null,null,null,null,null,null,null,null,null,null,null,null,null,null,null,null,null,null,null,null,null,null,null,null,null,null,null,null,null,null,null,null,null,null,null,null,null,null,null,null,null,null,null,null,null,null,null,0]
["3.4 Certificarea performanţei energetice şi auditul energetic al clădirilor",null,null,null,null,null,null,null,null,null,null,null,null,null,null,null,null,null,null,null,null,null,null,null,null,null,null,null,null,null,null,null,null,null,null,null,null,null,null,null,null,null,null,null,null,null,null,null,null,null,null,null,0]
["3.5 Proiectare",null,null,null,null,null,null,null,null,null,null,null,null,null,null,null,null,null,null,null,null,null,null,null,null,null,null,null,null,null,null,null,null,null,null,{"$f":"SUM(AJ379:AR384)","v":0},null,null,null,null,null,null,null,null,{"$f":"SUM(AS379:AZ384)","v":0},null,null,null,null,null,null,null,0]
["      3.5.1 Temă de proiectare",null,null,null,null,null,null,null,null,null,null,null,null,null,null,null,null,null,null,null,null,null,null,null,null,null,null,null,null,null,null,null,null,null,null,null,null,null,null,null,null,null,null,null,null,null,null,null,null,null,null,null,0]
["      3.5.2 Studiu de prefezabilitate",null,null,null,null,null,null,null,null,null,null,null,null,null,null,null,null,null,null,null,null,null,null,null,null,null,null,null,null,null,null,null,null,null,null,null,null,null,null,null,null,null,null,null,null,null,null,null,null,null,null,null,0]
["      3.5.3. Studiu de fezabilitate/documentaţie de avizare a lucrărilor de intervenţii\n                şi deviz general",null,null,null,null,null,null,null,null,null,null,null,null,null,null,null,null,null,null,null,null,null,null,null,null,null,null,null,null,null,null,null,null,null,null,null,null,null,null,null,null,null,null,null,null,null,null,null,null,null,null,null,0]
["      3.5.4. Documentaţiile tehnice necesare în vederea obţinerii avizelor/\n                acordurilor/autorizaţiilor",null,null,null,null,null,null,null,null,null,null,null,null,null,null,null,null,null,null,null,null,null,null,null,null,null,null,null,null,null,null,null,null,null,null,null,null,null,null,null,null,null,null,null,null,null,null,null,null,null,null,null,0]
["      3.5.5. Verificarea tehnică de calitate a proiectului tehnic şi a detaliilor de execuţie",null,null,null,null,null,null,null,null,null,null,null,null,null,null,null,null,null,null,null,null,null,null,null,null,null,null,null,null,null,null,null,null,null,null,null,null,null,null,null,null,null,null,null,null,null,null,null,null,null,null,null,0]
["      3.5.6. Proiect tehnic şi detalii de execuţie",null,null,null,null,null,null,null,null,null,null,null,null,null,null,null,null,null,null,null,null,null,null,null,null,null,null,null,null,null,null,null,null,null,null,null,null,null,null,null,null,null,null,null,null,null,null,null,null,null,null,null,0]
["3.6 Organizarea procedurilor de achiziţie",null,null,null,null,null,null,null,null,null,null,null,null,null,null,null,null,null,null,null,null,null,null,null,null,null,null,null,null,null,null,null,null,null,null,null,null,null,null,null,null,null,null,null,null,null,null,null,null,null,null,null,0]
["3.7 Consultanţă",null,null,null,null,null,null,null,null,null,null,null,null,null,null,null,null,null,null,null,null,null,null,null,null,null,null,null,null,null,null,null,null,null,null,{"$f":"AJ387","v":0},null,null,null,null,null,null,null,null,{"$f":"AS387+AS388","v":0},null,null,null,null,null,null,null,0]
["      3.7.1 Managementul de proiect pentru obiectivul de investiţii",null,null,null,null,null,null,null,null,null,null,null,null,null,null,null,null,null,null,null,null,null,null,null,null,null,null,null,null,null,null,null,null,null,null,null,null,null,null,null,null,null,null,null,null,null,null,null,null,null,null,null,0]
["      3.7.2 Auditul financiar",null,null,null,null,null,null,null,null,null,null,null,null,null,null,null,null,null,null,null,null,null,null,null,null,null,null,null,null,null,null,null,null,null,null,null,null,null,null,null,null,null,null,null,null,null,null,null,null,null,null,null,0]
["3.8 Asistenţă Tehnică",null,null,null,null,null,null,null,null,null,null,null,null,null,null,null,null,null,null,null,null,null,null,null,null,null,null,null,null,null,null,null,null,null,null,{"$f":"AJ390+AJ393","v":0},null,null,null,null,null,null,null,null,{"$f":"AS390+AS393","v":0},null,null,null,null,null,null,null,0]
["      3.8.1 Asistenţă Tehnică din partea proiectantului",null,null,null,null,null,null,null,null,null,null,null,null,null,null,null,null,null,null,null,null,null,null,null,null,null,null,null,null,null,null,null,null,null,null,{"$f":"SUM(AJ391:AR392)","v":0},null,null,null,null,null,null,null,null,{"$f":"SUM(AS391:AZ392)","v":0},null,null,null,null,null,null,null,0]
["           3.8.1.1 pe perioada de execuţie a lucrărilor",null,null,null,null,null,null,null,null,null,null,null,null,null,null,null,null,null,null,null,null,null,null,null,null,null,null,null,null,null,null,null,null,null,null,null,null,null,null,null,null,null,null,null,null,null,null,null,null,null,null,null,0]
["           3.8.1.2 pentru participarea proiectantului la fazele incluse în programul de control al\n                       lucrărilor de execuţie, avizat de către Inspectoratul de Stat în Construcţii",null,null,null,null,null,null,null,null,null,null,null,null,null,null,null,null,null,null,null,null,null,null,null,null,null,null,null,null,null,null,null,null,null,null,null,null,null,null,null,null,null,null,null,null,null,null,null,null,null,null,null,0]
["      3.8.2 Dirigenţie de şantier",null,null,null,null,null,null,null,null,null,null,null,null,null,null,null,null,null,null,null,null,null,null,null,null,null,null,null,null,null,null,null,null,null,null,null,null,null,null,null,null,null,null,null,null,null,null,null,null,null,null,null,0]
["Verificare încadrare cheltuieli capitolul 3",null,null,null,null,null,null,null,null,null,null,null,null,null,null,null,null,null,null,null,null,null,null,null,null,null,null,null,null,null,null,null,{"$f":"AJ364+AJ369+AJ395","v":0},{"$f":"IF(AG394=0,0,AI394)","v":0},null,"verificarea se face in Totalizator"]
["Capitolul 4 Cheltuieli pentru investiţia de bază - total, din care:",null,null,null,null,null,null,null,null,null,null,null,null,null,null,null,null,null,null,null,null,null,null,null,null,null,null,null,null,null,null,null,null,null,null,{"$f":"AJ396+AJ403","v":0},null,null,null,null,null,null,null,null,{"$f":"AS396+AS403","v":0},null,null,null,null,null,null,null,{"$f":"SUM(AJ395:AZ395)","v":0}]
["A - Constructii şi lucrări de intervenţii - total, din care:",null,null,null,null,null,null,null,null,null,null,null,null,null,null,null,null,null,null,null,null,null,null,null,null,null,null,null,null,null,null,null,null,null,null,{"$f":"SUM(AJ397:AR402)","v":0},null,null,null,null,null,null,null,null,{"$f":"SUM(AS397:AZ402)","v":0},null,null,null,null,null,null,null,0]
["4.1 Construcţii şi instalaţii",null,null,null,null,null,null,null,null,null,null,null,null,null,null,null,null,null,null,null,null,null,null,null,null,null,null,null,null,null,null,null,null,null,null,null,null,null,null,null,null,null,null,null,null,null,null,null,null,null,null,null,0]
["4.2 Montaj utilaje, echipamente tehnologice şi funcţionale",null,null,null,null,null,null,null,null,null,null,null,null,null,null,null,null,null,null,null,null,null,null,null,null,null,null,null,null,null,null,null,null,null,null,null,null,null,null,null,null,null,null,null,null,null,null,null,null,null,null,null,0]
["4.3 Utilaje, echipamente tehnologice şi funcţionale care necesită montaj",null,null,null,null,null,null,null,null,null,null,null,null,null,null,null,null,null,null,null,null,null,null,null,null,null,null,null,null,null,null,null,null,null,null,null,null,null,null,null,null,null,null,null,null,null,null,null,null,null,null,null,0]
["4.4 Utilaje, echipamente tehnologice şi funcţionale care nu necesită montaj şi echipamente",null,null,null,null,null,null,null,null,null,null,null,null,null,null,null,null,null,null,null,null,null,null,null,null,null,null,null,null,null,null,null,null,null,null,null,null,null,null,null,null,null,null,null,null,null,null,null,null,null,null,null,0]
["4.5 Dotări",null,null,null,null,null,null,null,null,null,null,null,null,null,null,null,null,null,null,null,null,null,null,null,null,null,null,null,null,null,null,null,null,null,null,null,null,null,null,null,null,null,null,null,null,null,null,null,null,null,null,null,0]
["4.6 Active necorporale",null,null,null,null,null,null,null,null,null,null,null,null,null,null,null,null,null,null,null,null,null,null,null,null,null,null,null,null,null,null,null,null,null,null,null,null,null,null,null,null,null,null,null,null,null,null,null,null,null,null,null,0]
["B - Cheltuieli pentru investitii în culturi/plantaţii",null,null,null,null,null,null,null,null,null,null,null,null,null,null,null,null,null,null,null,null,null,null,null,null,null,null,null,null,null,null,null,null,null,null,{"$f":"SUM(AJ404:AR408)","v":0},null,null,null,null,null,null,null,null,{"$f":"SUM(AS404:AZ408)","v":0},null,null,null,null,null,null,null,0]
["Subcapitol 1 - Lucrări de pregătire a terenului",null,null,null,null,null,null,null,null,null,null,null,null,null,null,null,null,null,null,null,null,null,null,null,null,null,null,null,null,null,null,null,null,null,null,null,null,null,null,null,null,null,null,null,null,null,null,null,null,null,null,null,0]
["Subcapitol 2 - Infiinţarea plantaţiei",null,null,null,null,null,null,null,null,null,null,null,null,null,null,null,null,null,null,null,null,null,null,null,null,null,null,null,null,null,null,null,null,null,null,null,null,null,null,null,null,null,null,null,null,null,null,null,null,null,null,null,0]
["Subcapitol 3 - Intreţinere plantaţie în anul 1",null,null,null,null,null,null,null,null,null,null,null,null,null,null,null,null,null,null,null,null,null,null,null,null,null,null,null,null,null,null,null,null,null,null,null,null,null,null,null,null,null,null,null,null,null,null,null,null,null,null,null,0]
["Subcapitol 4 - Intreţinere plantaţie în anul 2",null,null,null,null,null,null,null,null,null,null,null,null,null,null,null,null,null,null,null,null,null,null,null,null,null,null,null,null,null,null,null,null,null,null,null,null,null,null,null,null,null,null,null,null,null,null,null,null,null,null,null,0]
["Subcapitol 5 - Instalat sistem susţinere şi împrejmuire",null,null,null,null,null,null,null,null,null,null,null,null,null,null,null,null,null,null,null,null,null,null,null,null,null,null,null,null,null,null,null,null,null,null,null,null,null,null,null,null,null,null,null,null,null,null,null,null,null,null,null,0]
["Capitolul 5 Alte cheltuieli - total, din care:",null,null,null,null,null,null,null,null,null,null,null,null,null,null,null,null,null,null,null,null,null,null,null,null,null,null,null,null,null,null,null,null,null,null,{"$f":"AJ410+AJ413+AJ419+AJ420","v":0},null,null,null,null,null,null,null,null,{"$f":"AS410+AS413+AS419+AS420","v":0},null,null,null,null,null,null,null,0]
["5.1 Organizare de şantier",null,null,null,null,null,null,null,null,null,null,null,null,null,null,null,null,null,null,null,null,null,null,null,null,null,null,null,null,null,null,null,null,null,null,{"$f":"SUM(AJ411:AR412)","v":0},null,null,null,null,null,null,null,null,{"$f":"SUM(AS411:AZ412)","v":0},null,null,null,null,null,null,null,0]
["      5.1.1 lucrări de construcţii şi instalaţii aferente organizării de şantier",null,null,null,null,null,null,null,null,null,null,null,null,null,null,null,null,null,null,null,null,null,null,null,null,null,null,null,null,null,null,null,null,null,null,null,null,null,null,null,null,null,null,null,null,null,null,null,null,null,null,null,0]
["      5.1.2 cheltuieli conexe orgănizării şantierului",null,null,null,null,null,null,null,null,null,null,null,null,null,null,null,null,null,null,null,null,null,null,null,null,null,null,null,null,null,null,null,null,null,null,null,null,null,null,null,null,null,null,null,null,null,null,null,null,null,null,null,0]
["5.2 Comisioane, taxe, costul creditului",null,null,null,null,null,null,null,null,null,null,null,null,null,null,null,null,null,null,null,null,null,null,null,null,null,null,null,null,null,null,null,null,null,null,{"$f":"AJ415+AJ416+AJ418","v":0},null,null,null,null,null,null,null,null,{"$f":"SUM(AS414:AZ418)","v":0},null,null,null,null,null,null,null,0]
["      5.2.1 Comisioanele şi dobânzile aferente creditului băncii finanţatoare",null,null,null,null,null,null,null,null,null,null,null,null,null,null,null,null,null,null,null,null,null,null,null,null,null,null,null,null,null,null,null,null,null,null,null,null,null,null,null,null,null,null,null,null,null,null,null,null,null,null,null,0]
["      5.2.2 Cota aferentă ISC pentru controlul calităţii lucrărilor de construcţii",null,null,null,null,null,null,null,null,null,null,null,null,null,null,null,null,null,null,null,null,null,null,null,null,null,null,null,null,null,null,null,null,null,null,null,null,null,null,null,null,null,null,null,null,null,null,null,null,null,null,null,0]
["      5.2.3 Cota aferentă ISC pentru controlul statului în amenajarea teritoriului, urbanism şi\n               pentru autorizarea lucrărilor de construcţii",null,null,null,null,null,null,null,null,null,null,null,null,null,null,null,null,null,null,null,null,null,null,null,null,null,null,null,null,null,null,null,null,null,null,null,null,null,null,null,null,null,null,null,null,null,null,null,null,null,null,null,0]
["      5.2.4 Cota aferentă Casei Sociale a Constructorilor - CSC",null,null,null,null,null,null,null,null,null,null,null,null,null,null,null,null,null,null,null,null,null,null,null,null,null,null,null,null,null,null,null,null,null,null,null,null,null,null,null,null,null,null,null,null,null,null,null,null,null,null,null,0]
["      5.2.5 Taxe pentru acorduri, avize conforme şi autorizaţia de construire/ desfiinţare",null,null,null,null,null,null,null,null,null,null,null,null,null,null,null,null,null,null,null,null,null,null,null,null,null,null,null,null,null,null,null,null,null,null,null,null,null,null,null,null,null,null,null,null,null,null,null,null,null,null,null,0]
["5.3 Cheltuieli diverse şi neprevăzute",null,null,null,null,null,null,null,null,null,null,null,null,null,null,null,null,null,null,null,null,null,null,null,null,null,null,null,null,null,null,null,null,null,null,null,null,null,null,null,null,null,null,null,null,null,null,null,null,null,null,null,0]
["5.4 Cheltuieli pentru informare şi publicitate",null,null,null,null,null,null,null,null,null,null,null,null,null,null,null,null,null,null,null,null,null,null,null,null,null,null,null,null,null,null,null,null,null,null,null,null,null,null,null,null,null,null,null,null,null,null,null,null,null,null,null,0]
["Procent cheltuieli diverse şi neprevăzute"]
["Capitolul 6 Cheltuieli pentru darea în exploatare - total, din care:",null,null,null,null,null,null,null,null,null,null,null,null,null,null,null,null,null,null,null,null,null,null,null,null,null,null,null,null,null,null,null,null,null,null,{"$f":"SUM(AJ423:AR424)","v":0},null,null,null,null,null,null,null,null,{"$f":"SUM(AS423:AZ424)","v":0},null,null,null,null,null,null,null,{"$f":"SUM(AJ422:AZ422)","v":0}]
["6.1 Pregătirea personalului de exploatare",null,null,null,null,null,null,null,null,null,null,null,null,null,null,null,null,null,null,null,null,null,null,null,null,null,null,null,null,null,null,null,null,null,null,null,null,null,null,null,null,null,null,null,null,null,null,null,null,null,null,null,0]
["6.2 Probe tehnologice şi teste",null,null,null,null,null,null,null,null,null,null,null,null,null,null,null,null,null,null,null,null,null,null,null,null,null,null,null,null,null,null,null,null,null,null,null,null,null,null,null,null,null,null,null,null,null,null,null,null,null,null,null,0]
["TOTAL GENERAL",null,null,null,null,null,null,null,null,null,null,null,null,null,null,null,null,null,null,null,null,null,null,null,null,null,null,null,null,null,null,null,null,null,null,{"$f":"AJ364+AJ369+AJ370+AJ395+AJ409+AJ422","v":0},null,null,null,null,null,null,null,null,{"$f":"AS364+AS369+AS370+AS395+AS409+AS422","v":0},null,null,null,null,null,null,null,0]
["Verificare actualizare",null,null,null,null,null,null,null,null,null,null,null,null,null,null,null,null,null,null,null,null,null,null,null,null,null,null,null,null,null,null,{"$f":"AJ427*100/AJ425","v":{"$error":"#DIV/0!"}},null,null,{"$f":"IF(AJ425=0,0,AF426)","v":0},{"$f":"IF(AI426<=5,\"actualizare mai mică de 5% din valoarea eligibila\",\"actualizare mai mare de 5% din valoarea eligibila\")","v":"actualizare mai mică de 5% din valoarea eligibila"}]
["ACTUALIZARE Cheltuieli Eligibile (max 5%)",null,null,null,null,null,null,null,null,null,null,null,null,null,null,null,null,null,null,null,null,null,null,null,null,null,null,null,null,null,null,null,null,null,null,null,null,null,null,null,null,null,null,null,null,null,null,null,null,null,null,null,{"$f":"SUM(AJ427:AZ427)","v":0}]
["TOTAL GENERAL CU ACTUALIZARE",null,null,null,null,null,null,null,null,null,null,null,null,null,null,null,null,null,null,null,null,null,null,null,null,null,null,null,null,null,null,null,null,null,null,{"$f":"AJ425+AJ427","v":0},null,null,null,null,null,null,null,null,{"$f":"AS425","v":0},null,null,null,null,null,null,null,0]
["Valoare TVA",null,null,null,null,null,null,null,null,null,null,null,null,null,null,null,null,null,null,null,null,null,null,null,null,null,null,null,null,null,null,null,null,null,null,null,null,null,null,null,null,null,null,null,null,null,null,null,null,null,null,null,0]
["TOTAL GENERAL inclusiv TVA",null,null,null,null,null,null,null,null,null,null,null,null,null,null,null,null,null,null,null,null,null,null,null,null,null,null,null,null,null,null,null,null,null,null,{"$f":"BA428+BA429","v":0}]
[null,null,null,null,null,null,null,null,null,null,null,null,null,null,null,null,null,null,null,null,null,null,null,null,null,null,null,null,null,null,null,null,null,null,null,"LEI",null,null,null,null,null,null,null,null,"EURO"]
["VALOARE TOTALĂ",null,null,null,null,null,null,null,null,null,null,null,null,null,null,null,null,null,null,null,null,null,null,null,null,null,null,null,null,null,null,null,null,null,null,{"$f":"AS432*Z358","v":0},null,null,null,null,null,null,null,null,{"$f":"AJ430","v":0}]
["VALOARE ELIGIBILĂ",null,null,null,null,null,null,null,null,null,null,null,null,null,null,null,null,null,null,null,null,null,null,null,null,null,null,null,null,null,null,null,null,null,null,{"$f":"AS433*Z358","v":0},null,null,null,null,null,null,null,null,{"$f":"AJ428+AJ429","v":0}]
["VALOARE NEELIGIBILĂ",null,null,null,null,null,null,null,null,null,null,null,null,null,null,null,null,null,null,null,null,null,null,null,null,null,null,null,null,null,null,null,null,null,null,{"$f":"AS434*Z358","v":0},null,null,null,null,null,null,null,null,{"$f":"AS428+AS429","v":0}]
["Plan Financiar",null,null,null,null,null,null,null,null,null,null,null,null,null,null,null,null,null,null,null,null,null,null,null,null,null,null,null,null,null,null,null,null,null,null,"Cheltuieli eligibile EURO",null,null,null,null,null,null,null,null,"Cheltuieli neeligibile EURO",null,null,null,null,null,null,null,"Total"]
["Ajutor public nerambursabil (contribuţie UE şi cofinanţare naţională)",null,null,null,null,null,null,null,null,null,null,null,null,null,null,null,null,null,null,null,null,null,null,null,null,null,null,null,null,null,null,null,null,null,null,null,null,null,null,null,null,null,null,null,null,null,null,null,null,null,null,null,{"$f":"SUM(AJ436:AZ436)","v":0}]
["Cofinantare privata, din care:",null,null,null,null,null,null,null,null,null,null,null,null,null,null,null,null,null,null,null,null,null,null,null,null,null,null,null,null,null,null,null,null,null,null,{"$f":"SUM(AJ438:AR440)","v":0},null,null,null,null,null,null,null,null,{"$f":"SUM(AS438:AZ440)","v":0},null,null,null,null,null,null,null,0]
[null,null,null,null,null,null,null,null,null,null,null,null,null,null,null,"- contributia in natura",null,null,null,null,null,null,null,null,null,null,null,null,null,null,null,null,null,null,null,null,null,null,null,null,null,null,null,null,null,null,null,null,null,null,null,null,0]
[null,null,null,null,null,null,null,null,null,null,null,null,null,null,null,"- autofinanțare",null,null,null,null,null,null,null,null,null,null,null,null,null,null,null,null,null,null,null,null,null,null,null,null,null,null,null,null,null,null,null,null,null,null,null,null,0]
[null,null,null,null,null,null,null,null,null,null,null,null,null,null,null,"- împrumuturi",null,null,null,null,null,null,null,null,null,null,null,null,null,null,null,null,null,null,null,null,null,null,null,null,null,null,null,null,null,null,null,null,null,null,null,null,0]
["TOTAL PROIECT",null,null,null,null,null,null,null,null,null,null,null,null,null,null,null,null,null,null,null,null,null,null,null,null,null,null,null,null,null,null,null,null,null,null,{"$f":"AJ436+AJ437","v":0},null,null,null,null,null,null,null,null,{"$f":"AS437","v":0},null,null,null,null,null,null,null,0]
["Procent contribuţie publică",null,null,null,null,null,null,null,null,null,null,null,null,null,null,null,null,null,null,null,null,null,null,null,null,null,null,null,null,null,null,null,null,{"$f":"AJ436*100/AJ441","v":{"$error":"#DIV/0!"}},{"$f":"IF(AJ441=0,0,AH442)","v":0},{"$f":"AI442","v":0},null,null,null,null,null,null,null,"%"]
["Avans solicitat"]
["Procent avans solicitat ca procent din ajutorul public nerambursabil",null,null,null,null,null,null,null,null,null,null,null,null,null,null,null,null,null,null,null,null,null,null,null,null,null,null,null,null,null,null,null,null,null,{"$f":"AJ443*100/AJ436","v":{"$error":"#DIV/0!"}},{"$f":"IF(AJ436=0,0,AI444)","v":0},null,null,null,null,null,null,null,null,{"$f":"IF(AJ444<=50,\"Suma avans mai mica de 50% din ajutorul public\",\"Suma avans mai mare de 50% din ajutorul public\")","v":"Suma avans mai mica de 50% din ajutorul public"}]
["Buget Indicativ HG 907 (Euro) pentru INVESTIŢII pentru agromediu "]
["MINISTERUL AGRICULTURII ŞI DEZVOLTĂRII RURALE"]
["AGENŢIA PENTRU FINANŢAREA INVESTIŢIILOR RURALE"]
[]
[]
[null,"Procentul aferent intensităţii",null,null,null,null,null,null,null,null,null,null,null,null,null,null,null,null,null,"Curs EURO",null,null,null,null,null,{"$f":"Z358","v":0},null,null,null,null,null,null,null,null,null,"Data întocmirii Studiului de Fezabilitate"]
[]
["Măsura",null,null,null,null,null,null,null,null,null,null,null,null,null,null,null,null,null,null,null,null,null,null,null,null,null,null,null,null,null,null,null,null,null,null,"2.1. (2A)"]
["Denumirea capitolelor de cheltuieli",null,null,null,null,null,null,null,null,null,null,null,null,null,null,null,null,null,null,null,null,null,null,null,null,null,null,null,null,null,null,null,null,null,null,"Cheltuieli eligibile",null,null,null,null,null,null,null,null,"Cheltuieli neeligibile",null,null,null,null,null,null,null,"Total"]
[null,null,null,null,null,null,null,null,null,null,null,null,null,null,null,null,null,null,null,null,null,null,null,null,null,null,null,null,null,null,null,null,null,null,null,"EURO",null,null,null,null,null,null,null,null,"EURO",null,null,null,null,null,null,null,"EURO"]
[1,null,null,null,null,null,null,null,null,null,null,null,null,null,null,null,null,null,null,null,null,null,null,null,null,null,null,null,null,null,null,null,null,null,null,2,null,null,null,null,null,null,null,null,3,null,null,null,null,null,null,null,4]
["Capitolul 1 Cheltuieli pentru obtinerea şi amenajarea terenului - total, din care:",null,null,null,null,null,null,null,null,null,null,null,null,null,null,null,null,null,null,null,null,null,null,null,null,null,null,null,null,null,null,null,null,null,null,{"$f":"SUM(AJ458:AR460)","v":0},null,null,null,null,null,null,null,null,{"$f":"SUM(AS457:AZ460)","v":0},null,null,null,null,null,null,null,{"$f":"SUM(AJ456:AZ456)","v":0}]
["1.1 Obţinerea terenului",null,null,null,null,null,null,null,null,null,null,null,null,null,null,null,null,null,null,null,null,null,null,null,null,null,null,null,null,null,null,null,null,null,null,null,null,null,null,null,null,null,null,null,null,null,null,null,null,null,null,null,{"$f":"SUM(AJ457:AZ457)","v":0}]
["1.2 Amenajarea terenului",null,null,null,null,null,null,null,null,null,null,null,null,null,null,null,null,null,null,null,null,null,null,null,null,null,null,null,null,null,null,null,null,null,null,null,null,null,null,null,null,null,null,null,null,null,null,null,null,null,null,null,0]
["1.3 Amenajari pentru protecţia mediului şi aducerea la starea iniţială",null,null,null,null,null,null,null,null,null,null,null,null,null,null,null,null,null,null,null,null,null,null,null,null,null,null,null,null,null,null,null,null,null,null,null,null,null,null,null,null,null,null,null,null,null,null,null,null,null,null,null,0]
["1.4 Cheltuieli pentru relocarea/protecţia utilităţilor",null,null,null,null,null,null,null,null,null,null,null,null,null,null,null,null,null,null,null,null,null,null,null,null,null,null,null,null,null,null,null,null,null,null,null,null,null,null,null,null,null,null,null,null,null,null,null,null,null,null,null,0]
["Capitolul 2 Cheltuieli pentru asigurarea utilităţilor necesare obiectivului de investiţii",null,null,null,null,null,null,null,null,null,null,null,null,null,null,null,null,null,null,null,null,null,null,null,null,null,null,null,null,null,null,null,null,null,null,null,null,null,null,null,null,null,null,null,null,null,null,null,null,null,null,null,0]
["Capitolul 3 Cheltuieli pentru proiectare şi asistenţă tehnică - total, din care:",null,null,null,null,null,null,null,null,null,null,null,null,null,null,null,null,null,null,null,null,null,null,null,null,null,null,null,null,null,null,null,null,null,null,{"$f":"AJ463+AJ467+AJ468+AJ469+AJ470+AJ478+AJ481","v":0},null,null,null,null,null,null,null,null,{"$f":"AS463+AS467+AS468+AS469+AS470+AS477+AS478+AS481","v":0},null,null,null,null,null,null,null,0]
["3.1 Studii",null,null,null,null,null,null,null,null,null,null,null,null,null,null,null,null,null,null,null,null,null,null,null,null,null,null,null,null,null,null,null,null,null,null,{"$f":"SUM(AJ464:AR466)","v":0},null,null,null,null,null,null,null,null,{"$f":"SUM(AS464:AZ466)","v":0},null,null,null,null,null,null,null,0]
["       3.1.1 Studii de teren",null,null,null,null,null,null,null,null,null,null,null,null,null,null,null,null,null,null,null,null,null,null,null,null,null,null,null,null,null,null,null,null,null,null,null,null,null,null,null,null,null,null,null,null,null,null,null,null,null,null,null,0]
["       3.1.2 Raport privind impactul asupra mediului",null,null,null,null,null,null,null,null,null,null,null,null,null,null,null,null,null,null,null,null,null,null,null,null,null,null,null,null,null,null,null,null,null,null,null,null,null,null,null,null,null,null,null,null,null,null,null,null,null,null,null,0]
["       3.1.3 Alte studii specifice",null,null,null,null,null,null,null,null,null,null,null,null,null,null,null,null,null,null,null,null,null,null,null,null,null,null,null,null,null,null,null,null,null,null,null,null,null,null,null,null,null,null,null,null,null,null,null,null,null,null,null,0]
["3.2 Documentaţii-suport şi cheltuieli pentru obţinerea de avize, acorduri şi autorizaţii",null,null,null,null,null,null,null,null,null,null,null,null,null,null,null,null,null,null,null,null,null,null,null,null,null,null,null,null,null,null,null,null,null,null,null,null,null,null,null,null,null,null,null,null,null,null,null,null,null,null,null,0]
["3.3 Expertizare tehnică",null,null,null,null,null,null,null,null,null,null,null,null,null,null,null,null,null,null,null,null,null,null,null,null,null,null,null,null,null,null,null,null,null,null,null,null,null,null,null,null,null,null,null,null,null,null,null,null,null,null,null,0]
["3.4 Certificarea performanţei energetice şi auditul energetic al clădirilor",null,null,null,null,null,null,null,null,null,null,null,null,null,null,null,null,null,null,null,null,null,null,null,null,null,null,null,null,null,null,null,null,null,null,null,null,null,null,null,null,null,null,null,null,null,null,null,null,null,null,null,0]
["3.5 Proiectare",null,null,null,null,null,null,null,null,null,null,null,null,null,null,null,null,null,null,null,null,null,null,null,null,null,null,null,null,null,null,null,null,null,null,{"$f":"SUM(AJ471:AR476)","v":0},null,null,null,null,null,null,null,null,{"$f":"SUM(AS471:AZ476)","v":0},null,null,null,null,null,null,null,0]
["      3.5.1 Temă de proiectare",null,null,null,null,null,null,null,null,null,null,null,null,null,null,null,null,null,null,null,null,null,null,null,null,null,null,null,null,null,null,null,null,null,null,null,null,null,null,null,null,null,null,null,null,null,null,null,null,null,null,null,0]
["      3.5.2 Studiu de prefezabilitate",null,null,null,null,null,null,null,null,null,null,null,null,null,null,null,null,null,null,null,null,null,null,null,null,null,null,null,null,null,null,null,null,null,null,null,null,null,null,null,null,null,null,null,null,null,null,null,null,null,null,null,0]
["      3.5.3. Studiu de fezabilitate/documentaţie de avizare a lucrărilor de intervenţii\n                şi deviz general",null,null,null,null,null,null,null,null,null,null,null,null,null,null,null,null,null,null,null,null,null,null,null,null,null,null,null,null,null,null,null,null,null,null,null,null,null,null,null,null,null,null,null,null,null,null,null,null,null,null,null,0]
["      3.5.4. Documentaţiile tehnice necesare în vederea obţinerii avizelor/\n                acordurilor/autorizaţiilor",null,null,null,null,null,null,null,null,null,null,null,null,null,null,null,null,null,null,null,null,null,null,null,null,null,null,null,null,null,null,null,null,null,null,null,null,null,null,null,null,null,null,null,null,null,null,null,null,null,null,null,0]
["      3.5.5. Verificarea tehnică de calitate a proiectului tehnic şi a detaliilor de execuţie",null,null,null,null,null,null,null,null,null,null,null,null,null,null,null,null,null,null,null,null,null,null,null,null,null,null,null,null,null,null,null,null,null,null,null,null,null,null,null,null,null,null,null,null,null,null,null,null,null,null,null,0]
["      3.5.6. Proiect tehnic şi detalii de execuţie",null,null,null,null,null,null,null,null,null,null,null,null,null,null,null,null,null,null,null,null,null,null,null,null,null,null,null,null,null,null,null,null,null,null,null,null,null,null,null,null,null,null,null,null,null,null,null,null,null,null,null,0]
["3.6 Organizarea procedurilor de achiziţie",null,null,null,null,null,null,null,null,null,null,null,null,null,null,null,null,null,null,null,null,null,null,null,null,null,null,null,null,null,null,null,null,null,null,null,null,null,null,null,null,null,null,null,null,null,null,null,null,null,null,null,0]
["3.7 Consultanţă",null,null,null,null,null,null,null,null,null,null,null,null,null,null,null,null,null,null,null,null,null,null,null,null,null,null,null,null,null,null,null,null,null,null,{"$f":"AJ479","v":0},null,null,null,null,null,null,null,null,{"$f":"AS479+AS480","v":0},null,null,null,null,null,null,null,0]
["      3.7.1 Managementul de proiect pentru obiectivul de investiţii",null,null,null,null,null,null,null,null,null,null,null,null,null,null,null,null,null,null,null,null,null,null,null,null,null,null,null,null,null,null,null,null,null,null,null,null,null,null,null,null,null,null,null,null,null,null,null,null,null,null,null,0]
["      3.7.2 Auditul financiar",null,null,null,null,null,null,null,null,null,null,null,null,null,null,null,null,null,null,null,null,null,null,null,null,null,null,null,null,null,null,null,null,null,null,null,null,null,null,null,null,null,null,null,null,null,null,null,null,null,null,null,0]
["3.8 Asistenţă Tehnică",null,null,null,null,null,null,null,null,null,null,null,null,null,null,null,null,null,null,null,null,null,null,null,null,null,null,null,null,null,null,null,null,null,null,{"$f":"AJ482+AJ485","v":0},null,null,null,null,null,null,null,null,{"$f":"AS482+AS485","v":0},null,null,null,null,null,null,null,0]
["      3.8.1 Asistenţă Tehnică din partea proiectantului",null,null,null,null,null,null,null,null,null,null,null,null,null,null,null,null,null,null,null,null,null,null,null,null,null,null,null,null,null,null,null,null,null,null,{"$f":"AJ483+AJ484","v":0},null,null,null,null,null,null,null,null,{"$f":"AS483+AS484","v":0},null,null,null,null,null,null,null,0]
["            3.8.1.1 pe perioada de execuţie a lucrărilor",null,null,null,null,null,null,null,null,null,null,null,null,null,null,null,null,null,null,null,null,null,null,null,null,null,null,null,null,null,null,null,null,null,null,null,null,null,null,null,null,null,null,null,null,null,null,null,null,null,null,null,0]
["            3.8.1.2 pentru participarea proiectantului la fazele incluse în programul de control al\n                        lucrărilor de execuţie, avizat de către Inspectoratul de Stat în Construcţii",null,null,null,null,null,null,null,null,null,null,null,null,null,null,null,null,null,null,null,null,null,null,null,null,null,null,null,null,null,null,null,null,null,null,null,null,null,null,null,null,null,null,null,null,null,null,null,null,null,null,null,0]
["      3.8.2 Dirigenţie de şantier",null,null,null,null,null,null,null,null,null,null,null,null,null,null,null,null,null,null,null,null,null,null,null,null,null,null,null,null,null,null,null,null,null,null,null,null,null,null,null,null,null,null,null,null,null,null,null,null,null,null,null,0]
["Verificare încadrare cheltuieli capitolul 3",null,null,null,null,null,null,null,null,null,null,null,null,null,null,null,null,null,null,null,null,null,null,null,null,null,null,null,null,null,null,null,{"$f":"AJ456+AJ461+AJ487","v":0},{"$f":"IF(AG486=0,0,AI486)","v":0},null,"verificarea se face in Totalizator"]
["Capitolul 4 Cheltuieli pentru investiţia de bază - total, din care:",null,null,null,null,null,null,null,null,null,null,null,null,null,null,null,null,null,null,null,null,null,null,null,null,null,null,null,null,null,null,null,null,null,null,{"$f":"AJ488+AJ495","v":0},null,null,null,null,null,null,null,null,{"$f":"AS488+AS495","v":0},null,null,null,null,null,null,null,{"$f":"SUM(AJ487:AZ487)","v":0}]
["A - Constructii şi lucrări de intervenţii - total, din care:",null,null,null,null,null,null,null,null,null,null,null,null,null,null,null,null,null,null,null,null,null,null,null,null,null,null,null,null,null,null,null,null,null,null,{"$f":"SUM(AJ489:AR494)","v":0},null,null,null,null,null,null,null,null,{"$f":"SUM(AS489:AZ494)","v":0},null,null,null,null,null,null,null,0]
["4.1 Construcţii şi instalaţii",null,null,null,null,null,null,null,null,null,null,null,null,null,null,null,null,null,null,null,null,null,null,null,null,null,null,null,null,null,null,null,null,null,null,null,null,null,null,null,null,null,null,null,null,null,null,null,null,null,null,null,0]
["4.2 Montaj utilaje, echipamente tehnologice şi funcţionale",null,null,null,null,null,null,null,null,null,null,null,null,null,null,null,null,null,null,null,null,null,null,null,null,null,null,null,null,null,null,null,null,null,null,null,null,null,null,null,null,null,null,null,null,null,null,null,null,null,null,null,0]
["4.3 Utilaje, echipamente tehnologice şi funcţionale care necesită montaj",null,null,null,null,null,null,null,null,null,null,null,null,null,null,null,null,null,null,null,null,null,null,null,null,null,null,null,null,null,null,null,null,null,null,null,null,null,null,null,null,null,null,null,null,null,null,null,null,null,null,null,0]
["4.4 Utilaje, echipamente tehnologice şi funcţionale care nu necesită montaj şi echipamente",null,null,null,null,null,null,null,null,null,null,null,null,null,null,null,null,null,null,null,null,null,null,null,null,null,null,null,null,null,null,null,null,null,null,null,null,null,null,null,null,null,null,null,null,null,null,null,null,null,null,null,0]
["4.5 Dotări",null,null,null,null,null,null,null,null,null,null,null,null,null,null,null,null,null,null,null,null,null,null,null,null,null,null,null,null,null,null,null,null,null,null,null,null,null,null,null,null,null,null,null,null,null,null,null,null,null,null,null,0]
["4.6 Active necorporale",null,null,null,null,null,null,null,null,null,null,null,null,null,null,null,null,null,null,null,null,null,null,null,null,null,null,null,null,null,null,null,null,null,null,null,null,null,null,null,null,null,null,null,null,null,null,null,null,null,null,null,0]
["B - Cheltuieli pentru investitii în culturi/plantaţii",null,null,null,null,null,null,null,null,null,null,null,null,null,null,null,null,null,null,null,null,null,null,null,null,null,null,null,null,null,null,null,null,null,null,{"$f":"SUM(AJ496:AR500)","v":0},null,null,null,null,null,null,null,null,{"$f":"SUM(AS496:AZ500)","v":0},null,null,null,null,null,null,null,0]
["Subcapitol 1 - Lucrări de pregătire a terenului",null,null,null,null,null,null,null,null,null,null,null,null,null,null,null,null,null,null,null,null,null,null,null,null,null,null,null,null,null,null,null,null,null,null,null,null,null,null,null,null,null,null,null,null,null,null,null,null,null,null,null,0]
["Subcapitol 2 - Infiinţarea plantaţiei",null,null,null,null,null,null,null,null,null,null,null,null,null,null,null,null,null,null,null,null,null,null,null,null,null,null,null,null,null,null,null,null,null,null,null,null,null,null,null,null,null,null,null,null,null,null,null,null,null,null,null,0]
["Subcapitol 3 - Intreţinere plantaţie în anul 1",null,null,null,null,null,null,null,null,null,null,null,null,null,null,null,null,null,null,null,null,null,null,null,null,null,null,null,null,null,null,null,null,null,null,null,null,null,null,null,null,null,null,null,null,null,null,null,null,null,null,null,0]
["Subcapitol 4 - Intreţinere plantaţie în anul 2",null,null,null,null,null,null,null,null,null,null,null,null,null,null,null,null,null,null,null,null,null,null,null,null,null,null,null,null,null,null,null,null,null,null,null,null,null,null,null,null,null,null,null,null,null,null,null,null,null,null,null,0]
["Subcapitol 5 - Instalat sistem susţinere şi împrejmuire",null,null,null,null,null,null,null,null,null,null,null,null,null,null,null,null,null,null,null,null,null,null,null,null,null,null,null,null,null,null,null,null,null,null,null,null,null,null,null,null,null,null,null,null,null,null,null,null,null,null,null,0]
["Capitolul 5 Alte cheltuieli - total, din care:",null,null,null,null,null,null,null,null,null,null,null,null,null,null,null,null,null,null,null,null,null,null,null,null,null,null,null,null,null,null,null,null,null,null,{"$f":"AJ502+AJ505+AJ511","v":0},null,null,null,null,null,null,null,null,{"$f":"AS502+AS505+AS511+AS512","v":0},null,null,null,null,null,null,null,0]
["5.1 Organizare de şantier",null,null,null,null,null,null,null,null,null,null,null,null,null,null,null,null,null,null,null,null,null,null,null,null,null,null,null,null,null,null,null,null,null,null,{"$f":"SUM(AJ503:AR504)","v":0},null,null,null,null,null,null,null,null,{"$f":"SUM(AS503:AZ504)","v":0},null,null,null,null,null,null,null,0]
["      5.1.1 lucrări de construcţii şi instalaţii aferente organizării de şantier",null,null,null,null,null,null,null,null,null,null,null,null,null,null,null,null,null,null,null,null,null,null,null,null,null,null,null,null,null,null,null,null,null,null,null,null,null,null,null,null,null,null,null,null,null,null,null,null,null,null,null,0]
["      5.1.2 cheltuieli conexe orgănizării şantierului",null,null,null,null,null,null,null,null,null,null,null,null,null,null,null,null,null,null,null,null,null,null,null,null,null,null,null,null,null,null,null,null,null,null,null,null,null,null,null,null,null,null,null,null,null,null,null,null,null,null,null,0]
["5.2 Comisioane, taxe, costul creditului",null,null,null,null,null,null,null,null,null,null,null,null,null,null,null,null,null,null,null,null,null,null,null,null,null,null,null,null,null,null,null,null,null,null,{"$f":"SUM(AJ506:AR510)","v":0},null,null,null,null,null,null,null,null,{"$f":"SUM(AS506:AZ510)","v":0},null,null,null,null,null,null,null,0]
["      5.2.1 Comisioanele şi dobânzile aferente creditului băncii finanţatoare",null,null,null,null,null,null,null,null,null,null,null,null,null,null,null,null,null,null,null,null,null,null,null,null,null,null,null,null,null,null,null,null,null,null,null,null,null,null,null,null,null,null,null,null,null,null,null,null,null,null,null,0]
["      5.2.2 Cota aferentă ISC pentru controlul calităţii lucrărilor de construcţii",null,null,null,null,null,null,null,null,null,null,null,null,null,null,null,null,null,null,null,null,null,null,null,null,null,null,null,null,null,null,null,null,null,null,null,null,null,null,null,null,null,null,null,null,null,null,null,null,null,null,null,0]
["      5.2.3 Cota aferentă ISC pentru controlul statului în amenajarea teritoriului, urbanism şi\n               pentru autorizarea lucrărilor de construcţii",null,null,null,null,null,null,null,null,null,null,null,null,null,null,null,null,null,null,null,null,null,null,null,null,null,null,null,null,null,null,null,null,null,null,null,null,null,null,null,null,null,null,null,null,null,null,null,null,null,null,null,0]
["      5.2.4 Cota aferentă Casei Sociale a Constructorilor - CSC",null,null,null,null,null,null,null,null,null,null,null,null,null,null,null,null,null,null,null,null,null,null,null,null,null,null,null,null,null,null,null,null,null,null,null,null,null,null,null,null,null,null,null,null,null,null,null,null,null,null,null,0]
["      5.2.5 Taxe pentru acorduri, avize conforme şi autorizaţia de construire/ desfiinţare",null,null,null,null,null,null,null,null,null,null,null,null,null,null,null,null,null,null,null,null,null,null,null,null,null,null,null,null,null,null,null,null,null,null,null,null,null,null,null,null,null,null,null,null,null,null,null,null,null,null,null,0]
["5.3 Cheltuieli diverse şi neprevăzute",null,null,null,null,null,null,null,null,null,null,null,null,null,null,null,null,null,null,null,null,null,null,null,null,null,null,null,null,null,null,null,null,null,null,null,null,null,null,null,null,null,null,null,null,null,null,null,null,null,null,null,0]
["5.4 Cheltuieli pentru informare şi publicitate",null,null,null,null,null,null,null,null,null,null,null,null,null,null,null,null,null,null,null,null,null,null,null,null,null,null,null,null,null,null,null,null,null,null,null,null,null,null,null,null,null,null,null,null,null,null,null,null,null,null,null,0]
["Procent cheltuieli diverse şi neprevăzute"]
["Capitolul 6 Cheltuieli pentru darea în exploatare - total, din care:",null,null,null,null,null,null,null,null,null,null,null,null,null,null,null,null,null,null,null,null,null,null,null,null,null,null,null,null,null,null,null,null,null,null,{"$f":"SUM(AJ515:AR516)","v":0},null,null,null,null,null,null,null,null,{"$f":"SUM(AS515:AZ516)","v":0},null,null,null,null,null,null,null,{"$f":"SUM(AJ514:AZ514)","v":0}]
["6.1 Pregătirea personalului de exploatare",null,null,null,null,null,null,null,null,null,null,null,null,null,null,null,null,null,null,null,null,null,null,null,null,null,null,null,null,null,null,null,null,null,null,null,null,null,null,null,null,null,null,null,null,null,null,null,null,null,null,null,0]
["6.2 Probe tehnologice şi teste",null,null,null,null,null,null,null,null,null,null,null,null,null,null,null,null,null,null,null,null,null,null,null,null,null,null,null,null,null,null,null,null,null,null,null,null,null,null,null,null,null,null,null,null,null,null,null,null,null,null,null,0]
["TOTAL GENERAL",null,null,null,null,null,null,null,null,null,null,null,null,null,null,null,null,null,null,null,null,null,null,null,null,null,null,null,null,null,null,null,null,null,null,{"$f":"AJ456+AJ461+AJ462+AJ487+AJ501+AJ514","v":0},null,null,null,null,null,null,null,null,{"$f":"AS456+AS461+AS462+AS487+AS501+AS514","v":0},null,null,null,null,null,null,null,0]
["Verificare actualizare",null,null,null,null,null,null,null,null,null,null,null,null,null,null,null,null,null,null,null,null,null,null,null,null,null,null,null,null,null,null,{"$f":"AJ519*100/AJ517","v":{"$error":"#DIV/0!"}},null,null,{"$f":"IF(AJ517=0,0,AF518)","v":0},{"$f":"IF(AI518<=5,\"actualizare mai mică de 5% din valoarea eligibila\",\"actualizare mai mare de 5% din valoarea eligibila\")","v":"actualizare mai mică de 5% din valoarea eligibila"}]
["ACTUALIZARE Cheltuieli Eligibile (max 5%)",null,null,null,null,null,null,null,null,null,null,null,null,null,null,null,null,null,null,null,null,null,null,null,null,null,null,null,null,null,null,null,null,null,null,null,null,null,null,null,null,null,null,null,null,null,null,null,null,null,null,null,{"$f":"SUM(AJ519:AZ519)","v":0}]
["TOTAL GENERAL CU ACTUALIZARE",null,null,null,null,null,null,null,null,null,null,null,null,null,null,null,null,null,null,null,null,null,null,null,null,null,null,null,null,null,null,null,null,null,null,{"$f":"AJ517+AJ519","v":0},null,null,null,null,null,null,null,null,{"$f":"AS517","v":0},null,null,null,null,null,null,null,0]
["Valoare TVA",null,null,null,null,null,null,null,null,null,null,null,null,null,null,null,null,null,null,null,null,null,null,null,null,null,null,null,null,null,null,null,null,null,null,null,null,null,null,null,null,null,null,null,null,null,null,null,null,null,null,null,0]
["TOTAL GENERAL inclusiv TVA",null,null,null,null,null,null,null,null,null,null,null,null,null,null,null,null,null,null,null,null,null,null,null,null,null,null,null,null,null,null,null,null,null,null,{"$f":"BA520+BA521","v":0}]
[null,null,null,null,null,null,null,null,null,null,null,null,null,null,null,null,null,null,null,null,null,null,null,null,null,null,null,null,null,null,null,null,null,null,null,"LEI",null,null,null,null,null,null,null,null,"EURO"]
["VALOARE TOTALĂ",null,null,null,null,null,null,null,null,null,null,null,null,null,null,null,null,null,null,null,null,null,null,null,null,null,null,null,null,null,null,null,null,null,null,{"$f":"AS524*Z450","v":0},null,null,null,null,null,null,null,null,{"$f":"AJ522","v":0}]
["VALOARE ELIGIBILĂ",null,null,null,null,null,null,null,null,null,null,null,null,null,null,null,null,null,null,null,null,null,null,null,null,null,null,null,null,null,null,null,null,null,null,{"$f":"AS525*Z450","v":0},null,null,null,null,null,null,null,null,{"$f":"AJ520+AJ521","v":0}]
["VALOARE NEELIGIBILĂ",null,null,null,null,null,null,null,null,null,null,null,null,null,null,null,null,null,null,null,null,null,null,null,null,null,null,null,null,null,null,null,null,null,null,{"$f":"AS526*Z450","v":0},null,null,null,null,null,null,null,null,{"$f":"AS520+AS521","v":0}]
["Plan Financiar",null,null,null,null,null,null,null,null,null,null,null,null,null,null,null,null,null,null,null,null,null,null,null,null,null,null,null,null,null,null,null,null,null,null,"Cheltuieli eligibile EURO",null,null,null,null,null,null,null,null,"Cheltuieli neeligibile EURO",null,null,null,null,null,null,null,"Total"]
["Ajutor public nerambursabil (contribuţie UE şi cofinanţare naţională)",null,null,null,null,null,null,null,null,null,null,null,null,null,null,null,null,null,null,null,null,null,null,null,null,null,null,null,null,null,null,null,null,null,null,null,null,null,null,null,null,null,null,null,null,null,null,null,null,null,null,null,{"$f":"SUM(AJ528:AZ528)","v":0}]
["Cofinantare privata, din care:",null,null,null,null,null,null,null,null,null,null,null,null,null,null,null,null,null,null,null,null,null,null,null,null,null,null,null,null,null,null,null,null,null,null,{"$f":"SUM(AJ530:AR532)","v":0},null,null,null,null,null,null,null,null,{"$f":"SUM(AS530:AZ532)","v":0},null,null,null,null,null,null,null,0]
[null,null,null,null,null,null,null,null,null,null,null,null,null,null,null,"- contributia in natura",null,null,null,null,null,null,null,null,null,null,null,null,null,null,null,null,null,null,null,null,null,null,null,null,null,null,null,null,null,null,null,null,null,null,null,null,0]
[null,null,null,null,null,null,null,null,null,null,null,null,null,null,null,"- autofinanțare",null,null,null,null,null,null,null,null,null,null,null,null,null,null,null,null,null,null,null,null,null,null,null,null,null,null,null,null,null,null,null,null,null,null,null,null,0]
[null,null,null,null,null,null,null,null,null,null,null,null,null,null,null,"- împrumuturi",null,null,null,null,null,null,null,null,null,null,null,null,null,null,null,null,null,null,null,null,null,null,null,null,null,null,null,null,null,null,null,null,null,null,null,null,0]
["TOTAL PROIECT",null,null,null,null,null,null,null,null,null,null,null,null,null,null,null,null,null,null,null,null,null,null,null,null,null,null,null,null,null,null,null,null,null,null,{"$f":"AJ528+AJ529","v":0},null,null,null,null,null,null,null,null,{"$f":"AS529","v":0},null,null,null,null,null,null,null,0]
["Procent contribuţie publică",null,null,null,null,null,null,null,null,null,null,null,null,null,null,null,null,null,null,null,null,null,null,null,null,null,null,null,null,null,null,null,null,{"$f":"AJ528*100/AJ533","v":{"$error":"#DIV/0!"}},{"$f":"IF(AJ533=0,0,AH534)","v":0},{"$f":"AI534","v":0},null,null,null,null,null,null,null,"%"]
["Avans solicitat"]
["Procent avans solicitat ca procent din ajutorul public nerambursabil",null,null,null,null,null,null,null,null,null,null,null,null,null,null,null,null,null,null,null,null,null,null,null,null,null,null,null,null,null,null,null,null,null,{"$f":"AJ535*100/AJ528","v":{"$error":"#DIV/0!"}},{"$f":"IF(AJ528=0,0,AI536)","v":0},null,null,null,null,null,null,null,null,{"$f":"IF(AJ536<=50,\"Suma avans mai mica de 50% din ajutorul public\",\"Suma avans mai mare de 50% din ajutorul public\")","v":"Suma avans mai mica de 50% din ajutorul public"}]
["BUGET INDICATIV TOTALIZATOR HG 907"]
["MINISTERUL AGRICULTURII ŞI DEZVOLTĂRII RURALE"]
["AGENŢIA PENTRU FINANŢAREA INVESTIŢIILOR RURALE"]
[]
[]
[null,null,null,null,null,null,null,null,null,null,null,null,null,null,null,null,null,null,null,"Curs EURO",null,null,null,null,null,{"$f":"Z450","v":0},null,null,null,null,null,null,null,null,null,"Data întocmirii Studiului de Fezabilitate"]
[]
["Măsura",null,null,null,null,null,null,null,null,null,null,null,null,null,null,null,null,null,null,null,null,null,null,null,null,null,null,null,null,null,null,null,null,null,null,"2.1. (2A)"]
["Denumirea capitolelor de cheltuieli",null,null,null,null,null,null,null,null,null,null,null,null,null,null,null,null,null,null,null,null,null,null,null,null,null,null,null,null,null,null,null,null,null,null,"Cheltuieli eligibile",null,null,null,null,null,null,null,null,"Cheltuieli neeligibile",null,null,null,null,null,null,null,"Total"]
[null,null,null,null,null,null,null,null,null,null,null,null,null,null,null,null,null,null,null,null,null,null,null,null,null,null,null,null,null,null,null,null,null,null,null,"EURO",null,null,null,null,null,null,null,null,"EURO",null,null,null,null,null,null,null,"EURO"]
[1,null,null,null,null,null,null,null,null,null,null,null,null,null,null,null,null,null,null,null,null,null,null,null,null,null,null,null,null,null,null,null,null,null,null,2,null,null,null,null,null,null,null,null,3,null,null,null,null,null,null,null,4]
["Capitolul 1 Cheltuieli pentru obtinerea şi amenajarea terenului - total, din care:",null,null,null,null,null,null,null,null,null,null,null,null,null,null,null,null,null,null,null,null,null,null,null,null,null,null,null,null,null,null,null,null,null,null,{"$f":"SUM(AJ550:AR552)","v":0},null,null,null,null,null,null,null,null,{"$f":"SUM(AS549:AZ552)","v":0},null,null,null,null,null,null,null,{"$f":"SUM(AJ548:AZ548)","v":0}]
["1.1 Obţinerea terenului",null,null,null,null,null,null,null,null,null,null,null,null,null,null,null,null,null,null,null,null,null,null,null,null,null,null,null,null,null,null,null,null,null,null,null,null,null,null,null,null,null,null,null,{"$f":"AS272+AS365+AS457","v":0},null,null,null,null,null,null,null,{"$f":"SUM(AJ549:AZ549)","v":0}]
["1.2 Amenajarea terenului",null,null,null,null,null,null,null,null,null,null,null,null,null,null,null,null,null,null,null,null,null,null,null,null,null,null,null,null,null,null,null,null,null,null,{"$f":"AJ273+AJ366+AJ458","v":0},null,null,null,null,null,null,null,null,{"$f":"AS273+AS366+AS458","v":0},null,null,null,null,null,null,null,0]
["1.3 Amenajari pentru protecţia mediului şi aducerea la starea iniţială",null,null,null,null,null,null,null,null,null,null,null,null,null,null,null,null,null,null,null,null,null,null,null,null,null,null,null,null,null,null,null,null,null,null,{"$f":"AJ274+AJ367+AJ459","v":0},null,null,null,null,null,null,null,null,{"$f":"AS274+AS367+AS459","v":0},null,null,null,null,null,null,null,0]
["1.4 Cheltuieli pentru relocarea/protecţia utilităţilor",null,null,null,null,null,null,null,null,null,null,null,null,null,null,null,null,null,null,null,null,null,null,null,null,null,null,null,null,null,null,null,null,null,null,0,null,null,null,null,null,null,null,null,0,null,null,null,null,null,null,null,0]
["Capitolul 2 Cheltuieli pentru asigurarea utilităţilor necesare obiectivului de investiţii",null,null,null,null,null,null,null,null,null,null,null,null,null,null,null,null,null,null,null,null,null,null,null,null,null,null,null,null,null,null,null,null,null,null,0,null,null,null,null,null,null,null,null,0,null,null,null,null,null,null,null,0]
["Capitolul 3 Cheltuieli pentru proiectare şi asistenţă tehnică - total, din care:",null,null,null,null,null,null,null,null,null,null,null,null,null,null,null,null,null,null,null,null,null,null,null,null,null,null,null,null,null,null,null,null,null,null,{"$f":"AJ555+AJ559+AJ560+AJ561+AJ562+AJ569+AJ570+AJ573","v":0},null,null,null,null,null,null,null,null,{"$f":"AS555+AS559+AS560+AS561+AS562+AS569+AS570+AS573","v":0},null,null,null,null,null,null,null,0]
["3.1 Studii",null,null,null,null,null,null,null,null,null,null,null,null,null,null,null,null,null,null,null,null,null,null,null,null,null,null,null,null,null,null,null,null,null,null,{"$f":"AJ556+AJ557+AJ558","v":0},null,null,null,null,null,null,null,null,{"$f":"AS556+AS557+AS558","v":0},null,null,null,null,null,null,null,0]
["       3.1.1 Studii de teren",null,null,null,null,null,null,null,null,null,null,null,null,null,null,null,null,null,null,null,null,null,null,null,null,null,null,null,null,null,null,null,null,null,null,{"$f":"AJ279+AJ372+AJ464","v":0},null,null,null,null,null,null,null,null,{"$f":"AS279+AS372+AS464","v":0},null,null,null,null,null,null,null,0]
["       3.1.2 Raport privind impactul asupra mediului",null,null,null,null,null,null,null,null,null,null,null,null,null,null,null,null,null,null,null,null,null,null,null,null,null,null,null,null,null,null,null,null,null,null,0,null,null,null,null,null,null,null,null,0,null,null,null,null,null,null,null,0]
["       3.1.3 Alte studii specifice",null,null,null,null,null,null,null,null,null,null,null,null,null,null,null,null,null,null,null,null,null,null,null,null,null,null,null,null,null,null,null,null,null,null,0,null,null,null,null,null,null,null,null,0,null,null,null,null,null,null,null,0]
["3.2 Documentaţii-suport şi cheltuieli pentru obţinerea de avize, acorduri şi autorizaţii",null,null,null,null,null,null,null,null,null,null,null,null,null,null,null,null,null,null,null,null,null,null,null,null,null,null,null,null,null,null,null,null,null,null,0,null,null,null,null,null,null,null,null,0,null,null,null,null,null,null,null,0]
["3.3 Expertizare tehnică",null,null,null,null,null,null,null,null,null,null,null,null,null,null,null,null,null,null,null,null,null,null,null,null,null,null,null,null,null,null,null,null,null,null,0,null,null,null,null,null,null,null,null,0,null,null,null,null,null,null,null,0]
["3.4 Certificarea performanţei energetice şi auditul energetic al clădirilor",null,null,null,null,null,null,null,null,null,null,null,null,null,null,null,null,null,null,null,null,null,null,null,null,null,null,null,null,null,null,null,null,null,null,0,null,null,null,null,null,null,null,null,0,null,null,null,null,null,null,null,0]
["3.5 Proiectare",null,null,null,null,null,null,null,null,null,null,null,null,null,null,null,null,null,null,null,null,null,null,null,null,null,null,null,null,null,null,null,null,null,null,{"$f":"SUM(AJ563:AR568)","v":0},null,null,null,null,null,null,null,null,{"$f":"SUM(AS563:AZ568)","v":0},null,null,null,null,null,null,null,0]
["      3.5.1 Temă de proiectare",null,null,null,null,null,null,null,null,null,null,null,null,null,null,null,null,null,null,null,null,null,null,null,null,null,null,null,null,null,null,null,null,null,null,0,null,null,null,null,null,null,null,null,0,null,null,null,null,null,null,null,0]
["      3.5.2 Studiu de prefezabilitate",null,null,null,null,null,null,null,null,null,null,null,null,null,null,null,null,null,null,null,null,null,null,null,null,null,null,null,null,null,null,null,null,null,null,0,null,null,null,null,null,null,null,null,0,null,null,null,null,null,null,null,0]
["      3.5.3. Studiu de fezabilitate/documentaţie de avizare a lucrărilor de intervenţii\n                şi deviz general",null,null,null,null,null,null,null,null,null,null,null,null,null,null,null,null,null,null,null,null,null,null,null,null,null,null,null,null,null,null,null,null,null,null,0,null,null,null,null,null,null,null,null,0,null,null,null,null,null,null,null,0]
["      3.5.4. Documentaţiile tehnice necesare în vederea obţinerii avizelor/\n                acordurilor/autorizaţiilor",null,null,null,null,null,null,null,null,null,null,null,null,null,null,null,null,null,null,null,null,null,null,null,null,null,null,null,null,null,null,null,null,null,null,0,null,null,null,null,null,null,null,null,0,null,null,null,null,null,null,null,0]
["      3.5.5. Verificarea tehnică de calitate a proiectului tehnic şi a detaliilor de execuţie",null,null,null,null,null,null,null,null,null,null,null,null,null,null,null,null,null,null,null,null,null,null,null,null,null,null,null,null,null,null,null,null,null,null,0,null,null,null,null,null,null,null,null,0,null,null,null,null,null,null,null,0]
["      3.5.6. Proiect tehnic şi detalii de execuţie",null,null,null,null,null,null,null,null,null,null,null,null,null,null,null,null,null,null,null,null,null,null,null,null,null,null,null,null,null,null,null,null,null,null,0,null,null,null,null,null,null,null,null,0,null,null,null,null,null,null,null,0]
["3.6 Organizarea procedurilor de achiziţie",null,null,null,null,null,null,null,null,null,null,null,null,null,null,null,null,null,null,null,null,null,null,null,null,null,null,null,null,null,null,null,null,null,null,null,null,null,null,null,null,null,null,null,0,null,null,null,null,null,null,null,0]
["3.7 Consultanţă",null,null,null,null,null,null,null,null,null,null,null,null,null,null,null,null,null,null,null,null,null,null,null,null,null,null,null,null,null,null,null,null,null,null,{"$f":"AJ571","v":0},null,null,null,null,null,null,null,null,{"$f":"AS571+AS572","v":0},null,null,null,null,null,null,null,0]
["      3.7.1 Managementul de proiect pentru obiectivul de investiţii",null,null,null,null,null,null,null,null,null,null,null,null,null,null,null,null,null,null,null,null,null,null,null,null,null,null,null,null,null,null,null,null,null,null,{"$f":"AJ294+AJ387+AJ479","v":0},null,null,null,null,null,null,null,null,0,null,null,null,null,null,null,null,0]
["      3.7.2 Auditul financiar",null,null,null,null,null,null,null,null,null,null,null,null,null,null,null,null,null,null,null,null,null,null,null,null,null,null,null,null,null,null,null,null,null,null,null,null,null,null,null,null,null,null,null,0,null,null,null,null,null,null,null,0]
["3.8 Asistenţă Tehnică",null,null,null,null,null,null,null,null,null,null,null,null,null,null,null,null,null,null,null,null,null,null,null,null,null,null,null,null,null,null,null,null,null,null,{"$f":"AJ574+AJ577","v":0},null,null,null,null,null,null,null,null,{"$f":"AS574+AS577","v":0},null,null,null,null,null,null,null,0]
["      3.8.1 Asistenţă Tehnică din partea proiectantului",null,null,null,null,null,null,null,null,null,null,null,null,null,null,null,null,null,null,null,null,null,null,null,null,null,null,null,null,null,null,null,null,null,null,{"$f":"AJ575+AJ576","v":0},null,null,null,null,null,null,null,null,{"$f":"AS575+AS576","v":0},null,null,null,null,null,null,null,0]
["           3.8.1.1 pe perioada de execuţie a lucrărilor",null,null,null,null,null,null,null,null,null,null,null,null,null,null,null,null,null,null,null,null,null,null,null,null,null,null,null,null,null,null,null,null,null,null,{"$f":"AJ298+AJ391+AJ483","v":0},null,null,null,null,null,null,null,null,{"$f":"AS298+AS391+AS483","v":0},null,null,null,null,null,null,null,0]
["           3.8.1.2 pentru participarea proiectantului la fazele incluse în programul de control al\n                       lucrărilor de execuţie, avizat de către Inspectoratul de Stat în Construcţii",null,null,null,null,null,null,null,null,null,null,null,null,null,null,null,null,null,null,null,null,null,null,null,null,null,null,null,null,null,null,null,null,null,null,0,null,null,null,null,null,null,null,null,0,null,null,null,null,null,null,null,0]
["      3.8.2 Dirigenţie de şantier",null,null,null,null,null,null,null,null,null,null,null,null,null,null,null,null,null,null,null,null,null,null,null,null,null,null,null,null,null,null,null,null,null,null,0,null,null,null,null,null,null,null,null,0,null,null,null,null,null,null,null,0]
["Verificare încadrare cheltuieli capitolul 3",null,null,null,null,null,null,null,null,null,null,null,null,null,null,null,null,null,null,null,null,null,null,null,null,null,null,null,null,null,null,null,{"$f":"AJ548+AJ553+AJ579","v":0},{"$f":"IF(AG578=0,0,AI578)","v":0}]
["Capitolul 4 Cheltuieli pentru investiţia de bază - total, din care:",null,null,null,null,null,null,null,null,null,null,null,null,null,null,null,null,null,null,null,null,null,null,null,null,null,null,null,null,null,null,null,null,null,null,{"$f":"AJ580+AJ587","v":0},null,null,null,null,null,null,null,null,{"$f":"AS580+AS587","v":0},null,null,null,null,null,null,null,{"$f":"SUM(AJ579:AZ579)","v":0}]
["A - Constructii şi lucrări de intervenţii - total, din care:",null,null,null,null,null,null,null,null,null,null,null,null,null,null,null,null,null,null,null,null,null,null,null,null,null,null,null,null,null,null,null,null,null,null,{"$f":"SUM(AJ581:AR586)","v":0},null,null,null,null,null,null,null,null,{"$f":"SUM(AS581:AZ586)","v":0},null,null,null,null,null,null,null,0]
["4.1 Construcţii şi instalaţii",null,null,null,null,null,null,null,null,null,null,null,null,null,null,null,null,null,null,null,null,null,null,null,null,null,null,null,null,null,null,null,null,null,null,{"$f":"AJ304+AJ397+AJ489","v":0},null,null,null,null,null,null,null,null,{"$f":"AS304+AS397+AS489","v":0},null,null,null,null,null,null,null,0]
["4.2 Montaj utilaje, echipamente tehnologice şi funcţionale",null,null,null,null,null,null,null,null,null,null,null,null,null,null,null,null,null,null,null,null,null,null,null,null,null,null,null,null,null,null,null,null,null,null,0,null,null,null,null,null,null,null,null,0,null,null,null,null,null,null,null,0]
["4.3 Utilaje, echipamente tehnologice şi funcţionale care necesită montaj",null,null,null,null,null,null,null,null,null,null,null,null,null,null,null,null,null,null,null,null,null,null,null,null,null,null,null,null,null,null,null,null,null,null,0,null,null,null,null,null,null,null,null,0,null,null,null,null,null,null,null,0]
["4.4 Utilaje, echipamente tehnologice şi funcţionale care nu necesită montaj\n      şi echipamente",null,null,null,null,null,null,null,null,null,null,null,null,null,null,null,null,null,null,null,null,null,null,null,null,null,null,null,null,null,null,null,null,null,null,0,null,null,null,null,null,null,null,null,0,null,null,null,null,null,null,null,0]
["4.5 Dotări",null,null,null,null,null,null,null,null,null,null,null,null,null,null,null,null,null,null,null,null,null,null,null,null,null,null,null,null,null,null,null,null,null,null,0,null,null,null,null,null,null,null,null,0,null,null,null,null,null,null,null,0]
["4.6 Active necorporale",null,null,null,null,null,null,null,null,null,null,null,null,null,null,null,null,null,null,null,null,null,null,null,null,null,null,null,null,null,null,null,null,null,null,0,null,null,null,null,null,null,null,null,0,null,null,null,null,null,null,null,0]
["B - Cheltuieli pentru investitii în culturi/plantaţii",null,null,null,null,null,null,null,null,null,null,null,null,null,null,null,null,null,null,null,null,null,null,null,null,null,null,null,null,null,null,null,null,null,null,{"$f":"SUM(AJ588:AR592)","v":0},null,null,null,null,null,null,null,null,{"$f":"SUM(AS588:AZ592)","v":0},null,null,null,null,null,null,null,0]
["Subcapitol 1 - Lucrări de pregătire a terenului",null,null,null,null,null,null,null,null,null,null,null,null,null,null,null,null,null,null,null,null,null,null,null,null,null,null,null,null,null,null,null,null,null,null,0,null,null,null,null,null,null,null,null,0,null,null,null,null,null,null,null,0]
["Subcapitol 2 - Infiinţarea plantaţiei",null,null,null,null,null,null,null,null,null,null,null,null,null,null,null,null,null,null,null,null,null,null,null,null,null,null,null,null,null,null,null,null,null,null,0,null,null,null,null,null,null,null,null,0,null,null,null,null,null,null,null,0]
["Subcapitol 3 - Intreţinere plantaţie în anul 1",null,null,null,null,null,null,null,null,null,null,null,null,null,null,null,null,null,null,null,null,null,null,null,null,null,null,null,null,null,null,null,null,null,null,null,null,null,null,null,null,null,null,null,0,null,null,null,null,null,null,null,0]
["Subcapitol 4 - Intreţinere plantaţie în anul 2",null,null,null,null,null,null,null,null,null,null,null,null,null,null,null,null,null,null,null,null,null,null,null,null,null,null,null,null,null,null,null,null,null,null,null,null,null,null,null,null,null,null,null,0,null,null,null,null,null,null,null,0]
["Subcapitol 5 - Instalat sistem susţinere şi împrejmuire",null,null,null,null,null,null,null,null,null,null,null,null,null,null,null,null,null,null,null,null,null,null,null,null,null,null,null,null,null,null,null,null,null,null,{"$f":"AJ315+AJ408+AJ500","v":0},null,null,null,null,null,null,null,null,0,null,null,null,null,null,null,null,0]
["Capitolul 5 Alte cheltuieli - total, din care:",null,null,null,null,null,null,null,null,null,null,null,null,null,null,null,null,null,null,null,null,null,null,null,null,null,null,null,null,null,null,null,null,null,null,{"$f":"AJ594+AJ597+AJ603","v":0},null,null,null,null,null,null,null,null,{"$f":"AS594+AS597+AS603+AS604","v":0},null,null,null,null,null,null,null,0]
["5.1 Organizare de şantier",null,null,null,null,null,null,null,null,null,null,null,null,null,null,null,null,null,null,null,null,null,null,null,null,null,null,null,null,null,null,null,null,null,null,{"$f":"SUM(AJ595:AR596)","v":0},null,null,null,null,null,null,null,null,{"$f":"SUM(AS595:AZ596)","v":0},null,null,null,null,null,null,null,0]
["      5.1.1 lucrări de construcţii şi instalaţii aferente organizării de şantier",null,null,null,null,null,null,null,null,null,null,null,null,null,null,null,null,null,null,null,null,null,null,null,null,null,null,null,null,null,null,null,null,null,null,{"$f":"AJ318+AJ411+AJ503","v":0},null,null,null,null,null,null,null,null,{"$f":"AS318+AS411+AS503","v":0},null,null,null,null,null,null,null,0]
["      5.1.2 cheltuieli conexe orgănizării şantierului",null,null,null,null,null,null,null,null,null,null,null,null,null,null,null,null,null,null,null,null,null,null,null,null,null,null,null,null,null,null,null,null,null,null,0,null,null,null,null,null,null,null,null,0,null,null,null,null,null,null,null,0]
["5.2 Comisioane, taxe, costul creditului",null,null,null,null,null,null,null,null,null,null,null,null,null,null,null,null,null,null,null,null,null,null,null,null,null,null,null,null,null,null,null,null,null,null,{"$f":"AJ599+AJ600+AJ602","v":0},null,null,null,null,null,null,null,null,{"$f":"AS598+AS599+AS600+AS601+AS602","v":0},null,null,null,null,null,null,null,0]
["      5.2.1 Comisioanele şi dobânzile aferente creditului băncii finanţatoare",null,null,null,null,null,null,null,null,null,null,null,null,null,null,null,null,null,null,null,null,null,null,null,null,null,null,null,null,null,null,null,null,null,null,null,null,null,null,null,null,null,null,null,0,null,null,null,null,null,null,null,0]
["      5.2.2 Cota aferentă ISC pentru controlul calităţii lucrărilor de construcţii",null,null,null,null,null,null,null,null,null,null,null,null,null,null,null,null,null,null,null,null,null,null,null,null,null,null,null,null,null,null,null,null,null,null,{"$f":"AJ322+AJ415+AJ507","v":0},null,null,null,null,null,null,null,null,0,null,null,null,null,null,null,null,0]
["      5.2.3 Cota aferentă ISC pentru controlul statului în amenajarea teritoriului,urbanism şi\n               pentru autorizarea lucrărilor de construcţii",null,null,null,null,null,null,null,null,null,null,null,null,null,null,null,null,null,null,null,null,null,null,null,null,null,null,null,null,null,null,null,null,null,null,0,null,null,null,null,null,null,null,null,0,null,null,null,null,null,null,null,0]
["      5.2.4 Cota aferentă Casei Sociale a Constructorilor - CSC",null,null,null,null,null,null,null,null,null,null,null,null,null,null,null,null,null,null,null,null,null,null,null,null,null,null,null,null,null,null,null,null,null,null,null,null,null,null,null,null,null,null,null,0,null,null,null,null,null,null,null,0]
["      5.2.5 Taxe pentru acorduri, avize conforme şi autorizaţia de construire/ desfiinţare",null,null,null,null,null,null,null,null,null,null,null,null,null,null,null,null,null,null,null,null,null,null,null,null,null,null,null,null,null,null,null,null,null,null,0,null,null,null,null,null,null,null,null,0,null,null,null,null,null,null,null,0]
["5.3 Cheltuieli diverse şi neprevăzute",null,null,null,null,null,null,null,null,null,null,null,null,null,null,null,null,null,null,null,null,null,null,null,null,null,null,null,null,null,null,null,null,null,null,0,null,null,null,null,null,null,null,null,0,null,null,null,null,null,null,null,0]
["5.4 Cheltuieli pentru informare şi publicitate",null,null,null,null,null,null,null,null,null,null,null,null,null,null,null,null,null,null,null,null,null,null,null,null,null,null,null,null,null,null,null,null,null,null,null,null,null,null,null,null,null,null,null,0,null,null,null,null,null,null,null,0]
["Procent cheltuieli diverse şi neprevăzute"]
["Capitolul 6 Cheltuieli pentru darea în exploatare - total, din care:",null,null,null,null,null,null,null,null,null,null,null,null,null,null,null,null,null,null,null,null,null,null,null,null,null,null,null,null,null,null,null,null,null,null,{"$f":"SUM(AJ607:AR608)","v":0},null,null,null,null,null,null,null,null,{"$f":"SUM(AS607:AZ608)","v":0},null,null,null,null,null,null,null,{"$f":"SUM(AJ606:AZ606)","v":0}]
["6.1 Pregătirea personalului de exploatare",null,null,null,null,null,null,null,null,null,null,null,null,null,null,null,null,null,null,null,null,null,null,null,null,null,null,null,null,null,null,null,null,null,null,null,null,null,null,null,null,null,null,null,{"$f":"AS330+AS423+AS515","v":0},null,null,null,null,null,null,null,0]
["6.2 Probe tehnologice şi teste",null,null,null,null,null,null,null,null,null,null,null,null,null,null,null,null,null,null,null,null,null,null,null,null,null,null,null,null,null,null,null,null,null,null,{"$f":"AJ331+AJ424+AJ516","v":0},null,null,null,null,null,null,null,null,0,null,null,null,null,null,null,null,0]
["TOTAL GENERAL",null,null,null,null,null,null,null,null,null,null,null,null,null,null,null,null,null,null,null,null,null,null,null,null,null,null,null,null,null,null,null,null,null,null,{"$f":"AJ548+AJ553+AJ554+AJ579+AJ593+AJ606","v":0},null,null,null,null,null,null,null,null,{"$f":"AS548+AS553+AS554+AS579+AS593+AS606","v":0},null,null,null,null,null,null,null,0]
["Verificare actualizare",null,null,null,null,null,null,null,null,null,null,null,null,null,null,null,null,null,null,null,null,null,null,null,null,null,null,null,null,null,null,{"$f":"AJ611*100/AJ609","v":{"$error":"#DIV/0!"}},null,null,{"$f":"IF(AJ609=0,0,AF610)","v":0},{"$f":"IF(AI610<=5,\"actualizare mai mică de 5% din valoarea eligibila\",\"actualizare mai mare de 5% din valoarea eligibila\")","v":"actualizare mai mică de 5% din valoarea eligibila"}]
["ACTUALIZARE Cheltuieli Eligibile (max 5%)",null,null,null,null,null,null,null,null,null,null,null,null,null,null,null,null,null,null,null,null,null,null,null,null,null,null,null,null,null,null,null,null,null,null,{"$f":"AJ334+AJ427+AJ519","v":0},null,null,null,null,null,null,null,null,null,null,null,null,null,null,null,null,{"$f":"SUM(AJ611:AZ611)","v":0}]
["TOTAL GENERAL CU ACTUALIZARE",null,null,null,null,null,null,null,null,null,null,null,null,null,null,null,null,null,null,null,null,null,null,null,null,null,null,null,null,null,null,null,null,null,null,{"$f":"AJ609+AJ611","v":0},null,null,null,null,null,null,null,null,{"$f":"AS609","v":0},null,null,null,null,null,null,null,0]
["Valoare TVA",null,null,null,null,null,null,null,null,null,null,null,null,null,null,null,null,null,null,null,null,null,null,null,null,null,null,null,null,null,null,null,null,null,null,{"$f":"AJ336+AJ429+AJ521","v":0},null,null,null,null,null,null,null,null,{"$f":"AS336+AS429+AS521","v":0},null,null,null,null,null,null,null,0]
["TOTAL GENERAL inclusiv TVA",null,null,null,null,null,null,null,null,null,null,null,null,null,null,null,null,null,null,null,null,null,null,null,null,null,null,null,null,null,null,null,null,null,null,{"$f":"BA612+BA613","v":0}]
[null,null,null,null,null,null,null,null,null,null,null,null,null,null,null,null,null,null,null,null,null,null,null,null,null,null,null,null,null,null,null,null,null,null,null,"LEI",null,null,null,null,null,null,null,null,"EURO"]
["VALOARE TOTALĂ",null,null,null,null,null,null,null,null,null,null,null,null,null,null,null,null,null,null,null,null,null,null,null,null,null,null,null,null,null,null,null,null,null,null,{"$f":"AS616*Z542","v":0},null,null,null,null,null,null,null,null,{"$f":"AJ614","v":0}]
["VALOARE ELIGIBILĂ",null,null,null,null,null,null,null,null,null,null,null,null,null,null,null,null,null,null,null,null,null,null,null,null,null,null,null,null,null,null,null,null,null,null,{"$f":"AS617*Z542","v":0},null,null,null,null,null,null,null,null,{"$f":"AJ612+AJ613","v":0}]
["VALOARE NEELIGIBILĂ",null,null,null,null,null,null,null,null,null,null,null,null,null,null,null,null,null,null,null,null,null,null,null,null,null,null,null,null,null,null,null,null,null,null,{"$f":"AS618*Z542","v":0},null,null,null,null,null,null,null,null,{"$f":"AS612+AS613","v":0}]
["Plan Financiar",null,null,null,null,null,null,null,null,null,null,null,null,null,null,null,null,null,null,null,null,null,null,null,null,null,null,null,null,null,null,null,null,null,null,"Cheltuieli eligibile EURO",null,null,null,null,null,null,null,null,"Cheltuieli neeligibile EURO",null,null,null,null,null,null,null,"Total"]
["Ajutor public nerambursabil (contribuţie UE şi cofinanţare naţională)",null,null,null,null,null,null,null,null,null,null,null,null,null,null,null,null,null,null,null,null,null,null,null,null,null,null,null,null,null,null,null,null,null,null,{"$f":"AJ344+AJ436+AJ528","v":0},null,null,null,null,null,null,null,null,null,null,null,null,null,null,null,null,{"$f":"SUM(AJ620:AZ620)","v":0}]
["Cofinantare privata, din care:",null,null,null,null,null,null,null,null,null,null,null,null,null,null,null,null,null,null,null,null,null,null,null,null,null,null,null,null,null,null,null,null,null,null,{"$f":"AJ622+AJ623+AJ624","v":0},null,null,null,null,null,null,null,null,{"$f":"AS622+AS623+AS624","v":0},null,null,null,null,null,null,null,0]
[null,null,null,null,null,null,null,null,null,null,null,null,null,null,null,"- contributia in natura",null,null,null,null,null,null,null,null,null,null,null,null,null,null,null,null,null,null,null,{"$f":"AJ346+AJ438+AJ530","v":0},null,null,null,null,null,null,null,null,{"$f":"AS346+AS438+AS530","v":0},null,null,null,null,null,null,null,0]
[null,null,null,null,null,null,null,null,null,null,null,null,null,null,null,"- autofinanțare",null,null,null,null,null,null,null,null,null,null,null,null,null,null,null,null,null,null,null,{"$f":"AJ347+AJ439+AJ531","v":0},null,null,null,null,null,null,null,null,{"$f":"AS347+AS439+AS531","v":0},null,null,null,null,null,null,null,0]
[null,null,null,null,null,null,null,null,null,null,null,null,null,null,null,"- împrumuturi",null,null,null,null,null,null,null,null,null,null,null,null,null,null,null,null,null,null,null,{"$f":"AJ348+AJ440+AJ532","v":0},null,null,null,null,null,null,null,null,{"$f":"AS348+AS440+AS532","v":0},null,null,null,null,null,null,null,0]
["TOTAL PROIECT",null,null,null,null,null,null,null,null,null,null,null,null,null,null,null,null,null,null,null,null,null,null,null,null,null,null,null,null,null,null,null,null,null,null,{"$f":"AJ620+AJ621","v":0},null,null,null,null,null,null,null,null,{"$f":"AS621","v":0},null,null,null,null,null,null,null,0]
["Procent contribuţie publică",null,null,null,null,null,null,null,null,null,null,null,null,null,null,null,null,null,null,null,null,null,null,null,null,null,null,null,null,null,null,null,null,{"$f":"AJ620*100/AJ625","v":{"$error":"#DIV/0!"}},{"$f":"IF(AJ625=0,0,AH626)","v":0},{"$f":"AI626","v":0},null,null,null,null,null,null,null,"%"]
["Avans solicitat"]
["Procent avans solicitat ca procent din ajutorul public nerambursabil",null,null,null,null,null,null,null,null,null,null,null,null,null,null,null,null,null,null,null,null,null,null,null,null,null,null,null,null,null,null,null,null,null,{"$f":"AJ627*100/AJ620","v":{"$error":"#DIV/0!"}},{"$f":"IF(AJ620=0,0,AI628)","v":0},null,null,null,null,null,null,null,null,{"$f":"IF(AJ628<=50,\"Suma avans mai mica de 50% din ajutorul public\",\"Suma avans mai mare de 50% din ajutorul public\")","v":"Suma avans mai mica de 50% din ajutorul public"}]
[]
[null,null,null,null,null,null,null,"MINISTERUL AGRICULTURII ŞI DEZVOLTĂRII RURALE"]
[null,null,null,null,null,null,null,null,null,null,null,null,null,null,null,null,null,null,null,null,null,null,null,null,null,null,null,null,null,null,null,null,null,null,null,null,null,null,null,null,null,null,"Anexa A1 HG_907"]
[null,null,null,null,null,null,null,"AGENŢIA PENTRU FINANŢAREA INVESTIŢIILOR RURALE"]
[null,null,null,null,null,null,null,null,null,null,null,null,null,null,null,null,null,null,null,null,null,null,null,null,null,null,null,null,null,null,null,null,null,null,null,null,null,null,null,null,null,null,null,null,null,null,null,null,null,null,null,"Aprilie 2017"]
[null,null,null,null,null,null,null,"Deviz financiar- Capitolul 3 - Cheltuieli pentru proiectare şi asistenţa tehnică - EURO"]
["Nr.1"]
[]
["(Titlu deviz)"]
["Nr.crt",null,null,null,"Specificaţie",null,null,null,null,null,null,null,null,null,null,null,null,null,null,null,null,null,null,null,null,null,null,null,null,null,null,null,null,null,null,null,null,null,null,null,null,null,"Valoare eligibilă",null,null,null,null,null,null,null,null,"Valoare\nneeligibilă"]
["3.1",null,null,null,"Cheltuieli pentru studii ",null,null,null,null,null,null,null,null,null,null,null,null,null,null,null,null,null,null,null,null,null,null,null,null,null,null,null,null,null,null,null,null,null,null,null,null,null,{"$f":"SUM(AQ640:AY642)","v":0},null,null,null,null,null,null,null,null,{"$f":"SUM(AZ640:BI642)","v":0}]
[null,null,null,null,"3.1.1 Studii de teren: studii geotehnice, geologice, hidrologice, hidrogeotehnice, fotogrammetrice, topografica şi de stabilitate ale terenului pe care se amplasează obiectivul de investiţie"]
[null,null,null,null,"3.1.2 Raport privind impactul asupra mediului"]
[null,null,null,null,"3.1.3 Studii de specialitate necesare în funcţie de specificul investiţiei"]
["3.2",null,null,null,"Documentaţii-suport şi cheltuieli pentru obţinerea de avize, acorduri şi autorizaţii",null,null,null,null,null,null,null,null,null,null,null,null,null,null,null,null,null,null,null,null,null,null,null,null,null,null,null,null,null,null,null,null,null,null,null,null,null,{"$f":"SUM(AQ644:AY652)","v":0},null,null,null,null,null,null,null,null,{"$f":"SUM(AZ644:BI652)","v":0}]
[null,null,null,null,"1. obţinerea/prelungirea valabilităţii ceritificatului de urbanism"]
[null,null,null,null,"2. obţinerea/prelungirea valabilităţii autorizaţiei de construire/desfiinţare"]
[null,null,null,null,"3. obţinerea avizelor şi acordurilor pentru racorduri şi branşamente la reţele publice de alimentare cu apă, canalizare, alimentare cu gaze, alimentare cu agent termic, energie electrică, telefonie"]
[null,null,null,null,"4. obţinerea certificatului de nomenclatură stradală şi adresă"]
[null,null,null,null,"5. întocmirea documentaţiei, obţinerea numărului cadastral provizoriu şi înregistrarea terenului în cartea funciară"]
[null,null,null,null,"6. obţinerea actului administrativ al autorităţii competente pentru protecţia mediului"]
[null,null,null,null,"7. obţinerea avizului de protecţie civilă"]
[null,null,null,null,"8. avizul de specialitate în cazul obiectivelor de patrimoniu"]
[null,null,null,null,"9. alte avize, acorduri şi autorizaţii"]
["3.3",null,null,null,"Cheltuieli pentru expertizarea tehnică a construcţiilor existente, a structurilor şi/sau, după caz, a proiectelor tehnice, inclusiv întocmirea de către expertul tehnic a raportului de expertiză tehnică"]
["3.4",null,null,null,"Cheltuieli pentru certificarea performanţei energetice şi auditul energetic al clădirilor"]
["3.5",null,null,null,"Cheltuieli pentru proiectare",null,null,null,null,null,null,null,null,null,null,null,null,null,null,null,null,null,null,null,null,null,null,null,null,null,null,null,null,null,null,null,null,null,null,null,null,null,{"$f":"SUM(AQ656:AY661)","v":0},null,null,null,null,null,null,null,null,{"$f":"SUM(AZ656:BI661)","v":0}]
[null,null,null,null,"3.5.1 Temă de proiectare"]
[null,null,null,null,"3.5.2 Studiu de prefezabilitate"]
[null,null,null,null,"3.5.3 Studiu de fezabilitate/documentaţie de avizare a lucrărilor de intervenţii şi deviz general"]
[null,null,null,null,"3.5.4 Documentaţiile tehnice necesare în vederea obţinerii avizelor/acordurilor/ autorizaţiilor"]
[null,null,null,null,"3.5.5 Verificarea tehnică de calitate a proiectului tehnic şi a detaliilor de execuţie"]
[null,null,null,null,"3.5.6 Proiect tehnic şi detalii de execuţie"]
["3.6",null,null,null,"Cheltuieli aferente organizării şi derulării procedurilor de achiziţii publice",null,null,null,null,null,null,null,null,null,null,null,null,null,null,null,null,null,null,null,null,null,null,null,null,null,null,null,null,null,null,null,null,null,null,null,null,null,{"$f":"SUM(AQ663:AY666)","v":0},null,null,null,null,null,null,null,null,{"$f":"SUM(AZ663:BI666)","v":0}]
[null,null,null,null,"1. Cheltuieli aferente întocmirii documentaţiei de atribuire şi multiplicării acesteia (exclusiv cele cumpărate de ofertanţi)"]
[null,null,null,null,"2. Cheltuieli cu onorariile, transportul, cazarea şi diurna membrilor desemnaţi în comisiile de evaluare"]
[null,null,null,null,"3. Anunţuri de intenţie, de participare şi de atribuire a contractelor, corespondenţă prin poştă, fax, poştă electronică în legătură cu procedurile de achiziţie publică"]
[null,null,null,null,"4. Cheltuieli aferente organizării şi derulării procedurilor de achiziţii publice"]
["3.7",null,null,null,"Cheltuieli pentru consultanţă",null,null,null,null,null,null,null,null,null,null,null,null,null,null,null,null,null,null,null,null,null,null,null,null,null,null,null,null,null,null,null,null,null,null,null,null,null,{"$f":"SUM(AQ668:AY669)","v":0},null,null,null,null,null,null,null,null,{"$f":"SUM(AZ668:BI669)","v":0}]
[null,null,null,null,"3.7.1 Managementul de proiect pentru obiectivul de investiţii"]
[null,null,null,null,"3.7.2 Auditul financiar"]
["3.8",null,null,null,"Cheltuieli pentru asistenţă tehnică",null,null,null,null,null,null,null,null,null,null,null,null,null,null,null,null,null,null,null,null,null,null,null,null,null,null,null,null,null,null,null,null,null,null,null,null,null,{"$f":"AQ671+AQ674","v":0},null,null,null,null,null,null,null,null,{"$f":"AZ671+AZ674","v":0}]
[null,null,null,null,"3.8.1. Asistenţă tehnică din partea proiectantului",null,null,null,null,null,null,null,null,null,null,null,null,null,null,null,null,null,null,null,null,null,null,null,null,null,null,null,null,null,null,null,null,null,null,null,null,null,{"$f":"SUM(AQ672:AY673)","v":0},null,null,null,null,null,null,null,null,{"$f":"SUM(AZ672:BI673)","v":0}]
[null,null,null,null,"\n1.1. pe perioada de execuţie a lucrărilor"]
[null,null,null,null,"1.2. pentru participarea proiectantului la fazele incluse în programul de control al lucrărilor de execuţie, avizat de către Inspectoratul de Stat în Construcţii"]
[null,null,null,null,"3.8.2 Dirigenţie de şantier, asigurată de personal tehnic de specialitate, autorizat"]
["Total valoare fără TVA",null,null,null,null,null,null,null,null,null,null,null,null,null,null,null,null,null,null,null,null,null,null,null,null,null,null,null,null,null,null,null,null,null,null,null,null,null,null,null,null,null,{"$f":"AQ639+AQ643+AQ653+AQ654+AQ655+AQ662+AQ667+AQ670","v":0},null,null,null,null,null,null,null,null,{"$f":"AZ639+AZ643+AZ653+AZ654+AZ655+AZ662+AZ667+AZ670","v":0}]
["Valoare TVA (aferentă cheltuielilor eligibile şi neeligibile)"]
["TOTAL DEVIZ FINANCIAR 1 (inclusiv TVA)",null,null,null,null,null,null,null,null,null,null,null,null,null,null,null,null,null,null,null,null,null,null,null,null,null,null,null,null,null,null,null,null,null,null,null,null,null,null,null,null,null,{"$f":"SUM(AQ675:BI676)","v":0}]
[]
[]
[]
[]
[]
[null,null,null,null,null,null,null,"MINISTERUL AGRICULTURII ŞI DEZVOLTĂRII RURALE"]
[null,null,null,null,null,null,null,null,null,null,null,null,null,null,null,null,null,null,null,null,null,null,null,null,null,null,null,null,null,null,null,null,null,null,null,null,null,null,null,null,null,null,"Anexa A2 HG_907"]
[null,null,null,null,null,null,null,"AGENŢIA PENTRU FINANŢAREA INVESTIŢIILOR RURALE"]
[null,null,null,null,null,null,null,null,null,null,null,null,null,null,null,null,null,null,null,null,null,null,null,null,null,null,null,null,null,null,null,null,null,null,null,null,null,null,null,null,null,null,null,null,null,null,null,null,null,null,null,"Aprilie 2017"]
[null,null,null,null,null,null,null,"DEVIZUL OBIECTULUI *"]
["Nr.1"]
[]
[]
["Nr. crt.",null,null,null,"Denumire",null,null,null,null,null,null,null,null,null,null,null,null,null,null,null,null,null,null,null,null,null,null,null,null,null,null,null,null,null,null,null,null,null,null,null,null,null,"Valoarea pe categorii de lucrări, fară TVA - EURO"]
[null,null,null,null,"Cap. 4 - Cheltuieli pentru investiţia de bază",null,null,null,null,null,null,null,null,null,null,null,null,null,null,null,null,null,null,null,null,null,null,null,null,null,null,null,null,null,null,null,null,null,null,null,null,null,"Valoare eligibilă",null,null,null,null,null,null,null,null,"Valoare\nneeligibilă"]
["I - LUCRĂRI DE CONSTRUCŢII ŞI INSTALAŢII"]
["4.1",null,null,null,"Construcţii şi instalaţii"]
[null,null,null,null,"4.1.1 Terasamente, sistematizare pe verticală şi amenajări exterioare"]
[null,null,null,null,"4.1.2 Rezistenţă"]
[null,null,null,null,"4.1.3 Arhitectură"]
[null,null,null,null,"4.1.4 Instalaţii"]
[null,null,null,null,"TOTAL I ( fără TVA)",null,null,null,null,null,null,null,null,null,null,null,null,null,null,null,null,null,null,null,null,null,null,null,null,null,null,null,null,null,null,null,null,null,null,null,null,null,{"$f":"SUM(AQ694:AY698)","v":0},null,null,null,null,null,null,null,null,{"$f":"SUM(AZ694:BI698)","v":0}]
["II - MONTAJ"]
["4.2",null,null,null,"Montaj utilaje, echipamente tehnologice şi funcţionale"]
[null,null,null,null,"TOTAL II ( fără TVA)",null,null,null,null,null,null,null,null,null,null,null,null,null,null,null,null,null,null,null,null,null,null,null,null,null,null,null,null,null,null,null,null,null,null,null,null,null,{"$f":"SUM(AQ701)","v":0},null,null,null,null,null,null,null,null,{"$f":"SUM(AZ701)","v":0}]
["III - PROCURARE"]
["4.3",null,null,null,"Utilaje, echipamente tehnologice şi funcţionale care necesită montaj"]
["4.4",null,null,null,"Utilaje, echipamente tehnologice şi funcţionale care nu necesită montaj şi echipamente de transport"]
["4.5",null,null,null,"Dotări"]
["4.6",null,null,null,"Active necorporale"]
[null,null,null,null,"TOTAL III ( fără TVA)",null,null,null,null,null,null,null,null,null,null,null,null,null,null,null,null,null,null,null,null,null,null,null,null,null,null,null,null,null,null,null,null,null,null,null,null,null,{"$f":"SUM(AQ704:AY707)","v":0},null,null,null,null,null,null,null,null,{"$f":"SUM(AZ704:BI707)","v":0}]
["TOTAL ( TOTAL I + TOTAL II +TOTAL III) fără TVA",null,null,null,null,null,null,null,null,null,null,null,null,null,null,null,null,null,null,null,null,null,null,null,null,null,null,null,null,null,null,null,null,null,null,null,null,null,null,null,null,null,{"$f":"AQ708+AQ702+AQ699","v":0},null,null,null,null,null,null,null,null,{"$f":"AZ708+AZ702+AZ699","v":0}]
["TVA aferent cheltuielilor eligibile şi neeligibile"]
["TOTAL DEVIZ PE OBIECT (inclusiv TVA)",null,null,null,null,null,null,null,null,null,null,null,null,null,null,null,null,null,null,null,null,null,null,null,null,null,null,null,null,null,null,null,null,null,null,null,null,null,null,null,null,null,{"$f":"AQ709+AZ709+AQ710+AZ710","v":0}]
[]
[null,"*) Se înscrie denumirea obiectului de construcţie sau intervenţie"]
[]
[]
[]
[]
[]
[null,null,null,null,null,null,null,"MINISTERUL AGRICULTURII ŞI DEZVOLTĂRII RURALE",null,null,null,null,null,null,null,null,null,null,null,null,null,null,null,null,null,null,null,null,null,null,null,null,null,null,null,null,null,null,null,null,null,null,"Anexa A3 HG_907"]
[]
[null,null,null,null,null,null,null,"AGENŢIA PENTRU FINANŢAREA INVESTIŢIILOR RURALE",null,null,null,null,null,null,null,null,null,null,null,null,null,null,null,null,null,null,null,null,null,null,null,null,null,null,null,null,null,null,null,null,null,null,null,null,null,null,null,null,null,null,null,"Aprilie 2017"]
[]
["Nr.1"]
[]
[]
["Deviz capitolul 2- Cheltuieli pentru asigurarea utilităţilor necesare obiectivului - EURO"]
["Nr. crt.",null,null,null,"Specificaţie",null,null,null,null,null,null,null,null,null,null,null,null,null,null,null,null,null,null,null,null,null,null,null,null,null,null,null,null,null,null,null,null,null,null,null,null,null,"Valoare eligibilă",null,null,null,null,null,null,null,null,"Valoare\nneeligibilă"]
[1,null,null,null,"Alimentare cu apă"]
[2,null,null,null,"Canalizare"]
[3,null,null,null,"Alimentare cu gaze naturale"]
[4,null,null,null,"Alimentare cu agent termic"]
[5,null,null,null,"Alimentare cu energie electrică"]
[6,null,null,null,"Telecomunicaţii (telefonie, radio-tv,etc)"]
[7,null,null,null,"Drumuri de acces"]
[8,null,null,null,"Căi ferate industriale"]
[9,null,null,null,"Alte utilitati"]
[null,null,null,null,"TOTAL DEVIZ CAPITOLUL 2",null,null,null,null,null,null,null,null,null,null,null,null,null,null,null,null,null,null,null,null,null,null,null,null,null,null,null,null,null,null,null,null,null,null,null,null,null,{"$f":"SUM(AQ728:AY736)","v":0},null,null,null,null,null,null,null,null,{"$f":"SUM(AZ728:BI736)","v":0}]
[null,null,null,null,"Valoare TVA aferentă cheltuielilor eligibile şi neeligibile"]
["TOTAL DEVIZ CAPITOLUL 2 (inclusiv TVA)",null,null,null,null,null,null,null,null,null,null,null,null,null,null,null,null,null,null,null,null,null,null,null,null,null,null,null,null,null,null,null,null,null,null,null,null,null,null,null,null,null,{"$f":"AQ737+AZ737+AQ738+AZ738","v":0}]
[]
[" Deviz capitolul 5 - Alte cheltuieli - EURO"]
["Nr. crt.",null,null,null,"Specificaţie",null,null,null,null,null,null,null,null,null,null,null,null,null,null,null,null,null,null,null,null,null,null,null,null,null,null,null,null,null,null,null,null,null,null,null,null,null,"Valoare eligibilă",null,null,null,null,null,null,null,null,"Valoare\nneeligibilă"]
[]
["5.1 ",null,null,null,"Organizare de şantier",null,null,null,null,null,null,null,null,null,null,null,null,null,null,null,null,null,null,null,null,null,null,null,null,null,null,null,null,null,null,null,null,null,null,null,null,null,{"$f":"SUM(AQ745:AY746)","v":0},null,null,null,null,null,null,null,null,{"$f":"SUM(AZ745:BI746)","v":0}]
[null,null,null,null,"5.1.1 Lucrări de construcţii şi instalaţii aferente organizării de şantier"]
[null,null,null,null,"5.1.2 Cheltuieli conexe organizării de şantier"]
["5.2",null,null,null,"Comisioane, cote, taxe, costul creditului",null,null,null,null,null,null,null,null,null,null,null,null,null,null,null,null,null,null,null,null,null,null,null,null,null,null,null,null,null,null,null,null,null,null,null,null,null,{"$f":"SUM(AQ749:AY752)","v":0},null,null,null,null,null,null,null,null,{"$f":"SUM(AZ748:BI752)","v":0}]
[null,null,null,null,"5.2.1. Comisioanele şi dobânzile aferente creditului băncii finanţatoare"]
[null,null,null,null,"5.2.2. Cota aferentă ISC pentru controlul calităţii lucrărilor de construcţii"]
[null,null,null,null,"5.2.3. Cota aferentă ISC pentru controlul statului în amenajarea teritoriului, urbanism şi pentru autorizarea lucrărilor de construcţii"]
[null,null,null,null,"5.2.4. Cota aferentă Casei Sociale a Constructorilor - CSC"]
[null,null,null,null,"5.2.5. Taxe pentru acorduri, avize conforme şi autorizaţia de construire/ desfiinţare"]
["5.3",null,null,null," Cheltuieli diverse si neprevazute"]
["5.4",null,null,null," Cheltuieli pentru informare şi publicitate"]
[null,null,null,null,"TOTAL DEVIZ CAPITOLUL 5",null,null,null,null,null,null,null,null,null,null,null,null,null,null,null,null,null,null,null,null,null,null,null,null,null,null,null,null,null,null,null,null,null,null,null,null,null,{"$f":"AQ744+AQ747+AQ753","v":0},null,null,null,null,null,null,null,null,{"$f":"AZ744+AZ747+AZ753+AZ754","v":0}]
[null,null,null,null,"VALOARE TVA aferentă cheltuielilor eligibile şi neeligibile"]
[null,null,null,null,"TOTAL DEVIZ CAPITOLUL 5 ( inclusiv TVA)",null,null,null,null,null,null,null,null,null,null,null,null,null,null,null,null,null,null,null,null,null,null,null,null,null,null,null,null,null,null,null,null,null,null,null,null,null,{"$f":"AQ755+AZ755+AQ756+AZ756","v":0}]
[]
[]
[]
[]
[]
[]
["MINISTERUL AGRICULTURII ŞI DEZVOLTĂRII RURALE",null,null,null,null,null,null,null,null,null,null,null,null,null,null,null,null,null,null,null,null,null,null,null,null,null,null,null,null,null,null,null,null,null,null,null,null,null,null,null,null,null,"Anexa A4"]
["AGENŢIA PENTRU FINANŢAREA INVESTIŢIILOR RURALE"]
["Deviz cheltuieli culturi - EURO - Culturi perene"]
["Nr. crt.",null,null,null,"Specificaţie",null,null,null,null,null,null,null,null,null,null,null,null,null,null,null,null,null,null,null,null,null,null,null,null,null,null,null,null,null,null,null,null,null,null,null,null,null,"Valoare eligibilă",null,null,null,null,null,null,null,null,"Valoare\nneeligibilă"]
["I. LUCRĂRI DE ÎNFIINŢARE PLANTAŢIE"]
[1,null,null,null,"Subcapitolul I Lucrări de pregătire a terenului"]
[null,null,null,null,"1. Manoperă"]
["a"]
[null,null,null,null,"Total (1)",null,null,null,null,null,null,null,null,null,null,null,null,null,null,null,null,null,null,null,null,null,null,null,null,null,null,null,null,null,null,null,null,null,null,null,null,null,{"$f":"AQ771","v":0},null,null,null,null,null,null,null,null,{"$f":"AZ771","v":0}]
[null,null,null,null,"2. Lucrări mecanice"]
["a"]
["b"]
["c"]
[null,null,null,null,"Total (2)",null,null,null,null,null,null,null,null,null,null,null,null,null,null,null,null,null,null,null,null,null,null,null,null,null,null,null,null,null,null,null,null,null,null,null,null,null,{"$f":"SUM(AQ774:AY776)","v":0},null,null,null,null,null,null,null,null,{"$f":"SUM(AZ774:BI776)","v":0}]
[null,null,null,null,"Total subcapitol I (1+2)",null,null,null,null,null,null,null,null,null,null,null,null,null,null,null,null,null,null,null,null,null,null,null,null,null,null,null,null,null,null,null,null,null,null,null,null,null,{"$f":"AQ772+AQ777","v":0},null,null,null,null,null,null,null,null,{"$f":"AZ772+AZ777","v":0}]
[2,null,null,null,"Subcapitolul II Înfiinţarea plantaţiei"]
["Atenţie! Sunt eligibile numai cheltuielile cu servicii executate de terţi."]
[null,null,null,null,"1. Manoperă"]
["a"]
["b"]
["c"]
["d"]
["e"]
["f"]
["g"]
["h"]
["i"]
[null,null,null,null,"Total (1)",null,null,null,null,null,null,null,null,null,null,null,null,null,null,null,null,null,null,null,null,null,null,null,null,null,null,null,null,null,null,null,null,null,null,null,null,null,{"$f":"SUM(AQ782:AY790)","v":0},null,null,null,null,null,null,null,null,{"$f":"SUM(AZ782:BI790)","v":0}]
[null,null,null,null,"2. Lucrări mecanice"]
["a"]
["b"]
["c"]
["d"]
[null,null,null,null,"Total (2)",null,null,null,null,null,null,null,null,null,null,null,null,null,null,null,null,null,null,null,null,null,null,null,null,null,null,null,null,null,null,null,null,null,null,null,null,null,{"$f":"SUM(AQ793:AY796)","v":0},null,null,null,null,null,null,null,null,{"$f":"SUM(AZ793:BI796)","v":0}]
[null,null,null,null,"3. Materii şi materiale "]
["a"]
["b"]
["c"]
["d"]
["e"]
[null,null,null,null,"Total (3)",null,null,null,null,null,null,null,null,null,null,null,null,null,null,null,null,null,null,null,null,null,null,null,null,null,null,null,null,null,null,null,null,null,null,null,null,null,{"$f":"SUM(AQ799:AY803)","v":0},null,null,null,null,null,null,null,null,{"$f":"SUM(AZ799:BI803)","v":0}]
[null,null,null,null,"Total subcapitol II (1+2+3)",null,null,null,null,null,null,null,null,null,null,null,null,null,null,null,null,null,null,null,null,null,null,null,null,null,null,null,null,null,null,null,null,null,null,null,null,null,{"$f":"AQ791+AQ797+AQ804","v":0},null,null,null,null,null,null,null,null,{"$f":"AZ791+AZ797+AZ804","v":0}]
[3,null,null,null,"Subcapitolul III Întreţinere plantaţie în anul 1   ATENŢIE! Cheltuieli neeligibile"]
[null,null,null,null,"1. Manoperă"]
[null,null,null,null,"Total (1)"]
[null,null,null,null,"2. Lucrări mecanice"]
[null,null,null,null,"Total (2)"]
[null,null,null,null,"3. Materii şi materiale "]
[null,null,null,null,"Total (3)"]
[null,null,null,null,"Total subcapitol III (1+2+3)",null,null,null,null,null,null,null,null,null,null,null,null,null,null,null,null,null,null,null,null,null,null,null,null,null,null,null,null,null,null,null,null,null,null,null,null,null,null,null,null,null,null,null,null,null,null,{"$f":"AZ808+AZ810+AZ812","v":0}]
[4,null,null,null,"Subcapitolul IV Întreţinere plantaţie în anul 2   ATENŢIE! Cheltuieli neeligibile"]
[null,null,null,null,"1. Manoperă"]
[null,null,null,null,"Total (1)"]
[null,null,null,null,"2. Lucrări mecanice"]
[null,null,null,null,"Total (2)"]
[null,null,null,null,"3. Materii şi materiale "]
[null,null,null,null,"Total (3)"]
[null,null,null,null,"Total subcapitol IV (1+2+3)",null,null,null,null,null,null,null,null,null,null,null,null,null,null,null,null,null,null,null,null,null,null,null,null,null,null,null,null,null,null,null,null,null,null,null,null,null,null,null,null,null,null,null,null,null,null,{"$f":"AZ816+AZ818+AZ820","v":0}]
[5,null,null,null,"Subcapitolul V Instalat sistem susţinere şi împrejmuire"]
[null,null,null,null,"1. Manoperă"]
["a"]
["b"]
["c"]
["d"]
["e"]
["f"]
["g"]
[null,null,null,null,"Total (1)",null,null,null,null,null,null,null,null,null,null,null,null,null,null,null,null,null,null,null,null,null,null,null,null,null,null,null,null,null,null,null,null,null,null,null,null,null,{"$f":"SUM(AQ824:AY830)","v":0},null,null,null,null,null,null,null,null,{"$f":"SUM(AZ824:BI830)","v":0}]
[null,null,null,null,"2. Materii şi materiale"]
["a"]
["b"]
["c"]
["d"]
[null,null,null,null,"Total (2)",null,null,null,null,null,null,null,null,null,null,null,null,null,null,null,null,null,null,null,null,null,null,null,null,null,null,null,null,null,null,null,null,null,null,null,null,null,{"$f":"SUM(AQ833:AY836)","v":0},null,null,null,null,null,null,null,null,{"$f":"SUM(AZ833:BI836)","v":0}]
[null,null,null,null,"Total subcapitol V (1+2)",null,null,null,null,null,null,null,null,null,null,null,null,null,null,null,null,null,null,null,null,null,null,null,null,null,null,null,null,null,null,null,null,null,null,null,null,null,{"$f":"AQ831+AQ837","v":0},null,null,null,null,null,null,null,null,{"$f":"AZ831+AZ837","v":0}]
["TOTAL ELIGIBIL / NEELIGIBIL FĂRĂ TVA",null,null,null,null,null,null,null,null,null,null,null,null,null,null,null,null,null,null,null,null,null,null,null,null,null,null,null,null,null,null,null,null,null,null,null,null,null,null,null,null,null,{"$f":"AQ778+AQ805+AQ838","v":0},null,null,null,null,null,null,null,null,{"$f":"AZ778+AZ805+AZ813+AZ821+AZ838","v":0}]
["VALOARE TVA aferentă cheltuielilor eligibile şi neeligibile"]
["TOTAL DEVIZ CU TVA",null,null,null,null,null,null,null,null,null,null,null,null,null,null,null,null,null,null,null,null,null,null,null,null,null,null,null,null,null,null,null,null,null,null,null,null,null,null,null,null,null,{"$f":"SUM(AQ839:BI840)","v":0}]
[]
["MINISTERUL AGRICULTURII ŞI DEZVOLTĂRII RURALE",null,null,null,null,null,null,null,null,null,null,null,null,null,null,null,null,null,null,null,null,null,null,null,null,null,null,null,null,null,null,null,null,null,null,null,null,null,null,null,null,null,"Anexa A5"]
["AGENŢIA PENTRU FINANŢAREA INVESTIŢIILOR RURALE"]
["\"VALORI PENTRU COSTURI STANDARD* ȘI CONTRIBUȚIE ÎN NATURĂ*, APLICABILE INVESTIŢIILOR\ndin cadrul sub-programului tematic pomicol\nMĂSURA 2.1. (2A)\""]
[]
[]
[]
["I. Valori aplicabile tuturor speciilor"]
[null,null,null,null,null,null,null,null,null,null,null,null,null,"Costuri în Euro / ha"]
["Nr. crt.",null,"Specificare",null,null,null,null,null,null,null,null,null,null,"cost\nstandard",null,null,null,"Suprafaţa (ha)",null,null,null,"Total costuri (euro)",null,null,null,"contribuţie\nîn natură",null,null,null,"Suprafaţa (ha)",null,null,null,null,"Total costuri (euro)",null,null,null,"Total general (euro)"]
[1,null,"Proiectare, analize sol, asistenţă tehnică",null,null,null,null,null,null,null,null,null,null,620,null,null,null,null,null,null,null,{"$f":"N852*R852","v":0},null,null,null,0,null,null,null,0,null,null,null,null,0,null,null,null,{"$f":"V852+AI852","v":0}]
[2,null,"Pregătirea terenului",null,null,null,null,null,null,null,null,null,null,840,null,null,null,null,null,null,null,{"$f":"N853*R853","v":0},null,null,null,714,null,null,null,null,null,null,null,null,{"$f":"Z853*AD853","v":0},null,null,null,{"$f":"V853+AI853","v":0}]
[3,null,"Defrişare plantaţie**",null,null,null,null,null,null,null,null,null,null,760,null,null,null,null,null,null,null,0,null,null,null,646,null,null,null,null,null,null,null,null,{"$f":"Z854*AD854","v":0},null,null,null,{"$f":"V854+AI854","v":0}]
[4,null,"Echipament de irigare localizată",null,null,null,null,null,null,null,null,null,null,3500,null,null,null,null,null,null,null,0,null,null,null,0,null,null,null,0,null,null,null,null,0,null,null,null,0]
[5,null,"Instalare echipament irigare localizată",null,null,null,null,null,null,null,null,null,null,500,null,null,null,null,null,null,null,0,null,null,null,425,null,null,null,null,null,null,null,null,{"$f":"Z856*AD856","v":0},null,null,null,0]
[null,null,null,null,null,null,null,null,null,null,null,null,null,"Costuri EURO/ml perimetru"]
[1,null,"Sistem de împrejmuire",null,null,null,null,null,null,null,null,null,null,10,null,null,null,null,null,null,null,0,null,null,null,0,null,null,null,0,null,null,null,null,0,null,null,null,{"$f":"V858+AI858","v":0}]
[2,null,"Instalare sistem împrejmuire",null,null,null,null,null,null,null,null,null,null,2,null,null,null,null,null,null,null,0,null,null,null,1.7,null,null,null,null,null,null,null,null,0,null,null,null,{"$f":"V859+AI859","v":0}]
[null,null,"Total:",null,null,null,null,null,null,null,null,null,null,null,null,null,null,null,null,null,null,{"$f":"SUM(V852:Y856)+SUM(V858:Y859)","v":0},null,null,null,null,null,null,null,null,null,null,null,null,{"$f":"SUM(AI852:AL856)+SUM(AI858:AL859)","v":0},null,null,null,{"$f":"SUM(AM852:AP856)+SUM(AM858:AP859)","v":0}]
["** Defrişarea nu se aplică culturii de căpşuni şi pepinierelor pomicole"]
[]
["II. Valori aplicabile culturilor de cireş, măr, mur cu ghimpi, păr, prun, vişin şi zmeur"]
["a) Achiziţionarea şi instalarea sistemelor de susţinere:"]
[null,null,null,null,null,null,null,null,null,null,null,null,"Costuri în Euro / ha"]
["Nr. crt.",null,"Specificare",null,null,null,null,null,null,null,null,null,"cost\nstandard",null,null,null,"Suprafaţa (ha)",null,"Total costuri (euro)",null,null,null,"cost\nstandard",null,null,null,"Suprafaţa (ha)",null,null,null,"Total costuri (euro)",null,null,null,null,"contribuţie\nîn natură",null,null,null,"Suprafaţa (ha)",null,null,"Total costuri (euro)",null,null,null,"contribuţie\nîn natură",null,null,null,"Suprafaţa (ha)",null,null,"Total costuri (euro)",null,null,"Total general (euro)"]
[null,null,"Număr de pomi la hectar",null,null,null,null,null,null,null,null,null,"< 1250",null,null,null,null,null,null,null,null,null,">= 1250",null,null,null,null,null,null,null,null,null,null,null,null,"<1250",null,null,null,null,null,null,null,null,null,null,">=1250"]
[1,null,"Sistem de susţinere",null,null,null,null,null,null,null,null,null,8850,null,null,null,null,null,{"$f":"M868*Q868","v":0},null,null,null,10550,null,null,null,null,null,null,null,{"$f":"W868*AA868","v":0},null,null,null,null,0,null,null,null,0,null,null,0,null,null,null,0,null,null,null,0,null,null,0,null,null,{"$f":"S868+AE868+AQ868+BB868","v":0}]
[2,null,"Tutori",null,null,null,null,null,null,null,null,null,885,null,null,null,null,null,{"$f":"M869*Q869","v":0},null,null,null,2380,null,null,null,null,null,null,null,{"$f":"W869*AA869","v":0},null,null,null,null,0,null,null,null,0,null,null,0,null,null,null,0,null,null,null,0,null,null,0,null,null,{"$f":"S869+AE869+AQ869+BB869","v":0}]
[3,null,"Instalare sistem de susţinere",null,null,null,null,null,null,null,null,null,790,null,null,null,null,null,{"$f":"M870*Q870","v":0},null,null,null,875,null,null,null,null,null,null,null,{"$f":"W870*AA870","v":0},null,null,null,null,672,null,null,null,null,null,null,{"$f":"AJ870*AN870","v":0},null,null,null,744,null,null,null,null,null,null,{"$f":"AU870*AY870","v":0},null,null,{"$f":"S870+AE870+AQ870+BB870","v":0}]
[null,null,"Total:",null,null,null,null,null,null,null,null,null,null,null,null,null,null,null,{"$f":"SUM(S868:V870)","v":0},null,null,null,null,null,null,null,null,null,null,null,{"$f":"SUM(AE868:AI870)","v":0},null,null,null,null,null,null,null,null,null,null,null,{"$f":"SUM(AQ868:AT870)","v":0},null,null,null,null,null,null,null,null,null,null,{"$f":"SUM(BB868:BD870)","v":0},null,null,{"$f":"SUM(BE868:BI870)","v":0}]
["b) Achiziţionarea şi instalarea sistemelor de plasă antigrindină:"]
[null,null,null,null,null,null,null,null,null,null,null,null,"Costuri în Euro / ha"]
["Nr. crt.",null,"Specificare",null,null,null,null,null,null,null,null,null,"cost\nstandard",null,null,null,"Suprafaţa (ha)",null,"Total costuri (euro)",null,null,null,"cost\nstandard",null,null,null,"Suprafaţa (ha)",null,null,null,"Total costuri (euro)",null,null,null,null,"contribuţie\nîn natură",null,null,null,"Suprafaţa (ha)",null,null,"Total costuri (euro)",null,null,null,"contribuţie\nîn natură",null,null,null,"Suprafaţa (ha)",null,null,"Total costuri (euro)",null,null,"Total general (euro)"]
[null,null,"Număr de pomi la hectar",null,null,null,null,null,null,null,null,null,"< 1250",null,null,null,null,null,null,null,null,null,">= 1250",null,null,null,null,null,null,null,null,null,null,null,null,"<1250",null,null,null,null,null,null,null,null,null,null,">=1250"]
[1,null,"Sistem plasă antigrindină",null,null,null,null,null,null,null,null,null,16000,null,null,null,null,null,{"$f":"M876*Q876","v":0},null,null,null,18000,null,null,null,null,null,null,null,{"$f":"W876*AA876","v":0},null,null,null,null,0,null,null,null,0,null,null,0,null,null,null,0,null,null,null,0,null,null,0,null,null,{"$f":"S876+AE876+AQ876+BB876","v":0}]
[2,null,"Instalare plasă antigrindină",null,null,null,null,null,null,null,null,null,1600,null,null,null,null,null,{"$f":"M877*Q877","v":0},null,null,null,1800,null,null,null,null,null,null,null,{"$f":"W877*AA877","v":0},null,null,null,null,0,null,null,null,0,null,null,0,null,null,null,0,null,null,null,0,null,null,0,null,null,{"$f":"S877+AE877+AQ877+BB877","v":0}]
[null,null,"Total:",null,null,null,null,null,null,null,null,null,null,null,null,null,null,null,{"$f":"SUM(S876:V877)","v":0},null,null,null,null,null,null,null,null,null,null,null,{"$f":"SUM(AE876:AI877)","v":0},null,null,null,null,null,null,null,null,null,null,null,{"$f":"SUM(AQ876:AT877)","v":0},null,null,null,null,null,null,null,null,null,null,{"$f":"SUM(BB876:BD877)","v":0},null,null,{"$f":"SUM(BE876:BI877)","v":0}]
["Notă: Investiţiile de la punctul b) includ şi investiţiile de la punctul a)"]
[]
["III. Valori aplicabile culturilor de cireş, mur cu ghimpi şi zmeur"]
["Achiziţionarea şi instalarea sistemului de protecţie antiploaie"]
[null,null,null,null,null,null,null,null,null,null,null,null,null,"Costuri în Euro / ha"]
["Nr. crt.",null,"Specificare",null,null,null,null,null,null,null,null,null,null,"cost\nstandard",null,null,null,"Suprafaţa (ha)",null,null,null,"Total costuri (euro)",null,null,null,"contribuţie\nîn natură",null,null,null,"Suprafaţa (ha)",null,null,null,null,"Total costuri (euro)",null,null,null,"Total general (euro)"]
[1,null,"Sistem prelată antiploaie",null,null,null,null,null,null,null,null,null,null,25650,null,null,null,null,null,null,null,{"$f":"N885*R885","v":0},null,null,null,0,null,null,null,0,null,null,null,null,0,null,null,null,{"$f":"V885+AI885","v":0}]
[2,null,"Instalare sistem prelată antiploaie",null,null,null,null,null,null,null,null,null,null,2150,null,null,null,null,null,null,null,{"$f":"N886*R886","v":0},null,null,null,0,null,null,null,0,null,null,null,null,{"$f":"Z886*AD886","v":0},null,null,null,{"$f":"V886+AI886","v":0}]
[null,null,"Total:",null,null,null,null,null,null,null,null,null,null,null,null,null,null,null,null,null,null,{"$f":"SUM(V885:Y886)","v":0},null,null,null,null,null,null,null,null,null,null,null,null,{"$f":"SUM(AI885:AL886)","v":0},null,null,null,{"$f":"SUM(AM885:AP886)","v":0}]
["Notă: Investiţiile de la punctul III) includ şi investiţiile de la punctul II) subpunctele a) si b)"]
[]
["IV. Valori Costuri Standard şi Contribuţie în Natură, pe specii"]
["IV.1. Cultura pomilor fructiferi"]
[null,null,null,null,null,null,null,null,null,null,null,null,null,"Costuri în Euro / ha"]
["Nr. crt.",null,"Specificare",null,null,null,null,null,null,null,null,null,null,"cost\nstandard",null,null,null,"Suprafaţa (ha)",null,null,null,"Total costuri (euro)",null,null,null,"contribuţie\nîn natură",null,null,null,"Suprafaţa (ha)",null,null,null,null,"Total costuri (euro)",null,null,null,"Total general (euro)"]
[null,null,"Fertilizare şi dezinfectare sol (lucrare completă)"]
[1,null,"a) măr, păr, gutui, prun, cais, piersic, nectarin, cires, vişin, migdal, alun;",null,null,null,null,null,null,null,null,null,null,1238,null,null,null,null,null,null,null,{"$f":"N895*R895","v":0},null,null,null,0,null,null,null,0,null,null,null,null,0,null,null,null,{"$f":"V895+AI895","v":0}]
[null,null,"b) nuc, castan",null,null,null,null,null,null,null,null,null,null,850,null,null,null,null,null,null,null,{"$f":"N896*R896","v":0},null,null,null,0,null,null,null,0,null,null,null,null,0,null,null,null,{"$f":"V896+AI896","v":0}]
[null,null,"Din care: lucrări mecanice şi manuale"]
[null,null,"a) măr, păr, gutui, prun, cais, piersic, nectarin, cires, vişin, migdal, alun;",null,null,null,null,null,null,null,null,null,null,430,null,null,null,null,null,null,null,{"$f":"N898*R898","v":0},null,null,null,365,null,null,null,null,null,null,null,null,{"$f":"Z898*AD898","v":0},null,null,null,{"$f":"V898+AI898","v":0}]
[null,null,"b) nuc, castan",null,null,null,null,null,null,null,null,null,null,298,null,null,null,null,null,null,null,{"$f":"N899*R899","v":0},null,null,null,253,null,null,null,null,null,null,null,null,{"$f":"Z899*AD899","v":0},null,null,null,{"$f":"V899+AI899","v":0}]
[null,null,"gunoi de grajd"]
[null,null,"a) măr, păr, gutui, prun, cais, piersic, nectarin, cires, vişin, migdal, alun;",null,null,null,null,null,null,null,null,null,null,450,null,null,null,null,null,null,null,{"$f":"N901*R901","v":0},null,null,null,383,null,null,null,null,null,null,null,null,{"$f":"Z901*AD901","v":0},null,null,null,{"$f":"V901+AI901","v":0}]
[null,null,"b) nuc, castan",null,null,null,null,null,null,null,null,null,null,337,null,null,null,null,null,null,null,{"$f":"N902*R902","v":0},null,null,null,286,null,null,null,null,null,null,null,null,{"$f":"Z902*AD902","v":0},null,null,null,{"$f":"V902+AI902","v":0}]
[null,null,"Costuri EURO/plantă"]
[2,null,"Material săditor pentru plantat"]
[null,null,"a) măr, păr, gutui, prun, cais, piersic, nectarin, vişin, alun;",null,null,null,null,null,null,null,null,null,null,5.24,null,null,null,null,null,null,null,{"$f":"N905*R905","v":0},null,null,null,4.45,null,null,null,null,null,null,null,null,0,null,null,null,{"$f":"V905+AI905","v":0}]
[null,null,"b) migdal",null,null,null,null,null,null,null,null,null,null,6,null,null,null,null,null,null,null,{"$f":"N906*R906","v":0},null,null,null,5.0999999999999996,null,null,null,null,null,null,null,null,0,null,null,null,{"$f":"V906+AI906","v":0}]
[null,null,"c) castan, cireş;",null,null,null,null,null,null,null,null,null,null,8.5,null,null,null,null,null,null,null,0,null,null,null,7.22,null,null,null,null,null,null,null,null,0,null,null,null,0]
[null,null,"d) nuc altoit.",null,null,null,null,null,null,null,null,null,null,19,null,null,null,null,null,null,null,0,null,null,null,16.149999999999999,null,null,null,null,null,null,null,null,0,null,null,null,0]
[3,null,"Plantat pomi (lucrare completă)"]
[null,null,"a) măr, păr, gutui, prun, cais, piersic, nectarin, cireş, vişin, migdal, alun;",null,null,null,null,null,null,null,null,null,null,1.05,null,null,null,null,null,null,null,{"$f":"N910*R910","v":0},null,null,null,0,null,null,null,0,null,null,null,null,0,null,null,null,{"$f":"V910+AI910","v":0}]
[null,null,"b) nuc, castan.",null,null,null,null,null,null,null,null,null,null,1.5,null,null,null,null,null,null,null,{"$f":"N911*R911","v":0},null,null,null,0,null,null,null,0,null,null,null,null,0,null,null,null,{"$f":"V911+AI911","v":0}]
[null,null,"Din care: lucrări mecanice şi manuale"]
[null,null,"a) măr, păr, gutui, prun, cais, piersic, nectarin, cireş, vişin, migdal, alun;",null,null,null,null,null,null,null,null,null,null,0.95,null,null,null,null,null,null,null,0,null,null,null,0.81,null,null,null,null,null,null,null,null,0,null,null,null,0]
[null,null,"b) nuc, castan.",null,null,null,null,null,null,null,null,null,null,1.35,null,null,null,null,null,null,null,{"$f":"N914*R914","v":0},null,null,null,1.1499999999999999,null,null,null,null,null,null,null,null,0,null,null,null,0]
[]
["IV.2. Cultura arbuştilor fructiferi"]
[null,null,null,null,null,null,null,null,null,null,null,null,null,"Costuri în Euro / ha"]
["Nr. crt.",null,"Specificare",null,null,null,null,null,null,null,null,null,null,"cost\nstandard",null,null,null,"Suprafaţa (ha)",null,null,null,"Total costuri (euro)",null,null,null,"contribuţie\nîn natură",null,null,null,"Suprafaţa (ha)",null,null,null,null,"Total costuri (euro)",null,null,null,"Total general (euro)"]
[null,null,"Fertilizare şi dezinfectare sol (lucrare completă)"]
[1,null,"a) afin;",null,null,null,null,null,null,null,null,null,null,8175,null,null,null,null,null,null,null,{"$f":"N920*R920","v":0},null,null,null,0,null,null,null,0,null,null,null,null,0,null,null,null,{"$f":"V920+AI920","v":0}]
[null,null,"b) agriş, coacăz, lonicera, aronia, mur, zmeur;",null,null,null,null,null,null,null,null,null,null,1438,null,null,null,null,null,null,null,{"$f":"N921*R921","v":0},null,null,null,0,null,null,null,0,null,null,null,null,0,null,null,null,{"$f":"V921+AI921","v":0}]
[null,null,"c) corn, măceş, soc, cătină, trandafir pentru dulceaţă;",null,null,null,null,null,null,null,null,null,null,1022,null,null,null,null,null,null,null,{"$f":"N922*R922","v":0},null,null,null,0,null,null,null,0,null,null,null,null,0,null,null,null,{"$f":"V922+AI922","v":0}]
[null,null,"Din care: lucrări mecanice şi manuale"]
[null,null,"a) afin;",null,null,null,null,null,null,null,null,null,null,2420,null,null,null,null,null,null,null,{"$f":"N924*R924","v":0},null,null,null,2057,null,null,null,null,null,null,null,null,{"$f":"Z924*AD924","v":0},null,null,null,{"$f":"V924+AI924","v":0}]
[null,null,"b) agriş, coacăz, lonicera, aronia, mur, zmeur;",null,null,null,null,null,null,null,null,null,null,462,null,null,null,null,null,null,null,{"$f":"N925*R925","v":0},null,null,null,393,null,null,null,null,null,null,null,null,{"$f":"Z925*AD925","v":0},null,null,null,{"$f":"V925+AI925","v":0}]
[null,null,"c) corn, măceş, soc, cătină, trandafir pentru dulceaţă;",null,null,null,null,null,null,null,null,null,null,335,null,null,null,null,null,null,null,{"$f":"N926*R926","v":0},null,null,null,285,null,null,null,null,null,null,null,null,0,null,null,null,{"$f":"V926+AI926","v":0}]
[null,null,"gunoi de grajd"]
[null,null,"a) afin;",null,null,null,null,null,null,null,null,null,null,450,null,null,null,null,null,null,null,{"$f":"N928*R928","v":0},null,null,null,383,null,null,null,null,null,null,null,null,{"$f":"Z928*AD928","v":0},null,null,null,{"$f":"V928+AI928","v":0}]
[null,null,"b) agriş, coacăz, lonicera, aronia, mur, zmeur;",null,null,null,null,null,null,null,null,null,null,450,null,null,null,null,null,null,null,{"$f":"N929*R929","v":0},null,null,null,383,null,null,null,null,null,null,null,null,{"$f":"Z929*AD929","v":0},null,null,null,{"$f":"V929+AI929","v":0}]
[null,null,"c) corn, măceş, soc, cătină, trandafir pentru dulceaţă;",null,null,null,null,null,null,null,null,null,null,337,null,null,null,null,null,null,null,{"$f":"N930*R930","v":0},null,null,null,286,null,null,null,null,null,null,null,null,{"$f":"Z930*AD930","v":0},null,null,null,{"$f":"V930+AI930","v":0}]
[null,null,"Costuri EURO/plantă"]
[2,null,"Material săditor pentru plantat"]
[null,null,"a) afin;",null,null,null,null,null,null,null,null,null,null,2,null,null,null,null,null,null,null,{"$f":"N933*R933","v":0},null,null,null,1.7,null,null,null,null,null,null,null,null,0,null,null,null,{"$f":"V933+AI933","v":0}]
[null,null,"b) agriş, coacăz, trandafir, aronia, măceş, mur;",null,null,null,null,null,null,null,null,null,null,1.07,null,null,null,null,null,null,null,{"$f":"N934*R934","v":0},null,null,null,0.91,null,null,null,null,null,null,null,null,0,null,null,null,{"$f":"V934+AI934","v":0}]
[null,null,"c) lonicera, soc, cătină;",null,null,null,null,null,null,null,null,null,null,1.6,null,null,null,null,null,null,null,{"$f":"N935*R935","v":0},null,null,null,1.36,null,null,null,null,null,null,null,null,0,null,null,null,0]
[null,null,"d) corn;",null,null,null,null,null,null,null,null,null,null,5.2,null,null,null,null,null,null,null,{"$f":"N936*R936","v":0},null,null,null,4.42,null,null,null,null,null,null,null,null,0,null,null,null,0]
[null,null,"e) zmeur",null,null,null,null,null,null,null,null,null,null,0.65,null,null,null,null,null,null,null,0,null,null,null,0.55000000000000004,null,null,null,null,null,null,null,null,0,null,null,null,0]
[3,null,"Plantat arbuşti (lucrare completă)"]
[null,null,"a) afin, agriş, coacaz, lonicera, mur, măceş, trandafir, cătină, aronia",null,null,null,null,null,null,null,null,null,null,0.34,null,null,null,null,null,null,null,{"$f":"N939*R939","v":0},null,null,null,0,null,null,null,0,null,null,null,null,0,null,null,null,{"$f":"V939+AI939","v":0}]
[null,null,"b) zmeur;",null,null,null,null,null,null,null,null,null,null,0.23,null,null,null,null,null,null,null,{"$f":"N940*R940","v":0},null,null,null,0,null,null,null,0,null,null,null,null,0,null,null,null,{"$f":"V940+AI940","v":0}]
[null,null,"c) corn, soc;",null,null,null,null,null,null,null,null,null,null,0.7,null,null,null,null,null,null,null,{"$f":"N941*R941","v":0},null,null,null,0,null,null,null,0,null,null,null,null,0,null,null,null,{"$f":"V941+AI941","v":0}]
[null,null,"Din care: lucrări mecanice şi manuale"]
[null,null,"a) afin, agriş, coacaz, lonicera, mur, măceş, trandafir, cătină, aronia",null,null,null,null,null,null,null,null,null,null,0.3,null,null,null,null,null,null,null,{"$f":"N943*R943","v":0},null,null,null,0.25,null,null,null,null,null,null,null,null,0,null,null,null,{"$f":"V943+AI943","v":0}]
[null,null,"b) zmeur;",null,null,null,null,null,null,null,null,null,null,0.2,null,null,null,null,null,null,null,{"$f":"N944*R944","v":0},null,null,null,0.17,null,null,null,null,null,null,null,null,0,null,null,null,{"$f":"V944+AI944","v":0}]
[null,null,"c) corn, soc;",null,null,null,null,null,null,null,null,null,null,0.63,null,null,null,null,null,null,null,{"$f":"N945*R945","v":0},null,null,null,0.54,null,null,null,null,null,null,null,null,0,null,null,null,0]
["V. Cultura căpşunului"]
[null,null,null,null,null,null,null,null,null,null,null,null,null,"Costuri în Euro / ha"]
["Nr. crt.",null,"Specificare",null,null,null,null,null,null,null,null,null,null,"cost\nstandard",null,null,null,"Suprafaţa (ha)",null,null,null,"Total costuri (euro)",null,null,null,"contribuţie\nîn natură",null,null,null,"Suprafaţa (ha)",null,null,null,null,"Total costuri (euro)",null,null,null,"Total general (euro)"]
["Număr de plante la hectar",null,null,null,null,null,null,null,null,null,null,null,null,">= 37000",null,null,null,null,null,null,null,null,null,null,null,">= 37000"]
[null,null,"Fertilizare şi dezinfectare sol",null,null,null,null,null,null,null,null,null,null,1793,null,null,null,null,null,null,null,{"$f":"N950*R950","v":0},null,null,null,0,null,null,null,0,null,null,null,null,0,null,null,null,{"$f":"V950+AI950","v":0}]
[1,null,"Din care:"]
[null,null,"lucrări mecanice şi manuale",null,null,null,null,null,null,null,null,null,null,108,null,null,null,null,null,null,null,{"$f":"N952*R952","v":0},null,null,null,92,null,null,null,null,null,null,null,null,{"$f":"Z952*AD952","v":0},null,null,null,{"$f":"V952+AI952","v":0}]
[null,null,"gunoi de grajd",null,null,null,null,null,null,null,null,null,null,450,null,null,null,null,null,null,null,{"$f":"N953*R953","v":0},null,null,null,383,null,null,null,null,null,null,null,null,{"$f":"Z953*AD953","v":0},null,null,null,{"$f":"V953+AI953","v":0}]
[2,null,"Material săditor pentru plantat",null,null,null,null,null,null,null,null,null,null,3668,null,null,null,null,null,null,null,{"$f":"N954*R954","v":0},null,null,null,3118,null,null,null,null,null,null,null,null,{"$f":"Z954*AD954","v":0},null,null,null,{"$f":"V954+AI954","v":0}]
[3,null,"Plantat arbuşti (lucrare completă)",null,null,null,null,null,null,null,null,null,null,703,null,null,null,null,null,null,null,{"$f":"N955*R955","v":0},null,null,null,393,null,null,null,null,null,null,null,null,{"$f":"Z955*AD955","v":0},null,null,null,{"$f":"V955+AI955","v":0}]
[null,null,"Total:",null,null,null,null,null,null,null,null,null,null,null,null,null,null,null,null,null,null,{"$f":"V950+SUM(V952:Y955)","v":0},null,null,null,null,null,null,null,null,null,null,null,null,{"$f":"SUM(AI954:AL955)","v":0},null,null,null,{"$f":"AM950+SUM(AM952:AP955)","v":0}]
[]
["a) Achizitionare şi instalare solar(tunel jos):"]
[null,null,null,null,null,null,null,null,null,null,null,null,null,"Costuri în Euro / ha"]
["Nr. crt.",null,"Specificare",null,null,null,null,null,null,null,null,null,null,"cost\nstandard",null,null,null,"Suprafaţa (ha)",null,null,null,"Total costuri (euro)",null,null,null,"contribuţie\nîn natură",null,null,null,"Suprafaţa (ha)",null,null,null,null,"Total costuri (euro)",null,null,null,"Total general (euro)"]
[1,null,"Sistem solar(tunel jos)",null,null,null,null,null,null,null,null,null,null,3573,null,null,null,null,null,null,null,{"$f":"N961*R961","v":0},null,null,null,0,null,null,null,0,null,null,null,null,0,null,null,null,{"$f":"V961+AI961","v":0}]
[2,null,"Instalare sistem solar(tunel jos)",null,null,null,null,null,null,null,null,null,null,592,null,null,null,null,null,null,null,{"$f":"N962*R962","v":0},null,null,null,0,null,null,null,0,null,null,null,null,0,null,null,null,{"$f":"V962+AI962","v":0}]
[null,null,"Total:",null,null,null,null,null,null,null,null,null,null,null,null,null,null,null,null,null,null,{"$f":"SUM(V961:Y962)","v":0},null,null,null,null,null,null,null,null,null,null,null,null,{"$f":"SUM(AI961:AL962)","v":0},null,null,null,{"$f":"SUM(AM961:AP962)","v":0}]
[]
["VI. Pepiniera pomicolă câmpul I"]
[null,null,null,null,null,null,null,null,null,null,null,null,null,"Costuri în Euro / ha"]
["Nr. crt.",null,"Specificare",null,null,null,null,null,null,null,null,null,null,"cost\nstandard",null,null,null,"Suprafaţa (ha)",null,null,null,"Total costuri (euro)",null,null,null,"contribuţie\nîn natură",null,null,null,"Suprafaţa (ha)",null,null,null,null,"Total costuri (euro)",null,null,null,"Total general (euro)"]
["Număr de plante la hectar",null,null,null,null,null,null,null,null,null,null,null,null,">= 50000 plantate-45000 altoite",null,null,null,null,null,null,null,null,null,null,null,">= 50000 plantate-45000 altoite"]
[null,null,"Fertilizare şi dezinfectare sol",null,null,null,null,null,null,null,null,null,null,1047,null,null,null,null,null,null,null,{"$f":"N969*R969","v":0},null,null,null,0,null,null,null,0,null,null,null,null,0,null,null,null,{"$f":"V969+AI969","v":0}]
[1,null,"Din care:"]
[null,null,"lucrări mecanice şi manuale",null,null,null,null,null,null,null,null,null,null,66,null,null,null,null,null,null,null,{"$f":"N971*R971","v":0},null,null,null,56,null,null,null,null,null,null,null,null,{"$f":"Z971*AD971","v":0},null,null,null,{"$f":"V971+AI971","v":0}]
[null,null,"gunoi de grajd",null,null,null,null,null,null,null,null,null,null,450,null,null,null,null,null,null,null,0,null,null,null,383,null,null,null,null,null,null,null,null,0,null,null,null,0]
[2,null,"Material biologic (portaltoi, ramuri altoi)",null,null,null,null,null,null,null,null,null,null,14054,null,null,null,null,null,null,null,0,null,null,null,11946,null,null,null,null,null,null,null,null,0,null,null,null,0]
[3,null,"Plantat portaltoi (lucrare completă)",null,null,null,null,null,null,null,null,null,null,914,null,null,null,null,null,null,null,0,null,null,null,777,null,null,null,null,null,null,null,null,0,null,null,null,0]
[4,null,"Altoit (lucrare completă)",null,null,null,null,null,null,null,null,null,null,2500,null,null,null,null,null,null,null,0,null,null,null,0,null,null,null,0,null,null,null,null,0,null,null,null,0]
[null,null,"Din care lucrări manuale",null,null,null,null,null,null,null,null,null,null,1964,null,null,null,null,null,null,null,0,null,null,null,1669,null,null,null,null,null,null,null,null,0,null,null,null,0]
[null,null,"Total:",null,null,null,null,null,null,null,null,null,null,null,null,null,null,null,null,null,null,{"$f":"V969+SUM(V971:Y976)","v":0},null,null,null,null,null,null,null,null,null,null,null,null,{"$f":"AI969+SUM(AI971:AL976)","v":0},null,null,null,{"$f":"AM969+SUM(AM971:AP976)","v":0}]
["* Valorile nu conţin TVA"]
[]
["MINISTERUL AGRICULTURII ŞI DEZVOLTĂRII RURALE",null,null,null,null,null,null,null,null,null,null,null,null,null,null,null,null,null,null,null,null,null,null,null,null,null,null,null,null,null,"SECTIUNE SPECIFICĂ SUBMĂSURA 4.1"]
["AGENŢIA PENTRU FINANŢAREA INVESTIŢIILOR RURALE"]
[]
["D. ALTE INFORMAȚII :"]
["Programarea proiectului:"]
["Numar luni de implementare"]
[]
["E. LISTA DOCUMENTELOR ANEXATE PROIECTELOR AFERENTE SUBMĂSURII 2.1. (2A)",null,null,null,null,null,null,null,null,null,null,null,null,null,null,null,null,null,null,null,null,null,null,null,null,null,null,null,null,null,null,null,null,null,null,null,null,null,null,null,null,null,null,null,null,null,null,null,null,null,null,null,null,null,null,"OPIS"]
[null,null,null,null,null,null,null,null,null,null,null,null,null,null,null,null,null,null,null,null,null,null,null,null,null,null,null,null,null,null,null,null,null,null,null,null,null,null,null,null,null,null,null,null,null,null,null,null,null,null,null,null,null,null,null,"documente"]
["A se anexa documentele în ordinea de mai jos:"]
["Lista documente",null,null,null,null,null,null,null,null,null,null,null,null,null,null,null,null,null,null,null,null,null,null,null,null,null,null,null,null,null,"Obligatoriu pentru toate proiectele",null,null,null,null,"Obligatoriu, dacă proiectul impune",null,null,null,null,null,null,"PAGINA de la - până la",null,null,null,null,null,null,null,"Obligatoriu pentru toate proiectele",null,null,null,null,"Obligatoriu, dacă proiectul impune"]
["ETAPA:",null,null,null,null,null,null,null,null,null,null,null,null,null,null,null,null,null,null,null,null,null,null,null,null,null,null,null,null,null,"DEPUNERE",null,null,null,null,null,null,null,null,null,null,null,null,null,null,null,null,null,null,null,"CONTRACTARE"]
["1. a) STUDIUL DE FEZABILITATE însotit de Proiectul de plantare avizat de Stațiunea Viticolă (dacă este cazul)\n(pentru achiziţiile simple se vor completa doar punctele care vizează acest tip de investiţie)"]
["2. SITUAŢIILE FINANCIARE (bilanţ - formularul 10, contul de profit şi pierderi - formularul 20, formularele 30 și 40), precedente anului depunerii proiectului înregistrate la Administraţia Financiară.                                                                                                                                                                                                                                                                                                      Sau"]
["Declaraţa de inactivitate înregistrata la Administraţia Financiară, în cazul solicitanţilor care nu au desfăşurat activitate anterior depunerii proiectului sau"]
["Pentru persoane fizice autorizate, intreprinderi familiale și intreprinderi individuale:\nDeclarație specială privind veniturile realizate în anul precedent depunerii proiectului înregistrată la Administrația Financiară (formularul 200 însoțit de Anexele la Formular) în care rezultatul brut obţinut anual să fie pozitiv (inclusiv 0) și/sau Declarația privind veniturile din activități agricole impuse pe norme de venit (formularul 221)\nsau"]
["Pentru solicitanţii a căror activitate a fost afectată de calamități naturale (inundații, secetă excesivă etc) se vor prezenta:\n• Situaţiile financiare (bilanţ – formularul 10, cont de profit și pierderi – formularul 20, formularele 30 și 40) din unul din ultimii trei ani precedenți anului depunerii proiectului, în care producția nu a fost calamitată iar rezultatul operațional (rezultatul de exploatare din bilanț) să fie pozitiv (inclusiv 0), înregistrate la Administraţia Financiară"]
["În cazul persoanelor fizice autorizate, întreprinderilor individuale și\nîntreprinderilor familiale se va prezenta:\n• Declarație specială privind veniturile realizate înregistrată la Administraţia Financiară (formularul 200 însoțit de Anexele la Formular) în care rezultatul brut obţinut anual să nu fie negativ şi/ sau Declarația privind veniturile din activități agricole impuse pe norme de venit (formularul 221)\nPentru anii calamitaţi solicitantul va prezenta un document (ex.: Proces verbal\nde constatare și evaluare a pagubelor) emis de organismele abilitate (ex.:\nComitetul local pentru situaţii de urgenţă)"]
["3.a1). DOCUMENTE SOLICITATE PENTRU TERENUL AGRICOL \nTerenul agricol\na) Copie după documentul autentificat la notar care atestă dreptul de proprietate (a1) al terenului şi/sau tabel centralizator (a2) emis de Primărie semnat de persoanele autorizate conform legii conţinând sumarul contractelor de arendare cu suprafeţele pe care va fi realizată investiția, luate în arendă pe categorii de folosinţă, perioada de arendare şi/sau contractul de concesiune, cu o valabilitate de minimum 15 ani, excepție făcând pepinierele, culturile de căpșun, zmeur, mur, coacăz și agriș unde perioada minimă este de 10 ani, începând cu anul depunerii Cererii de Finanţare.\nContractul de concesiune va fi însoţit de adresa emisă de concedent şi trebuie să conţină:\n- situaţia privind respectarea clauzelor contractuale şi dacă este în graficul de realizare a investiţiilor prevăzute în contract şi alte clauze;\n- suprafaţa concesionată la zi (dacă pentru suprafaţa concesionată există solicitări privind retrocedarea sau diminuarea, şi dacă da, să se menţioneze care este suprafaţa supusă acestui proces)"]
["Copie a ultimei Declaratii pe suprafata depusa la APIA insotita de Copie din Registrul Agricol emis de Primării, eliberată cu cel mult 30 de zile înaintea depunerii cererii de finanţare"]
["În cazul Societăţilor agricole se ataşează tabelul centralizator emis de catre Societatea agricolă care va cuprinde suprafeţele aduse în folosinţa societăţii şi numele membrilor fermieri care le deţin în proprietate, cu o valabilitate de minimum 15 ani, excepţie făcând pepinierele, culturile de căpşun, zmeur, mur, coacăz şi agriş unde perioada minimă este de 10 ani, începând cu anul depunerii Cererii de Finanţare.\nPentru cooperative agricole, societăţi cooperative agricole, grupuri de producatori, se vor prezenta documentele prevăzute mai sus pentru toţi membrii fermieri ai acestor solicitanţi deserviţi de investiţie."]
["Pentru cooperative agricole, societăţi cooperative agricole, grupuri de producatori, se vor prezenta documentele prevăzute mai sus pentru toţi membrii fermieri ai acestor solicitanţi deserviţi de investiţie.                                                                                                                                                                                                                                                                                               a3) Copie din Registrul Agricol emis de Primării, eliberată cu cel mult 30 de zile înaintea depunerii cererii de finanţare în cazul solicitanţilor care prin intermediul proiectului vizează investiţii pe terenuri în pregătire."]
["b) IMOBILUL (clădirile şi/sau terenurile) pe care sunt/ vor fi realizate investiţiile:\nActul de proprietate, contract de concesionare sau alt document încheiat la notar care să certifice dreptul de folosinţă pe o perioadă de cel puțin 10 ani începând cu anul depunerii cererii de finanţare în cazul clădirilor asupra cărora se intervine cu investiţii de modernizare/extindere şi a terenurilor pe care se vor realiza investiţii ce presupun lucrări de construcţii montaj, care să confere titularului dreptul de execuţie a lucrărilor de construcţii, în conformitate cu prevederile Legii nr.50/1991, republicată, cu  modificările şi completările ulterioare, având în vedere tipul de investiţie propusă prin proiect.                                                                                                                                                                                                                                                                                                            Contractul de concesiune va fi însoţit de adresa emisă de concedent şi trebuie să conţină:\n- situaţia privind respectarea clauzelor contractuale şi dacă este în graficul de realizare a investiţiilor prevăzute în contract şi alte clauze;\n- suprafaţa concesionată la zi (dacă pentru suprafaţa concesionată există solicitări privind retrocedarea sau diminuarea, şi dacă da, să se menţioneze care este suprafaţa supusă acestui proces) pentru terenul pe care este amplasată clădirea."]
[]
["c) Extras de carte funciară sau Document care să certifice că nu au fost finalizate lucrările de cadastru, pentru proiectele care vizează investiţii de lucrări privind construcţiile noi sau modernizări ale acestora."]
["d) Document pentru efectivul de animale deţinut în proprietate:\n1) Extras din Registrul Exploatatiei emis de ANSVSA/DSVSA cu cel mult 30 de zile înainte de data depunerii CF, din care să rezulte efectivul de animale deţinut;\nPentru exploataţiile agricole care deţin păsari si albine - Adeverinţă eliberată de medicul veterinar de circumscripţie, emisă cu cel mult 30 de zile înainte de data depunerii CF, din care rezulta numarul păsarilor şi al familiilor de albine şi data inscrierii solicitantului in Registrul Exploatatiei\nPentru cooperative agricole, societăţi cooperative agricole, grupuri de producatori, se vor prezenta documentele prevăzute la punctul d) pentru toţi membrii acestor solicitanţi."]
["2) PAŞAPORTUL emis de ANZ pentru ecvideele (cabalinele) cu rasă şi origine."]
["4. Certificat de urbanism pentru proiecte care prevăd construcţii (noi, extinderi sau modernizări)"]
["5.  AUTORIZAŢIE SANITARĂ/ NOTIFICARE de constatare a conformităţii cu legislaţia sanitară emise cu cel mult un an înaintea depunerii Cererii de finanţare, pentru unitățile care se modernizează și se autorizează / avizează conform legislației în vigoare."]
["6.\na) HOTĂRÂRE JUDECĂTOREASCĂ definitivă pronunţată pe baza actului de constituire și a statutului propriu în cazul Societăţilor agricole, însoțită de Statutul Societății agricole;"]
["b) STATUT pentru Societatea cooperativă agricolă (înfiinţată în baza Legii nr. 1/ 2005) și Cooperativa agricolă (înfiinţată în baza Legii nr. 566/ 2004) cu modificările și completările ulterioare și  composesoratele, obștile și alte forme asociative de proprietate asupra terenurilor (menționate în Legea nr.1/2000 pentru reconstituirea dreptului de proprietate asupra terenurilor agricole și celor forestiere, cu modificările și completările ulterioare), din care să reiasă că acestea se încadreaza în categoria: societate cooperativa agricolă , cooperativă agricolă sau fermier în conformitate cu art 7, alin (21) din OUG 3/2015, cu completările și modificările ulterioare;"]
["c) DOCUMENT DE ÎNFIINŢARE A INSTITUTELOR DE CERCETARE, a Centrelor, staţiunilor şi unităţilor de cercetare-dezvoltare şi didactice din domeniul agricol"]
["7. ÎN CAZUL INVESTIŢIILOR PRIVIND IRIGAŢIILE:\n7.1 AVIZ DE GOSPODARIREA APELOR/ NOTIFICAREA DE ÎNCEPERE A EXECUŢIEI, în cazul investiţiilor noi sau AUTORIZAȚIE DE GOSPODĂRIRE/NOTIFICARE DE PUNERE ÎN FUNCȚIUNE, în cazul funcţionării sistemului de irigaţii."]
["7.2 AVIZ EMIS DE ANIF (dacă este cazul)"]
["7.3 DOCUMENT EMIS DE OUAI privind acordul de branşare (dacă este cazul)"]
["7.4 Document privind acordul de branșare emis de entitatea care administrează sursa de apă (dacă este cazul)"]
["8.1 DOCUMENT EMIS DE CĂTRE UN GRUP OPERATIONAL finantat prin sM 16.1. – “sprijin pentru înființarea și funcționarea grupurilor operaționale ale PEI pentru productivitatea și durabilitatea agriculturii” si sM 16.1a – “Sprijin pentru înființarea și funcționarea grupurilor operaționale, dezvoltarea de proiecte pilot, produse și procese” , din care să reiasă că solicitantul are calitatea de membru al acesteia, însoţit de documentul de înfiinţare al GO (act constitutiv și statut), document avizat de conducere.\nsau                                                                                                                                                                                                                                                  Declaratia/Angajament ca va deveni membru al unui GO finantat prin sM 16.1."]
["8.2 DOCUMENT EMIS DE CĂTRE UN GRUP OPERATIONAL finantat prin Măsura 1.1. (1B) – “Cooperarea in scopul creării de forme asociative, rețele si clustere, grupuri operaționale pentru diversificarea activităților rurale”, din care să reiasă că solicitantul are calitatea de membru al acesteia, însoţit de documentul de înfiinţare al GO (act constitutiv și statut), document avizat de conducere.\nsau                                                                                                                                                                                                                                                  Declaratia/Angajament ca va deveni membru al unui GO finantat prin M 1.1. (1B)"]
["9. ALTE DOCUMENTE JUSTIFICATIVE (se vor specifica după caz) pe care solicitantul le poate aduce în scopul susţinerii proiectului:"]
[]
[]
[]
[]
["COEFICIENŢI PRODUCŢIE STANDARD 2010"]
["Coduri EUROSTAT",null,null,null,null,null,null,"Denumire culturi",null,null,null,null,null,null,null,null,null,null,null,null,null,null,null,null,null,null,"SO 2010 euro/ha",null,null,null,null,null,null,"Suprafaţa (ha)",null,null,null,null,null,null,"SO activitate existentă",null,null,null,null,null,null,"Suprafaţa (ha) în urma realizării investiţiei",null,null,null,null,null,null,"SO în urma realizării investiţiei"]
[0,null,null,null,null,null,null,1,null,null,null,null,null,null,null,null,null,null,null,null,null,null,null,null,null,null,2,null,null,null,null,null,null,3,null,null,null,null,null,null,4,null,null,null,null,null,null,5,null,null,null,null,null,null,6]
["B_1_1_1",null,null,null,null,null,null,"Grâu comun (inclusiv seminţe)",null,null,null,null,null,null,null,null,null,null,null,null,null,null,null,null,null,null,614.09,null,null,null,null,null,null,null,null,null,null,null,null,null,{"$f":"AA1026*AH1026","v":0},null,null,null,null,null,null,null,null,null,null,null,null,null,{"$f":"AA1026*AV1026","v":0}]
["B_1_1_2",null,null,null,null,null,null,"Grâu dur (inclusiv seminţe)",null,null,null,null,null,null,null,null,null,null,null,null,null,null,null,null,null,null,432.81,null,null,null,null,null,null,null,null,null,null,null,null,null,0,null,null,null,null,null,null,null,null,null,null,null,null,null,{"$f":"AA1027*AV1027","v":0}]
["B_1_1_3",null,null,null,null,null,null,"Secară (inclusiv seminţe)",null,null,null,null,null,null,null,null,null,null,null,null,null,null,null,null,null,null,354.27,null,null,null,null,null,null,null,null,null,null,null,null,null,0,null,null,null,null,null,null,null,null,null,null,null,null,null,0]
["B_1_1_4",null,null,null,null,null,null,"Orz+Orzoaica (inclusiv seminţe)",null,null,null,null,null,null,null,null,null,null,null,null,null,null,null,null,null,null,529.44000000000005,null,null,null,null,null,null,null,null,null,null,null,null,null,0,null,null,null,null,null,null,null,null,null,null,null,null,null,0]
["B_1_1_5",null,null,null,null,null,null,"Ovăz (inclusiv seminţe)",null,null,null,null,null,null,null,null,null,null,null,null,null,null,null,null,null,null,331.88,null,null,null,null,null,null,null,null,null,null,null,null,null,0,null,null,null,null,null,null,null,null,null,null,null,null,null,0]
["B_1_1_6",null,null,null,null,null,null,"Porumb boabe (inclusiv seminţe)",null,null,null,null,null,null,null,null,null,null,null,null,null,null,null,null,null,null,641.79999999999995,null,null,null,null,null,null,null,null,null,null,null,null,null,0,null,null,null,null,null,null,null,null,null,null,null,null,null,0]
["B_1_1_7",null,null,null,null,null,null,"Orez (inclusiv seminţe)",null,null,null,null,null,null,null,null,null,null,null,null,null,null,null,null,null,null,913.26,null,null,null,null,null,null,null,null,null,null,null,null,null,0,null,null,null,null,null,null,null,null,null,null,null,null,null,0]
["B_1_1_99",null,null,null,null,null,null,"Alte cereale (sorgul, triticale, meiul, hrişca, iarba-cănăraşului, altele) (inclusiv seminţe)",null,null,null,null,null,null,null,null,null,null,null,null,null,null,null,null,null,null,452.74,null,null,null,null,null,null,null,null,null,null,null,null,null,0,null,null,null,null,null,null,null,null,null,null,null,null,null,0]
["B_1_2_1",null,null,null,null,null,null,"Mazăre boabe, fasole boabe, lupin dulce (inclusiv seminţe)",null,null,null,null,null,null,null,null,null,null,null,null,null,null,null,null,null,null,533.77,null,null,null,null,null,null,null,null,null,null,null,null,null,0,null,null,null,null,null,null,null,null,null,null,null,null,null,0]
["B_1_2_2",null,null,null,null,null,null,"Linte, bob, măzăriche şi năut (inclusiv seminţe)",null,null,null,null,null,null,null,null,null,null,null,null,null,null,null,null,null,null,454.79,null,null,null,null,null,null,null,null,null,null,null,null,null,0,null,null,null,null,null,null,null,null,null,null,null,null,null,0]
["B_1_3",null,null,null,null,null,null,"Cartofi (inclusiv cartofi noi, material săditor, cartof dulce destinat consumului uman)",null,null,null,null,null,null,null,null,null,null,null,null,null,null,null,null,null,null,3167.88,null,null,null,null,null,null,null,null,null,null,null,null,null,0,null,null,null,null,null,null,null,null,null,null,null,null,null,0]
["B_1_4",null,null,null,null,null,null,"Sfeclă de zahăr (exclusiv seminţe)",null,null,null,null,null,null,null,null,null,null,null,null,null,null,null,null,null,null,1449.74,null,null,null,null,null,null,null,null,null,null,null,null,null,0,null,null,null,null,null,null,null,null,null,null,null,null,null,0]
["B_1_5",null,null,null,null,null,null,"Plante rădăcinoase pentru nutreţ (sfecla furajeră, alte plante furajere din familia brasiceelor, morcovi furajeri, batata(cartof dulce), păstârnac, ignama, manioc)(exclusiv seminţe)",null,null,null,null,null,null,null,null,null,null,null,null,null,null,null,null,null,null,1101.45,null,null,null,null,null,null,null,null,null,null,null,null,null,0,null,null,null,null,null,null,null,null,null,null,null,null,null,0]
["B_1_6_1",null,null,null,null,null,null,"Tutun",null,null,null,null,null,null,null,null,null,null,null,null,null,null,null,null,null,null,1696.83,null,null,null,null,null,null,null,null,null,null,null,null,null,0,null,null,null,null,null,null,null,null,null,null,null,null,null,0]
["B_1_6_2",null,null,null,null,null,null,"Hamei",null,null,null,null,null,null,null,null,null,null,null,null,null,null,null,null,null,null,4105.24,null,null,null,null,null,null,null,null,null,null,null,null,null,0,null,null,null,null,null,null,null,null,null,null,null,null,null,0]
["B_1_6_4",null,null,null,null,null,null,"Rapiţă (inclusiv seminţe)",null,null,null,null,null,null,null,null,null,null,null,null,null,null,null,null,null,null,647.72,null,null,null,null,null,null,null,null,null,null,null,null,null,0,null,null,null,null,null,null,null,null,null,null,null,null,null,0]
["B_1_6_5",null,null,null,null,null,null,"Floarea soarelui (inclusiv seminţe)",null,null,null,null,null,null,null,null,null,null,null,null,null,null,null,null,null,null,564.52,null,null,null,null,null,null,null,null,null,null,null,null,null,0,null,null,null,null,null,null,null,null,null,null,null,null,null,0]
["B_1_6_6",null,null,null,null,null,null,"Soia (inclusiv seminţe)",null,null,null,null,null,null,null,null,null,null,null,null,null,null,null,null,null,null,611,null,null,null,null,null,null,null,null,null,null,null,null,null,0,null,null,null,null,null,null,null,null,null,null,null,null,null,0]
["B_1_6_7",null,null,null,null,null,null,"In pentru ulei (inclusiv seminţe)",null,null,null,null,null,null,null,null,null,null,null,null,null,null,null,null,null,null,1563.56,null,null,null,null,null,null,null,null,null,null,null,null,null,0,null,null,null,null,null,null,null,null,null,null,null,null,null,0]
["B_1_6_8",null,null,null,null,null,null,"Alte plante pentru ulei (ricin, şofrănaş, susan, arahide, mac, muştar, alte culturi oleaginoase) (inclusiv seminţe)",null,null,null,null,null,null,null,null,null,null,null,null,null,null,null,null,null,null,374,null,null,null,null,null,null,null,null,null,null,null,null,null,0,null,null,null,null,null,null,null,null,null,null,null,null,null,0]
["B_1_6_9",null,null,null,null,null,null,"In textil (exclusiv seminţe)",null,null,null,null,null,null,null,null,null,null,null,null,null,null,null,null,null,null,307.17,null,null,null,null,null,null,null,null,null,null,null,null,null,0,null,null,null,null,null,null,null,null,null,null,null,null,null,0]
["B_1_6_10",null,null,null,null,null,null,"Cânepă (exclusiv seminţe)",null,null,null,null,null,null,null,null,null,null,null,null,null,null,null,null,null,null,518.11,null,null,null,null,null,null,null,null,null,null,null,null,null,0,null,null,null,null,null,null,null,null,null,null,null,null,null,0]
["B_1_6_12",null,null,null,null,null,null,"Plante medicinale şi aromatice inclusiv ceaiul, cafeaua şi cicoarea pentru cafea: muşeţel, mătrăguna, menta, mac, angelica, chimen, genţiana, iasomia, lavanda, levănţica, origanul, şofranul, salvia, valeriana, gălbeneaua, etc",null,null,null,null,null,null,null,null,null,null,null,null,null,null,null,null,null,null,937.85,null,null,null,null,null,null,null,null,null,null,null,null,null,0,null,null,null,null,null,null,null,null,null,null,null,null,null,0]
["B_1_6_99",null,null,null,null,null,null,"Alte plante industriale - cicoarea, trestia de zahăr, alte plante tehnice nemenţionate în altă parte, sorgul tehnic (pentru mături)",null,null,null,null,null,null,null,null,null,null,null,null,null,null,null,null,null,null,717.56,null,null,null,null,null,null,null,null,null,null,null,null,null,0,null,null,null,null,null,null,null,null,null,null,null,null,null,0]
["B_1_7_1_1",null,null,null,null,null,null,"Legume proaspete, pepeni şi căpşuni - în câmp:\n- varză, conopidă, broccoli, sparanghel\n- legume pt. frunze (praz, salată, spanac, etc.)\n- tomate\n- porumb dulce\n- legume cultivate pentru fructe - vinete, ardei, dovleci şi dovlecei, castraveciori\n- legume cultivate pentru rădăcină, bulbi, tuberculi (excepţie cartofi): morcovi, păstârnac, ceapă, usturoi, ridichi, napi\n- legume păstăi (fasole, mazăre cu excepţia lintei şi a năutului)\n- fructele plantelor neperene (căpşuni, pepeni galbeni, pepeni verzi, ananas)",null,null,null,null,null,null,null,null,null,null,null,null,null,null,null,null,null,null,6196.49,null,null,null,null,null,null,null,null,null,null,null,null,null,0,null,null,null,null,null,null,null,null,null,null,null,null,null,0]
["B_1_7_1_2",null,null,null,null,null,null,"Legume proaspete, pepeni şi căpşuni - în grădină destinate comercializării:\n- varză, conopidă, broccoli, sparanghel\n- legume pt. frunze (praz, salată, spanac, etc.)\n- tomate\n- porumb dulce\n- legume cultivate pentru fructe - vinete, ardei, dovleci şi dovlecei, castraveciori\n- legume cultivate pentru rădăcină, bulbi, tuberculi (excepţie cartofi): morcovi, păstârnac, ceapă, usturoi, ridichii, napi\n- legume păstăi(fasole, mazăre cu excepţia lintei şi a năutului)\n- fructele plantelor neperene (căpşuni, pepeni galbeni, pepeni verzi, ananas)",null,null,null,null,null,null,null,null,null,null,null,null,null,null,null,null,null,null,7176.16,null,null,null,null,null,null,null,null,null,null,null,null,null,0,null,null,null,null,null,null,null,null,null,null,null,null,null,0]
["B_1_7_2",null,null,null,null,null,null,"Legume proaspete, pepeni şi căpşuni - în sere şi solarii:\n- varză, conopidă, broccoli, sparanghel\n- legume pt. frunze (praz, salată, spanac, etc.)\n- tomate\n- porumb dulce\n- legume cultivate pentru fructe - vinete, ardei, dovleci şi dovlecei, castraveciori\n- legume cultivate pentru rădăcină, bulbi, tuberculi (excepţie cartofi): morcovi, păstârnac, ceapă, usturoi, ridichii, napi\n- legume păstăi (fasole, mazăre cu excepţia lintei şi a năutului)\n- fructele plantelor neperene (căpşuni, pepeni galbeni, pepeni verzi, ananas)",null,null,null,null,null,null,null,null,null,null,null,null,null,null,null,null,null,null,27507.66,null,null,null,null,null,null,null,null,null,null,null,null,null,0,null,null,null,null,null,null,null,null,null,null,null,null,null,0]
["B_1_8_1",null,null,null,null,null,null,"Flori - în câmp\n- bulbi de flori, cormi şi tuberculi\n- flori tăiate şi boboci\n- plante cu flori şi plante ornamentale",null,null,null,null,null,null,null,null,null,null,null,null,null,null,null,null,null,null,25527.46,null,null,null,null,null,null,null,null,null,null,null,null,null,0,null,null,null,null,null,null,null,null,null,null,null,null,null,0]
["B_1_8_2",null,null,null,null,null,null,"Flori - în sere şi solarii\n- bulbi de flori, cormi şi tuberculi\n- flori tăiate şi boboci\n- plante cu flori şi plante ornamentale",null,null,null,null,null,null,null,null,null,null,null,null,null,null,null,null,null,null,83743.81,null,null,null,null,null,null,null,null,null,null,null,null,null,0,null,null,null,null,null,null,null,null,null,null,null,null,null,0]
["B_1_9_1",null,null,null,null,null,null,"Plante de nutreţ - Iarba temporară - iarba semănată pe terenuri arabile cedate producţiilor furajere erbacee pe o perioadă mai scurtă de 5 ani şi chiar sub un an",null,null,null,null,null,null,null,null,null,null,null,null,null,null,null,null,null,null,266.22000000000003,null,null,null,null,null,null,null,null,null,null,null,null,null,0,null,null,null,null,null,null,null,null,null,null,null,null,null,0]
["B_1_9_2_1",null,null,null,null,null,null,"Plante de nutreţ - alte furaje verzi - porumb siloz",null,null,null,null,null,null,null,null,null,null,null,null,null,null,null,null,null,null,1029.19,null,null,null,null,null,null,null,null,null,null,null,null,null,0,null,null,null,null,null,null,null,null,null,null,null,null,null,0]
["B_1_9_2_2",null,null,null,null,null,null,"Plante de nutreţ - alte furaje verzi (culturi anuale de cereale recoltate verzi, sorgul anual, anumite graminee anuale cum sunt firuţa, cruciferele, facelia dacă sunt recoltate verzi şi nu au fost menţionate în altă parte, mazariche, lupin dulce)",null,null,null,null,null,null,null,null,null,null,null,null,null,null,null,null,null,null,476.13,null,null,null,null,null,null,null,null,null,null,null,null,null,0,null,null,null,null,null,null,null,null,null,null,null,null,null,0]
["B_1_9_2_99",null,null,null,null,null,null,"Alte plante de nutreţ (diferite specii de trifoi anual sau peren - trifoi alb, trifoi roşu, trifoi de Alexandria - diferite varietăţi de lucernă)",null,null,null,null,null,null,null,null,null,null,null,null,null,null,null,null,null,null,662.78,null,null,null,null,null,null,null,null,null,null,null,null,null,0,null,null,null,null,null,null,null,null,null,null,null,null,null,0]
["B_1_10",null,null,null,null,null,null,"Seminţe şi seminiceri\n- semințe de graminee (altele decât cerealele de bază)\n- seminţe pentru horticultură\n- seminţe şi răsaduri pentru teren arabil cu excepţia cerealelor, a boabelor de leguminoase uscate, a cartofilor, a plantelor oleaginoase",null,null,null,null,null,null,null,null,null,null,null,null,null,null,null,null,null,null,2993.73,null,null,null,null,null,null,null,null,null,null,null,null,null,0,null,null,null,null,null,null,null,null,null,null,null,null,null,0]
["B_1_11",null,null,null,null,null,null,"Alte plante (culturi de mică importanţă economică care nu pot fi încadrate în altă categorie)",null,null,null,null,null,null,null,null,null,null,null,null,null,null,null,null,null,null,592.99,null,null,null,null,null,null,null,null,null,null,null,null,null,0,null,null,null,null,null,null,null,null,null,null,null,null,null,0]
["B_3_1",null,null,null,null,null,null,"Păşuni şi fâneţe permanente - păşuni şi fâneţe",null,null,null,null,null,null,null,null,null,null,null,null,null,null,null,null,null,null,295.04000000000002,null,null,null,null,null,null,null,null,null,null,null,null,null,0,null,null,null,null,null,null,null,null,null,null,null,null,null,0]
["B_3_2",null,null,null,null,null,null,"Păşuni şi fâneţe permanente - pe terenuri accidentate - păşuni sărace, inclusiv lăstărişul, de obicei nefertilizate şi neîntrebuinţate – păşuni cu randament scăzut situate în locuri accidentate şi la altitudini mari, care nu sunt cosite – terenuri stâncoase, terenuri mlăştinoase, bărăganuri",null,null,null,null,null,null,null,null,null,null,null,null,null,null,null,null,null,null,92.33,null,null,null,null,null,null,null,null,null,null,null,null,null,0,null,null,null,null,null,null,null,null,null,null,null,null,null,0]
["B_4_1_1_1",null,null,null,null,null,null,"Fructe, pomi şi arbuşti - climă temperată:\nMere\nPere\nPiersici şi nectarine\nAlte fructe: vişine, cireşe, caise, prune, gutui",null,null,null,null,null,null,null,null,null,null,null,null,null,null,null,null,null,null,2812.04,null,null,null,null,null,null,null,null,null,null,null,null,null,0,null,null,null,null,null,null,null,null,null,null,null,null,null,0]
["B_4_1_2",null,null,null,null,null,null,"Livezi de coacăz, smochin, zmeur, muri, agrişe, cătină, afin, goji, măceşe, soc, lonicera, coarne, aronia",null,null,null,null,null,null,null,null,null,null,null,null,null,null,null,null,null,null,3958.34,null,null,null,null,null,null,null,null,null,null,null,null,null,0,null,null,null,null,null,null,null,null,null,null,null,null,null,0]
["B_4_1_3",null,null,null,null,null,null,"Fructe, pomi şi arbuşti - nuci, alune, migdale, castane",null,null,null,null,null,null,null,null,null,null,null,null,null,null,null,null,null,null,1754.4,null,null,null,null,null,null,null,null,null,null,null,null,null,0,null,null,null,null,null,null,null,null,null,null,null,null,null,0]
["B_4_4_1",null,null,null,null,null,null,"Vii - vin nobil",null,null,null,null,null,null,null,null,null,null,null,null,null,null,null,null,null,null,1981.83,null,null,null,null,null,null,null,null,null,null,null,null,null,0,null,null,null,null,null,null,null,null,null,null,null,null,null,0]
["B_4_4_2",null,null,null,null,null,null,"Vii - alte vinuri",null,null,null,null,null,null,null,null,null,null,null,null,null,null,null,null,null,null,1889.96,null,null,null,null,null,null,null,null,null,null,null,null,null,0,null,null,null,null,null,null,null,null,null,null,null,null,null,0]
["B_4_4_3",null,null,null,null,null,null,"Vii – struguri de masa",null,null,null,null,null,null,null,null,null,null,null,null,null,null,null,null,null,null,2170.52,null,null,null,null,null,null,null,null,null,null,null,null,null,0,null,null,null,null,null,null,null,null,null,null,null,null,null,0]
["B_4_5",null,null,null,null,null,null,"Pepiniere",null,null,null,null,null,null,null,null,null,null,null,null,null,null,null,null,null,null,5614.25,null,null,null,null,null,null,null,null,null,null,null,null,null,0,null,null,null,null,null,null,null,null,null,null,null,null,null,0]
["B_4_6_1",null,null,null,null,null,null,"Alte culturi permanente: răchita, papura, bambus, salcie, brazi de crăciun",null,null,null,null,null,null,null,null,null,null,null,null,null,null,null,null,null,null,487.35,null,null,null,null,null,null,null,null,null,null,null,null,null,0,null,null,null,null,null,null,null,null,null,null,null,null,null,0]
["B_6_1",null,null,null,null,null,null,"Ciupercării pe 100mp (Nr. recolte pe an - 4)\n(suprafața totală cultivată = suprafața de bază*numărul de cicluri)",null,null,null,null,null,null,null,null,null,null,null,null,null,null,null,null,null,null,4456.78,null,null,null,null,null,null,{"$f":"W1072*W1073/100","v":0},null,null,null,null,null,null,{"$f":"AA1071*AH1071/4","v":0},null,null,null,null,null,null,{"$f":"W1074*W1075/100","v":0},null,null,null,null,null,null,{"$f":"AA1071*AV1071/4","v":0}]
[null,null,null,null,null,null,null,"Nr. de cicluri activitate existentă *"]
[null,null,null,null,null,null,null,"Suprafata activitate existentă (stelaje) (mp) **"]
[null,null,null,null,null,null,null,"Nr. de cicluri conform Studiului de Fezabilitate***"]
[null,null,null,null,null,null,null,"Suprafata în urma realizării investiţie (stelaje) (mp)****"]
[null,null,null,null,null,null,null,"TOTAL vegetal",null,null,null,null,null,null,null,null,null,null,null,null,null,null,null,null,null,null,null,null,null,null,null,null,null,{"$f":"SUM(AH1026:AN1075)","v":0},null,null,null,null,null,null,{"$f":"SUM(AO1026:AU1075)","v":0},null,null,null,null,null,null,{"$f":"SUM(AV1026:BB1075)","v":0},null,null,null,null,null,null,{"$f":"SUM(BC1026:BI1075)","v":0}]
[]
["* SE VA COMPLETA CU NUMĂRUL DE CICLURI DIN ACTIVITATEA EXISTENTĂ, REALIZATE ÎN CADRUL UNUI AN.\n** SE VA COMPLETA CU SUPRAFAŢA CULTURII(MP) CU CIUPERCI, ACTIVITATE EXISTENTĂ; ÎN CAZUL ÎN CARE ÎN CADRUL CIUPERCĂRIEI SE UTILIZEAZĂ UN SISTEM DE CULTURĂ ÎN STELAJE, SE VA COMPLETA SUPRAFAŢA CULTURII(MP) FORMATĂ DIN SUPRAFAŢA UNUI STELAJ(MP)xNUMĂR DE STELAJE\n*** SE VA COMPLETA CU NUMĂRUL DE CICLURI PREVĂZUT A SE REALIZA ÎN STUDIUL DE FEZABILITATE, ÎN CADRUL UNUI AN.\n**** SE VA COMPLETA CU SUPRAFAŢA CULTURII(MP) CU CIUPERCI, ÎN URMA REALIZĂRII INVESTIŢIEI; ÎN CAZUL ÎN CARE ÎN CADRUL CIUPERCĂRIEI SE UTILIZEAZĂ UN SISTEM DE CULTURĂ ÎN STELAJE, SE VA COMPLETA SUPRAFAŢA CULTURII(MP) FORMATĂ DIN SUPRAFAŢA UNUI STELAJ(MP)xNUMĂR DE STELAJE"]
[]
["Coduri EUROSTAT",null,null,null,null,null,null,"Denumire specii animale",null,null,null,null,null,null,null,null,null,null,null,null,null,null,null,null,null,null,"SO 2010 euro/cap",null,null,null,null,null,null,"Număr capete",null,null,null,null,null,null,"SO activitate existentă",null,null,null,null,null,null,"Total capete animale în urma realizării investiţiei",null,null,null,null,null,null,"SO în urma realizării investiţiei"]
[0,null,null,null,null,null,null,1,null,null,null,null,null,null,null,null,null,null,null,null,null,null,null,null,null,null,2,null,null,null,null,null,null,3,null,null,null,null,null,null,4,null,null,null,null,null,null,5,null,null,null,null,null,null,6]
["C_1",null,null,null,null,null,null,"Echide",null,null,null,null,null,null,null,null,null,null,null,null,null,null,null,null,null,null,1404.31,null,null,null,null,null,null,null,null,null,null,null,null,null,{"$f":"AA1082*AH1082","v":0},null,null,null,null,null,null,null,null,null,null,null,null,null,{"$f":"AA1082*AV1082","v":0}]
["C_2_1",null,null,null,null,null,null,"Bovine sub 1 an - total",null,null,null,null,null,null,null,null,null,null,null,null,null,null,null,null,null,null,216.38,null,null,null,null,null,null,null,null,null,null,null,null,null,0,null,null,null,null,null,null,null,null,null,null,null,null,null,{"$f":"AA1083*AV1083","v":0}]
["C_2_2",null,null,null,null,null,null,"Bovine sub 2 ani - masculi",null,null,null,null,null,null,null,null,null,null,null,null,null,null,null,null,null,null,344.4,null,null,null,null,null,null,null,null,null,null,null,null,null,0,null,null,null,null,null,null,null,null,null,null,null,null,null,0]
["C_2_3",null,null,null,null,null,null,"Bovine sub 2 ani - femele",null,null,null,null,null,null,null,null,null,null,null,null,null,null,null,null,null,null,341.49,null,null,null,null,null,null,null,null,null,null,null,null,null,0,null,null,null,null,null,null,null,null,null,null,null,null,null,0]
["C_2_4",null,null,null,null,null,null,"Bovine de 2 ani şi peste - masculi",null,null,null,null,null,null,null,null,null,null,null,null,null,null,null,null,null,null,817.88,null,null,null,null,null,null,null,null,null,null,null,null,null,0,null,null,null,null,null,null,null,null,null,null,null,null,null,0]
["C_2_5",null,null,null,null,null,null,"Bovine de 2 ani si peste - femele (juninci pentru îngrăşat, juninci pentru reproducţie)",null,null,null,null,null,null,null,null,null,null,null,null,null,null,null,null,null,null,801.38,null,null,null,null,null,null,null,null,null,null,null,null,null,0,null,null,null,null,null,null,null,null,null,null,null,null,null,0]
["C_2_6",null,null,null,null,null,null,"Vaci, bivoliţe pentru lapte",null,null,null,null,null,null,null,null,null,null,null,null,null,null,null,null,null,null,1200.46,null,null,null,null,null,null,null,null,null,null,null,null,null,0,null,null,null,null,null,null,null,null,null,null,null,null,null,0]
["C_2_99",null,null,null,null,null,null,"Bovine de 2 ani şi peste - alte vaci",null,null,null,null,null,null,null,null,null,null,null,null,null,null,null,null,null,null,515.85,null,null,null,null,null,null,null,null,null,null,null,null,null,0,null,null,null,null,null,null,null,null,null,null,null,null,null,0]
["C_3_1_1",null,null,null,null,null,null,"Oi - mioare montate - oi de un an sau mai mult, destinate reproducerii, oile reformate care urmează să fete",null,null,null,null,null,null,null,null,null,null,null,null,null,null,null,null,null,null,54.91,null,null,null,null,null,null,null,null,null,null,null,null,null,0,null,null,null,null,null,null,null,null,null,null,null,null,null,0]
["C_3_1_99",null,null,null,null,null,null,"Oi - alte oi: miei, berbeci, oi reformate - oi sterpe care urmează a fi îngrăşate în vederea sacrificări",null,null,null,null,null,null,null,null,null,null,null,null,null,null,null,null,null,null,26.72,null,null,null,null,null,null,null,null,null,null,null,null,null,0,null,null,null,null,null,null,null,null,null,null,null,null,null,0]
["C_3_2_1",null,null,null,null,null,null,"Capre – capre montate - capre montate femele destinate reproducerii, capre reformate care urmează să fete",null,null,null,null,null,null,null,null,null,null,null,null,null,null,null,null,null,null,112.98,null,null,null,null,null,null,null,null,null,null,null,null,null,0,null,null,null,null,null,null,null,null,null,null,null,null,null,0]
["C_3_2_99",null,null,null,null,null,null,"Capre – alte capre: iezi, ţapi, capre reformate destinate sacrificării",null,null,null,null,null,null,null,null,null,null,null,null,null,null,null,null,null,null,39.67,null,null,null,null,null,null,null,null,null,null,null,null,null,0,null,null,null,null,null,null,null,null,null,null,null,null,null,0]
["C_4_1_1",null,null,null,null,null,null,"Porcine - tineret porcin sub 20 kg",null,null,null,null,null,null,null,null,null,null,null,null,null,null,null,null,null,null,33.36,null,null,null,null,null,null,null,null,null,null,null,null,null,0,null,null,null,null,null,null,null,null,null,null,null,null,null,0]
["C_4_1_2",null,null,null,null,null,null,"Porcine - scroafe pentru reproducţie peste 50 kg",null,null,null,null,null,null,null,null,null,null,null,null,null,null,null,null,null,null,262.55,null,null,null,null,null,null,null,null,null,null,null,null,null,0,null,null,null,null,null,null,null,null,null,null,null,null,null,0]
["C_4_1_99",null,null,null,null,null,null,"Porcine - alte porcine: porci la îngrăşat, vieri, scroafe destinate sacrificării",null,null,null,null,null,null,null,null,null,null,null,null,null,null,null,null,null,null,388.08,null,null,null,null,null,null,null,null,null,null,null,null,null,0,null,null,null,null,null,null,null,null,null,null,null,null,null,0]
["C_5_1",null,null,null,null,null,null,"Pui pentru carne *",null,null,null,null,null,null,null,null,null,null,null,null,null,null,null,null,null,null,473.59,null,null,null,null,null,null,null,null,null,null,null,null,null,0,null,null,null,null,null,null,null,null,null,null,null,null,null,0]
["C_5_2",null,null,null,null,null,null,"Găini ouătoare *",null,null,null,null,null,null,null,null,null,null,null,null,null,null,null,null,null,null,2156,null,null,null,null,null,null,null,null,null,null,null,null,null,0,null,null,null,null,null,null,null,null,null,null,null,null,null,0]
["C_5_3_1",null,null,null,null,null,null,"Curcani şi curci *",null,null,null,null,null,null,null,null,null,null,null,null,null,null,null,null,null,null,4205.5600000000004,null,null,null,null,null,null,null,null,null,null,null,null,null,0,null,null,null,null,null,null,null,null,null,null,null,null,null,0]
["C_5_3_2",null,null,null,null,null,null,"Raţe *",null,null,null,null,null,null,null,null,null,null,null,null,null,null,null,null,null,null,2824.99,null,null,null,null,null,null,null,null,null,null,null,null,null,0,null,null,null,null,null,null,null,null,null,null,null,null,null,0]
["C_5_3_3",null,null,null,null,null,null,"Gâşte *",null,null,null,null,null,null,null,null,null,null,null,null,null,null,null,null,null,null,3602.66,null,null,null,null,null,null,null,null,null,null,null,null,null,0,null,null,null,null,null,null,null,null,null,null,null,null,null,0]
["C_5_3_4",null,null,null,null,null,null,"Struţi *",null,null,null,null,null,null,null,null,null,null,null,null,null,null,null,null,null,null,30083.5,null,null,null,null,null,null,null,null,null,null,null,null,null,0,null,null,null,null,null,null,null,null,null,null,null,null,null,0]
["C_5_3_99",null,null,null,null,null,null,"Alte păsări: bibilici, porumbei, potârnichi, fazani, prepeliţe *",null,null,null,null,null,null,null,null,null,null,null,null,null,null,null,null,null,null,900.34,null,null,null,null,null,null,null,null,null,null,null,null,null,0,null,null,null,null,null,null,null,null,null,null,null,null,null,0]
["C_6",null,null,null,null,null,null,"Iepuri (femele iepuri)",null,null,null,null,null,null,null,null,null,null,null,null,null,null,null,null,null,null,13.91,null,null,null,null,null,null,null,null,null,null,null,null,null,0,null,null,null,null,null,null,null,null,null,null,null,null,null,0]
["C_7",null,null,null,null,null,null,"Familii de albine",null,null,null,null,null,null,null,null,null,null,null,null,null,null,null,null,null,null,59.62,null,null,null,null,null,null,null,null,null,null,null,null,null,0,null,null,null,null,null,null,null,null,null,null,null,null,null,0]
[null,null,null,null,null,null,null,"TOTAL zootehnic",null,null,null,null,null,null,null,null,null,null,null,null,null,null,null,null,null,null,null,null,null,null,null,null,null,null,null,null,null,null,null,null,{"$f":"SUM(AO1082:AU1105)","v":0},null,null,null,null,null,null,null,null,null,null,null,null,null,{"$f":"SUM(BC1082:BI1105)","v":0}]
[null,null,null,null,null,null,null,"TOTAL GENERAL",null,null,null,null,null,null,null,null,null,null,null,null,null,null,null,null,null,null,null,null,null,null,null,null,null,null,null,null,null,null,null,null,{"$f":"AO1076+AO1106","v":0},null,null,null,null,null,null,null,null,null,null,null,null,null,{"$f":"BC1076+BC1106","v":0}]
[]
["* Valoarea SO se referă la 100 capete"]
["DEFINIŢIA ŞI PRINCIPIILE DE CALCULARE A PRODUCŢIILOR STANDARD\nSO 2013\nExploataţia profesională este o exploataţie agricolă suficient de mare încât să ofere o activitate de bază pentru şeful exploataţiei şi un venit suficient pentru susţinerea lui şi a familiei sale.\n(a) Valoarea producției standard reprezintă valoarea monetară a producției agricole brute la prețul de la poarta exploatației. Această valoare este suma dintre valoarea produsului principal (produselor principale) și cea a produsului secundar (produselor secundare). Valorile se calculează înmulțind producția per unitate cu prețul de la poarta exploatației. TVA-ul, taxele pe produse și plățile directe nu sunt incluse.\n(b) Perioada de producție Producțiile standard corespund unei perioade de producție de 12 luni (an calendaristic sau an de producție agricolă). Pentru produsele vegetale și animale în cazul cărora perioada de producție este mai mică de 12 luni sau depășește această perioadă, se calculează o producție standard corespunzătoare creșterii sau producției pe o perioadă de 12 luni.                                                                                                                                                                                                                                                                                                                                          (c) Unități\n1. Producțiile standard corespunzătoare caracteristicilor culturilor se determină pe baza suprafeței exprimate în hectare.\nCu toate acestea, pentru ciuperci, producțiile standard se determină pe baza producției brute pentru toate recoltele anuale succesive și se exprimă per 100 m2 de suprafață cultivată. În vederea utilizării lor în contextul RICA, aceste producții standard pentru ciuperci se împart la numărul de recolte anuale succesive care este comunicat Comisiei Europene.\n2. Producțiile standard corespunzătoare caracteristicilor efectivului de animale se determină pe cap de animal, cu excepția păsărilor de curte, pentru care se exprimă per 100  de capete, și a albinelor, pentru care se determină per stup.\n3. Datele de bază pentru determinarea producțiilor standard, precum și producțiile standard calculate se stabilesc în euro. Pentru statele membre care nu au aderat la uniunea economică și monetară, producțiile standard se convertesc în euro, utilizându-se cursurile de schimb medii pentru perioada de referință. Aceste cursuri de schimb medii se calculează pe baza cursurilor de schimb oficiale publicate de Comisie (Eurostat).                                                                                                                                                                                                (d) Defalcarea producțiilor standard\nÎn funcție de caracteristicile culturii vegetale și ale efectivului de animale producțiile standard se determină pentru toate caracteristicile agricole care sunt în exploatația agricolă. Dimensiunea economică a unei exploataţii agricole reprezintă valoarea SO totală a exploataţiei, exprimată în euro, corespunzătoare sumei SO calculată pentru fiecare dintre producţiile vegetale ori animale obţinute în exploataţia respectivă într-o perioadă de un an calendaristic sau an agricol. În cadrul măsurilor de Finanţare din cadrul Programului Naţional de Dezvoltare Rurală este necesară determinarea dimensiunii economice a exploataţiilor agricole care accesează fondurile europene.\nAceste instrucţiuni sprijină experţii verificatori de la nivel central şi pe cei judeţeni în rezolvarea atribuţiilor ce le revin în procesul de verificare a dimensiunii economice, dimensiune rezultată în urma aplicării coeficienţilor standard output SO.\nAceştia se introduc ca atare şi se aplică la efectivul din teren la data aplicării cererii de Finanţare pentru măsurile de dezvoltare rurală. Pentru cazul exploataţiilor de îngrăşare a animalelor în mai multe cicluri pe an, dimensiunea economică se calculează în baza unui număr mediu.                                                                                                                                       1.Culturi\nPentru toate tipurile de culturi (excepţie ciupercile) se aplică formula:\nSO 2013 = nr. ha cultura x coeficient cultura SO 2013\nIndiferent ce se obţine dintr-o cultură - făina, mălai, tărâţe, conserve, compot, dulceaţă, ţuică) - acestea sunt produse procesate fiind considerate ca venituri din alte activităţi ale exploataţiei agricole şi care nu intră în calculul dimensionării economice. Excepţie face obţinerea vinului.\nPentru exploatații care au mai multe culturi în cadrul unei categorii, cum ar fi ”Legume proaspete pepeni și căpșuni - în câmp deschis \" sau - ”Fructe din zone cu climă temperată”, coeficientul SO corespunde mediei ponderate a SO - urilor producțiilor incluse în această categorie. Este la latitudinea statelor membre să decidă care producție trebuie să fie inclusă în calcul în funcție de semnificația acesteia.\nÎn cazul în care pozițiile sunt subdivizate în sub poziții Statele Membre pot da un singur coeficient regional pentru o poziție principală; în acest caz, coeficientul pentru poziția principală se utilizează și pentru sub pozițiile aferente ex. ”Legume proaspete, pepeni şi căpşuni - în câmp, Flori, Fructe, pomi şi arbuşti - climă temperată” etc.\nTratamentul cazurilor speciale                                                                                                                                                                                                                                                                                                                                                                                                  Se stabilesc regulile următoare pentru calcularea producţiilor standard pentru anumite tipuri de caracteristici:\nPârloage (terenuri scoase temporar din circuitul agricol) fără subvenţii\nProducţia standard corespunzătoare pârloagelor fără niciun fel de subvenţii se ia în considerare la calcularea producţiei standard totale a exploataţiei numai în cazul în care există alte producţii standard pozitive pe exploataţie.\nPârloage pentru care s-au acordat subvenţii, fără uz economic, şi păşuni permanente care nu mai sunt utilizate în producţie şi care sunt eligibile pentru plata subvenţiilor\nAvând în vedere că producţia de pe terenurile în sistem de ajutor fără uz economic este limitată la plăţile directe, producţiile standard ale acestor terenuri se consideră egale cu zero.\nGrădinile familiale\nAvând în vedere că produsele grădinilor familiale sunt în mod obişnuit destinate consumului propriu al exploatantului şi nu comercializării, producţiile standard ale acestora se consideră egale cu zero.                                                                                                                                                                                                                                                                                                                                   Cultura ciupercilor\nPentru ciuperci cod B_6_1, producțiile standard se determină pe baza producției brute pentru toate recoltele anuale succesive și se exprimă per 100 m2 de suprafață cultivată.\nSe va dimensiona astfel:\nSuprafața totală a culturilor succesive = suprafaţa de bază (care poate fi supraetajată) x numărul de recolte - cicluri - complete\nPentru România s-au stabilit 4 cicluri de producţie.\nExemplu de calcul:\nPentru o suprafaţă totală de 200 mp:                                                                                                                                                                                                                                                                                                                                                               SO 2013 = 2 x 4456,78/4 cicluri = 2228,39 euro\nSeminţe şi semininceri\nCulturile de graminee (grâu, orz, orzoaică, ovăz, porumb, alte cereale) - loturi semincere se vor încadra la categoria de baza a culturii. Ca urmare la categoria B_1_10 Seminţe şi semininceri vor fi incluse următoarele:\n- Seminţe de graminee altele decât cele de la categoriile B_1_1_1, B_1_1_2, B_1_1_3, B_1_1_4, B_1_1_5, B_1_1_6, B_1_1_7, B_1_1_99\n- Seminţe pentru horticultura\n- Seminţe şi răsaduri pentru teren arabil cu excepţia cerealelor, a boabelor de leguminoase uscate, a cartofilor, a plantelor oleaginoase\nFuraje                                                                                                                                                                                                                                                                                                                                                                                                          În cazul în care, pe exploataţie, nu există erbivore (ecvidee, bovine, ovine şi caprine), furajele (rădăcinoase furajere şi brasicacee, plante verzi, păşuni şi fâneţe) se consideră ca fiind destinate comercializării şi fac parte din producţia culturilor de câmp.În cazul în care, pe exploataţie, există erbivore, furajele se consideră a fi destinate hrănirii acestora şi fac parte din producţia corespunzătoare erbivorelor şi furajelor.                                                                                                                                                                                                           2. Animale\nLa calcularea SO, procesarea produselor agricole nu trebuie luată în considerare chiar dacă această activitate este strâns legată de producție (lapte în unt, smântână, brânză). Prin urmare, în cazul în care într-o regiune laptele este transformat în brânză, în calcularea SO pentru vacile de lapte numai valoarea laptelui va fi luată în considerare și nu valoarea brânzei.\nPentru toate speciile de animale se aplică formula:\nSO 2013 = nr. capete specie x coeficient specie SO 2013\nmai puţin cazul păsărilor de curte la care coeficientul calculat este la 100 capete."]
[]
[]
[]
[]
[]
[]
[]
["Exploataţia de creştere a cabalinelor\nÎn concordanţă cu codurile utilizate pentru coeficienţii producție standard (standard output, SO) se disting următoarele categorii de cabaline:\nC_1 Echide: caii (inclusiv caii de curse și de călărie), măgarii, catârii, bardoii, etc.\n- Evaluarea cabalinelor s-a efectuat ţinând cont de valoarea orelor de muncă pe care acestea le efectuează în exploataţie ca producţie principală şi de valoarea mânjilor fătaţi ca producţie secundară.\n- Cabalinele şi produsele acestora din anchetele RICA nu sunt destinate consumului uman ci deservesc munca în exploataţie.\nExemplu de calcul:                                                                                                                                   \nExploataţia deţine:\n- 4 cai\n- 2 mânji\nDimensiunea economică a exploataţiei va fi:                                                                                                                                                                                                                                                                                                                  SO 2013 = 4 x 2052,50 = 8210 euro\nExploataţia de creştere bovine\nÎn concordanţă cu codurile utilizate pentru coeficienţii producție standard ( standard output, SO) se disting următoarele categorii de bovine:\nC_2_1. Bovine sub un an, masculi și femele\nC_2_2. Bovine între unu și doi ani, masculi\nC_2_3. Bovine între unu și doi ani, femele. Cu excepția bovinelor femele care au fătat deja.\nC_2_4. Bovine masculi de doi ani și de peste doi ani\nC_2_5. Juninci de reproducție. Bovine femele de doi ani sau mai mult, care nu au fătat încă și care sunt destinate reproducerii.\nC_2_5. Juninci pentru îngrășat. Bovine femele de doi ani sau mai mult, care nu au fătat încă și care nu sunt destinate reproducerii.\nC_2_6. Vaci de lapte. Bovine femele care au fătat (inclusiv cele de sub doi ani), care sunt ținute exclusiv sau în principal pentru producția de lapte destinat consumului uman sau obținerii de produse lactate. Sunt incluse vacile de lapte reformate.\nC_2_6. Bivolițe. Bivolițele care au fătat (inclusiv cele de sub doi ani) care sunt ținute exclusiv sau în principal pentru producția de lapte destinat consumului uman sau obținerii de produse lactate. Sunt incluse bivolițele reformate.\nC_2_99. Alte vaci:                                                                                                                                                                                                                                                                                                                                                                                                        1. Bovine femele care au fătat (inclusiv cele de sub doi ani), care sunt ținute exclusiv sau în principal pentru producția de viței și al căror lapte nu este utilizat pentru consumul uman sau obținerea de produse lactate.\n2. Vaci pentru muncă.\n3. Vaci reformate care nu sunt de lapte (îngrăşate sau nu înaintea sacrificării)\nCategoriile C_2_1:C_2_5 și C_2_99 includ și categoriile corespunzătoare de bivoli și bivolițe.\nPentru categoria C_2_1 Bovine sub un an se întâlnesc următoarele situaţii:\n· dacă în exploataţie se găsesc vaci de lapte cod C_2_6 atunci calculul dimensiunii economice se face prin însumarea producţiilor standard pentru vaci de lapte şi a producţiilor standard pentru viţeii sub 1 an al căror număr depăşeşte numărul vacilor de lapte;\n· dacă în exploatație nu se găsesc vaci de lapte atunci se iau în considerare producțiile standard corespunzătoare viţeilor sub 1 an pentru numărul care există în acel moment în exploataţie.\n· dacă în exploataţie sunt bovine femele care au fătat codul C_2_99, ţinute exclusiv sau în principal pentru producția de viței și al căror lapte nu este utilizat pentru consumul uman sau obținerea de produse lactate, calculul dimensiunii economice se face prin însumarea producţiilor standard pentru bovine femele care au fătat codul C_2_99 şi a producţiilor standard pentru viţeii sub 1 an al căror număr depăşeşte numărul bovinelor femele care au fătat cod C_2_99.\nExemple de calcul:                                                                                                                                                                                                                                                                                                                                                                          1) Exploataţia deţine următoarele categorii de bovine:\n- 10 vaci de lapte care au fătat 12 viţei,\n- 2 tauri mai mari de doi ani,\n- 3 viţele mai mari de 2 ani destinate sacrificării,\n- 3 bovine femele care au fătat 3 viţei, bovine ţinute exclusiv pentru producţia de viţei\nDimensiunea economică a exploataţiei va fi:\nSO 2013 = 10 x 1200,46 + 2 x 216,38 + 2 x 817,88 + 3 x 801,38 + 3 x 515,85 = 18024,81 Euro\n2) Exploataţia deţine următoarele categorii de bovine:\n- 25 viţei bovine sub un an achiziţionaţi\n- 7 bovine femele care au fătat 9 viţei, bovine ţinute exclusiv pentru producţia de viţei\nDimensiunea economică a exploataţiei va fi:\nSO 2013 = 25 x 216,38 + 7 x 515,85 +2 x 216,38 = 9453,21 Euro                                                                                                                                                                                                        \nExploataţia de creştere ovine şi caprine                                                                                                                                                                                                                                                                                                                 În concordanţă cu codurile utilizate pentru coeficienţii producție standard ( standard output, SO) se disting următoarele categorii de ovine şi caprine:\nC_3_1_1. Oi, femele de reproducție. Oi de un an sau mai mult destinate reproducției.\nC_3_1_99. Alte ovine. Ovine de toate vârstele, cu excepția oilor.\nC_3_2_1. Caprine, femele de reproducție\nC_3_2_99. Alte caprine. Caprine, altele decât femelele de reproducție.\nProducțiile standard corespunzătoare altor ovine - miei se iau în considerare la calcularea producției standard totale a exploatației numai în cazul în care în exploatație nu există nicio femelă ovină de reproducție.\nProducțiile standard corespunzătoare altor caprine - iezi se iau în considerare la calcularea producției standard totale a exploatației numai în cazul în care în exploatație nu există nicio femelă caprină de reproducție\nAcest lucru se datorează faptului că mieii/iezii sunt consideraţi producţia principală a oilor/caprelor, valoarea acestora fiind inclusă în coeficientul standard output al oilor, respectiv caprelor.\nExemplu de calcul:                                                                                                                                                                                                                                                                                                                                                                                                                                                                                                                                                                                                                                                   Exploataţia deţine următoarele categorii de ovine şi caprine:\n- 250 oi,\n- 270 miei,\n- 10 berbeci,\n- 12 oi sterpe,\n- 25 iezi\nSO 2013 = 250 x 54,91 + 10 x 26,72 +12 x26,72 + 25 x 39,67 = 15307,09 Euro\nExploataţia de creştere porcine :\nÎn concordanţă cu codurile utilizate pentru coeficienţii producție standard ( standard output, SO) se disting următoarele categorii de porcine:\nC_4_1. Purcei cu greutatea în viu sub 20 kg Purcei cu greutatea în viu sub 20 kg.\nC_4_2. Scroafe de reproducție de 50 kg și peste această greutate Scroafe de reproducție de 50 de kilograme sau mai mult, cu excepția scroafelor reformate (a se vedea categoria C_4_99, „Alte porcine”).\nC_4_99. Porci pentru îngrășat Porci pentru îngrășat cu greutatea în viu de 20 kg sau mai mult, cu excepția scroafelor reformate și a vierilor reformați (a se vedea categoria C_4_99, „Alte porcine”).\nC_4_99. Alte porcine Porci cu greutatea în viu de 20 kg sau mai mult, cu excepția scroafelor de reproducție (a se vedea categoria C_4_2) și a porcilor pentru îngrășat (a se vedea categoria C_4_99)."]
[]
["Producțiile standard corespunzătoare purceilor se iau în considerare la calcularea producției standard totale a exploatației numai în cazul în care în exploatație nu există nicio scroafă de reproducție.                                                                                                                                                                                                                                                                                                                                              Acest lucru se datorează faptului că purceii sub 20 kg sunt consideraţi producţia principală a scroafelor de reproducţie, valoarea acestora fiind inclusă în coeficientul standard output al scroafelor.\nExemplu de calcul:\nExploataţia deţine:\n- 12 scroafe,\n- 40 purcei sub 20 kg,\n- 35 porci pentru îngrăşat,\n- 2 vieri\nSO 2013 = 12 x 262,55 + 35 x 388,08 + 2 x 388,08 = 17509,56 Euro\nIn cazul în care exploataţia îşi desfăşoară activitatea pe mai multe cicluri de producţie (îngrăşare), calculul dimensiunii se va face astfel:\n- SO 2013 total = număr mediu porci îngrăşat x SO 2013 porci îngrăşat unde numărul mediu este exprimat ca număr cu o zecimală şi se calculează proporţional cu durata prezenţei porcilor de îngrăşat în exploataţie în timpul anului;\n- Numărul mediu = nr. total porci îngrăşat x numărul de zile (sau luni) prezenţi în exploataţie/365zile (sau 12 luni)\nExemplu de calcul: exploataţia îngraşă porci în trei cicluri prin achiziţionarea unui nr. total de 1800 porci de îngrăşat:\n- Numărul mediu = 1800 x 112 zile prezenţi în exploataţie/365 zile an = 552,3 porci îngrăşat\n- Va rezulta dimensiunea exploataţiei ca fiind:\nSO 2013 TOTAL = 552,3 x 388,08 = 214336,58 euro.                                                                                                                                                                                                                                                                      Exploataţia de creştere păsări de curte\nÎn concordanţă cu codurile utilizate pentru coeficienții producție standard ( standard output, SO) se disting următoarele categorii de păsări de curte:\nC_5_1 pui pentru carne\nC_5_2 găini ouătoare: puicuțele (găini tinere care nu au început să ouă), găinile ouătoare, găinile reformate și cocoșii de reproducție pentru găini ouătoare.\nC_5_3_1 Curcani şi curci\nC_5_3_2 Raţe\nC_5_3_3 Gâşte\nC_5_3_4 Struţi\nC_5_3_99 Alte păsări: bibilici, porumbei, potârnichi, fazani, prepeliţe\nNu se includ puişorii de o zi în nicio categorie de păsări.\nPuişorii de o zi, care nu reprezintă o categorie, ca atare, dar sunt incluşi în categoria reziduală \"Alte animale\", sunt principalul produs al găinilor de reproducție. Pentru acest lucru nu se calculează coeficient SO aferent acestei categorii.\nExploataţiile cu incubatoare pentru obţinerea puişorilor de o zi ar trebui să-şi dimensioneze unitatea prin alte metode decât cea a utilizării coeficienţilor SO, eventual cu producţia de puişori(valoare sau număr) previzionată.\n- Exploataţiile care îşi desfăşoară activitatea pe mai multe cicluri de producţie de pui de carne într-un an contabil se vor dimensiona la depunerea cererii de finanţare cu efectivul mediu de păsări (a tuturor ciclurilor) conform următoarei formule: SO 2013 total = număr mediu pui de carne x SO 2013 pui carne/100 unde numărul mediu este exprimat în cazul păsărilor ca număr întreg şi se calculează proporţional cu durata prezenţei lor în exploataţie în timpul anului\nExemplu de calcul\nExploataţia achiziţionează 1000000 pui de carne în timpul unui an în mai multe cicluri:\n- Numărul mediu = nr. total păsări x numărul de luni prezente în exploataţie/12 luni = 1000000 x 2/12 = 166667 pui de carne\n- Coeficientul standard output SO aferent categoriei C_5_1 Pui de carne = 473,59 euro/100 capete\n- Va rezulta dimensiunea exploataţiei ca fiind:\nSO 2013 TOTAL = 166667 x 473,59/100 = 789318,25 euro.\nRegulamentele care stau la baza calculului SO sunt următoarele:\n• Regulamentul (CE) nr. 1217/2009 al Consiliului privind crearea unei reţele de colectare de informaţii contabile privind veniturile şi activitatea economică a exploataţiilor agricole în Uniunea Europeană;\n• Documentul Comitetului Comunitar RICA RI/CC 1680 v.4 Martie 2015 privind Definițiile chestionarului utilizat în anchetă;\n• Regulamentul de punere în aplicare (UE) 220/ 3 februarie 2015 al Comisiei de stabilire a normelor de aplicare a Regulamentului (CE) nr. 1217/2009 al Consiliului privind crearea unei rețele de colectare de informații contabile privind veniturile și activitatea economică a exploatațiilor agricole în Uniunea Europeană;\n• Documentul Comitetului Comunitar RICA RI/CC 1500 v.4 Iunie 2016 Manual de tipologie"]
[]
[]
["F. DECLARAŢIE PE PROPRIA RĂSPUNDERE A SOLICITANTULUI"]
["Prin această declaraţie solicitantul"]
[]
["care solicită asistență financiară nerambursabilă prin programul FEADR pentru proiectul intitulat"]
[]
["prin reprezentant legal"]
[]
["cunoscând prevederile legii penale cu privire la falsul în declarații:"]
[null,null,null,"1. Declar că proiectul propus asistenței financiare nerambursabile FEADR nu beneficiază de altă finanțare din programe de finanțare nerambursabilă. De asemenea mă angajez ca în cazul în care proiectul va fi selectat pentru finanțare FEADR, nu voi depune acest proiect la nici un alt program de finanțare nerambursabilă la care proiectul poate fi în întregime sau parțial eligibil pentru asistență."]
[]
[null,null,null,"2. Declar că îndeplinesc condițiile de eligibilitate prevăzute în fișa măsurii din SDL și Ghidul Solicitantului și mă angajez să le respect pe perioada de valabilitate a contractului de finanțare și monitorizare a investiției, inclusiv criteriile de selecție pentru care proiectul a fost punctat."]
[null,null,null,"3. Declar că toate informațiile din prezenta cerere de finanțare și din documentele anexate sunt corecte și mă angajez să respect condițiile cerute în reglementările referitoare la prezentul program și pe cele legate de proiectul anexat și să furnizez periodic, la cerere, documentele justificative necesare."]
[null,null,null,"4. Declar pe propria răspundere că orice modificări aduse dreptului de proprietate sau de folosinţă vor fi notificate AFIR în termen de trei zile de la data încheierii lor. De asemenea, mă angajez, ca pe perioada de valabilitate a contractului de finanţare şi monitorizare a investiţiei să nu diminuez suprafaţa şi/sau infrastructura cuprinsă în proiect."]
[null,null,null,"5. Declar că eu și organizația mea (UAT sau ONG) nu ne aflăm într-unul din următoarele cazuri:"]
[null,null,null,"Acuzat din cauza unei greșeli privind conduita profesională având ca soluție finală res judicata (împotriva căreia nici un apel nu este posibil)"]
[null,null,null,"Vinovat de grave deficiențe de conduită profesională dovedite prin orice mijloace pe care Agenția le poate justifica."]
[null,null,null,"Vinovat de faptul că nu am prezentat informaţiile cerute de Autoritatea Contractantă ca o condiţie de participare la licitaţie sau contractare"]
[null,null,null,"Încălcarea prevederilor contractuale prin care nu mi-am îndeplinit obligațiile contractuale în legătură cu un alt contract cu Agenția sau alte contracte finanțate din fonduri comunitare."]
[null,null,null,"Încercarea de a obține informații confidențiale sau de influențare a Agenției în timpul procesului de evaluare a proiectului și nu voi face presiuni la adresa evaluatorului."]
["6.",null,null,null,null,"Declar că organizaţia pe care o reprezint ARE datorii către institutii de credit şi/sau instituţii financiare bancare / nebancare pentru care prezint graficul de rambursare"]
[null,null,null,null,null,"Declar că organizaţia pe care o reprezint NU are datorii către instituţii de credit şi/sau instituţii financiare bancare / nebancare"]
["7.",null,null,null,null,"Declar pe propria răspundere că în cazul în care nu respect oricare din punctele prevazute în această declaraţie proiectul să devină neeligibil în baza criteriului \"Eligibilitatea solicitantului\" sau contractul să fie reziliat"]
["8.",null,null,null,null,"Declar pe propria răspundere că:"]
[null,null,null,null,null,"Nu sunt înregistrat în scopuri TVA și că mă angajez să notific Agenției orice modificare a situatiei privind înregistrarea ca plătitor de TVA, în maximum 10 (zece) zile de la data înregistrării în scopuri TVA."]
[null,null,null,null,null,"Sunt înregistrat în scopuri de TVA (certificat de înregistrare fiscală în scopuri de TVA)."]
["9.",null,null,null,null,"Declar pe propria răspundere că nu am înscrisuri care privesc sancțiuni economico-financiare în cazierul judiciar pe care mă oblig să îl depun la încheierea contractului de finanţare . Prin prezenta îmi exprim consimțământul ca AFIR să solicite instituțiilor abilitate conform legii, extrasul de pe cazierul judiciar privind situația mea.\n(Până la reglementarea posibilităţii aplicării de către experţii evaluatori AFIR a normelor metodologice aferente Legii nr. 290/2004 privind cazierul judiciar, cu modificările şi completările ulterioare, solicitantul are obligaţia depunerii documentului justificativ mai sus enunţat.)"]
["10.",null,null,null,null,"Declar pe propria raspundere că nu am fapte înscrise în cazierul fiscal."]
["11.",null,null,null,null,"Declar pe propria răspundere că toate cheltuielile neeligibile vor fi suportate de solicitant şi că acestea vor fi realizate până la finalizarea proiectului."]
["12.",null,null,null,null,"Declar că mă angajez să îndeplinesc - Cerinţele minime obligatorii de respectare a bunelor practici agricole privind gestionarea gunoiului de grajd."]
["13.",null,null,null,null,"Mă angajez ca în termenul prevăzut în „Notificărea beneficiarului privind selectarea cererii de finanţare şi semnarea contractului de finanţare”, să prezint documentul privind cofinanţarea proiectului şi Angajamentul responsabilului legal al proiectului că nu va utiliza în alte scopuri 50% din cofinanțarea privată, în cazul prezentării cofinanţării prin extras de cont."]
["14.",null,null,null,null,"Mă angajez ca în maxim 4 luni de la data primirii \"Notificării beneficiarului privind selectarea cererii de finantare și semnarea contractului de finanțare\" să prezint documentul ANPM pentru proiect. Prin excepţie de la acest termen, în cazul în care proiectul se supune procedurilor de evaluare a impactului asupra mediului şi de evaluare adecvată sau doar de evaluare adecvată, mă angajez să prezint Acordul de mediu/Avizul Natura 2000 în termen de maximum 7 luni de la primirea Notificării solicitantului privind selectarea cererii de finanţare şi semnarea contractului de finanţare."]
["15.",null,null,null,null,"Mă angajez ca pe durata de execuție a contractului să-mi menţin cel puţin încadrarea în dimensiunea SO a exploataţiei agricole, fără a reduce dimensiunea economică a exploatației agricole, prevazută la depunerea cererii de finanțare, cu mai mult de 15% și fără a scădea, în nicio situație, sub pragul minim de 8.000 SO stabilit prin condițiile de eligibilitate."]
["16.",null,null,null,null,"Sunt de acord ca AFIR sa publice pe site, să consulte și să prelucreze, prin operațiunile prevăzute de legislația în vigoare în vederea desfășurării activității specifice, datele mele cu caracter personal, furnizate AFIR, cu respectarea legislaţiei europene şi naţionale privind transparenţa, publicarea datelor cu caracter personal şi prelucrarea acestora."]
[]
[null,"Semnătura reprezentant legal şi ştampila (după caz)",null,null,null,null,null,null,null,null,null,null,null,null,null,null,null,null,null,null,null,null,null,null,null,null,null,null,null,null,null,null,null,null,null,null,null,null,null,null,null," Data:"]
[]
[]
[]
["Anexa INDICATORI DE MONITORIZARE"]
["Măsura 2.1. (2A) - Modernizarea exploatațiilor agricole si pomicole"]
["1. Numărul de exploatații agricole/beneficiari sprijiniți"]
["2. Număr de locuri de muncă nou create"]
["3. Cheltuieli publice totale"]
["Indic. nr. 1 - se va completa numărul de locuri nou create (inclusiv intreprinderile individuale/persoanele fizice autorizate nou create)\nIndic. nr. 3 - se va completa cu valoarea sprijinului nerambursabil specific masurii"]
[]
[]
[]
[]
[]
[]
[]
[]
[]
[]
[]
[]
[]
[]
[]
[]
[]
[]
[]
[]
[]
[]
[]
[]
[]
[]
[]
[]
[]
[]
[]
[]
[]
[null,null,"Codul unic de înregistrare APIA"]
[null,null,"În cazul în care nu aveți un cod unic de înregistrare APIA, completați acest formular."]
["FORMULAR"]
["de înscriere în Registrul unic de identificare pentru solicitanţii de finanţare prin măsurile"]
["Programului naţional de dezvoltare rurală 2014 - 2020"]
[]
["Denumire solicitant:"]
[]
["Categorie Solicitant:"]
[]
["Sediul / Adresa"]
[]
["Ţara",null,null,null,null,"România",null,null,null,null,null,null,null,null,"Judeţul",null,null,null,null,null,null,null,null,null,null,null,null,null,null,null,null,null,null,"oraşul"]
[]
["comuna",null,null,null,null,null,null,null,null,null,null,null,null,null,null,null,null,null,null,null,null,"satul",null,null,null,null,null,null,null,null,null,null,null,null,null,null,null,null,null,"strada"]
[]
["nr.",null,null,null,null,null,null,null,"bl.",null,null,null,null,null,"et.",null,null,null,null,"ap.",null,null,null,null,null,"sectorul",null,null,null,null,null,null,null,null,null,null,null,null,"codul poştal"]
[]
["Număr de telefon",null,null,null,null,null,null,null,null,null,null,null,null,null,null,null,null,null,null,null,null,null,null,"Fax",null,null,null,null,null,null,null,null,null,null,null,null,null,null,"E-mail"]
[]
["Număr de înregistrare în registrul comerțului/Registrul asociațiilor și fundațiilor"]
[]
["CUI / CIF"]
[]
["Cod CAEN pentru activitatea principală"]
[]
["Cod CAEN pentru activitatea secundară pentru care se solicită înregistrarea în Registrul unic de identificare"]
[]
["Cod IBAN"]
[]
["deschis la Banca"]
[]
["Sucursala / Agenție"]
[]
["Prin reprezentant legal, doamna/domnul"]
[]
["cu CNP",null,null,null,null,null,null,null,null,null,null,null,null,null,null,"solicit înscrierea în Registrul unic de îdentificare - Agenţia de Plăţi şi Intervenţie pentru Agricultură."]
[]
["Am luat la cunoştinţă că orice modificare a informaţiilor de mai sus trebuie furnizată către APIA în termen de maximum 10 zile\nlucrătoare de la producerea acestora.\nDeclar pe propria răspundere că cele de mai sus sunt conforme cu realitatea.\nSunt de acord ca datele din cerere să fie introduse în baza de date a Sistemului Integrat de Administrare şi Control, procesate şi\nverificate în vederea înscrierii în Registrul unic de identificare şi transmise autorităţilor responsabile în vederea elaborării de studii\nstatistice şi de evaluări economice, în condiţiile Legii nr. 677-2001 pentru protecţia persoanelor cu privire la prelucrarea datelor cu\ncaracter personal şi libera circulaţie a acestor date, cu modificarile şi completările ulterioare."]
[]
["Reprezentant legal",null,null,null,null,null,null,null,null,null,null,null,null,null,null,null,null,null,null,null,null,null,null,null,null,null,null,null,null,null,null,null,null,null,null,null,null,null,null,null,null,null,null,"Data:"]
[]
["Numele şi prenumele"]
[]
["Semnătura "]

{"sheet":"Anexa 1 HG_907","index":1,"n_rows":98,"n_cols":52,"rows_kept":98,"cut":false,"hidden":false,"merged":[[0,7,0,41],[1,7,1,41],[1,42,2,60],[2,7,2,41],[3,7,3,41],[3,42,3,50],[3,51,3,60],[9,0,9,3],[9,4,9,41],[9,42,9,50],[9,51,9,60],[10,0,10,3],[10,4,10,41],[10,42,10,50],[10,51,10,60],[4,7,4,60],[5,0,5,60],[6,0,6,60],[7,0,7,60],[8,0,8,3],[8,4,8,41],[8,42,8,50],[8,51,8,60],[13,0,13,3],[13,4,13,41],[13,42,13,50],[13,51,13,60],[14,0,14,3],[14,4,14,41],[14,42,14,50],[14,51,14,60],[11,0,11,3],[11,4,11,41],[11,42,11,50],[11,51,11,60],[12,0,12,3],[12,4,12,41],[12,42,12,50],[12,51,12,60],[17,0,17,3],[17,4,17,41],[17,42,17,50],[17,51,17,60],[18,0,18,3],[18,4,18,41],[18,42,18,50],[18,51,18,60],[15,0,15,3],[15,4,15,41],[15,42,15,50],[15,51,15,60],[16,0,16,3],[16,4,16,41],[16,42,16,50],[16,51,16,60],[21,0,21,3],[21,4,21,41],[21,42,21,50],[21,51,21,60],[22,0,22,3],[22,4,22,41],[22,42,22,50],[22,51,22,60],[19,0,19,3],[19,4,19,41],[19,42,19,50],[19,51,19,60],[20,0,20,3],[20,4,20,41],[20,42,20,50],[20,51,20,60],[25,0,25,3],[25,4,25,41],[25,42,25,50],[25,51,25,60],[26,0,26,3],[26,4,26,41],[26,42,26,50],[26,51,26,60],[23,0,23,3],[23,4,23,41],[23,42,23,50],[23,51,23,60],[24,0,24,3],[24,4,24,41],[24,42,24,50],[24,51,24,60],[29,0,29,3],[29,4,29,41],[29,42,29,50],[29,51,29,60],[30,0,30,3],[30,4,30,41],[30,42,30,50],[30,51,30,60],[27,0,27,3],[27,4,27,41],[27,42,27,50],[27,51,27,60],[28,0,28,3],[28,4,28,41],[28,42,28,50],[28,51,28,60],[33,0,33,3],[33,4,33,41],[33,42,33,50],[33,51,33,60],[34,0,34,3],[34,4,34,41],[34,42,34,50],[34,51,34,60],[31,0,31,3],[31,4,31,41],[31,42,31,50],[31,51,31,60],[32,0,32,3],[32,4,32,41],[32,42,32,50],[32,51,32,60],[37,0,37,3],[37,4,37,41],[37,42,37,50],[37,51,37,60],[38,0,38,3],[38,4,38,41],[38,42,38,50],[38,51,38,60],[35,0,35,3],[35,4,35,41],[35,42,35,50],[35,51,35,60],[36,0,36,3],[36,4,36,41],[36,42,36,50],[36,51,36,60],[41,0,41,3],[41,4,41,41],[41,42,41,50],[41,51,41,60],[42,0,42,3],[42,4,42,41],[42,42,42,50],[42,51,42,60],[39,0,39,3],[39,4,39,41],[39,42,39,50],[39,51,39,60],[40,0,40,3],[40,4,40,41],[40,42,40,50],[40,51,40,60],[45,0,45,41],[45,42,45,50],[45,51,45,60],[46,0,46,41],[46,42,46,50],[46,51,46,60],[43,0,43,3],[43,4,43,41],[43,42,43,50],[43,51,43,60],[44,0,44,3],[44,4,44,41],[44,42,44,50],[44,51,44,60],[53,7,53,41],[53,42,53,50],[53,51,53,60],[54,7,54,60],[55,0,55,60],[56,0,56,60],[47,0,47,41],[47,42,47,60],[49,0,49,42],[50,7,50,41],[51,7,51,41],[51,42,52,60],[52,7,52,41],[60,0,60,3],[60,4,60,41],[60,42,60,50],[60,51,60,60],[61,0,61,3],[61,4,61,41],[61,42,61,50],[61,51,61,60],[57,0,57,60],[58,0,58,3],[58,4,58,41],[58,42,58,50],[58,51,58,60],[59,0,59,3],[59,4,59,41],[59,42,59,50],[59,51,59,60],[64,0,64,3],[64,4,64,41],[64,42,64,50],[64,51,64,60],[65,0,65,3],[65,4,65,41],[65,42,65,50],[65,51,65,60],[62,0,62,3],[62,4,62,41],[62,42,62,50],[62,51,62,60],[63,0,63,3],[63,4,63,41],[63,42,63,50],[63,51,63,60],[68,0,68,3],[68,4,68,41],[68,42,68,50],[68,51,68,60],[69,0,69,3],[69,4,69,41],[69,42,69,50],[69,51,69,60],[66,0,66,3],[66,4,66,41],[66,42,66,50],[66,51,66,60],[67,0,67,3],[67,4,67,41],[67,42,67,50],[67,51,67,60],[72,0,72,3],[72,4,72,41],[72,42,72,50],[72,51,72,60],[73,0,73,3],[73,4,73,41],[73,42,73,50],[73,51,73,60],[70,0,70,3],[70,4,70,41],[70,42,70,50],[70,51,70,60],[71,0,71,3],[71,4,71,41],[71,42,71,50],[71,51,71,60],[76,0,76,3],[76,4,76,41],[76,42,76,50],[76,51,76,60],[77,0,77,3],[77,4,77,41],[77,42,77,50],[77,51,77,60],[74,0,74,3],[74,4,74,41],[74,42,74,50],[74,51,74,60],[75,0,75,3],[75,4,75,41],[75,42,75,50],[75,51,75,60],[80,0,80,3],[80,4,80,41],[80,42,80,50],[80,51,80,60],[81,0,81,3],[81,4,81,41],[81,42,81,50],[81,51,81,60],[78,0,78,3],[78,4,78,41],[78,42,78,50],[78,51,78,60],[79,0,79,3],[79,4,79,41],[79,42,79,50],[79,51,79,60],[84,0,84,3],[84,4,84,41],[84,42,84,50],[84,51,84,60],[85,0,85,3],[85,4,85,41],[85,42,85,50],[85,51,85,60],[82,0,82,3],[82,4,82,41],[82,42,82,50],[82,51,82,60],[83,0,83,3],[83,4,83,41],[83,42,83,50],[83,51,83,60],[88,0,88,3],[88,4,88,41],[88,42,88,50],[88,51,88,60],[89,0,89,3],[89,4,89,41],[89,42,89,50],[89,51,89,60],[86,0,86,3],[86,4,86,41],[86,42,86,50],[86,51,86,60],[87,0,87,3],[87,4,87,41],[87,42,87,50],[87,51,87,60],[92,0,92,3],[92,4,92,41],[92,42,92,50],[92,51,92,60],[93,0,93,3],[93,4,93,41],[93,42,93,50],[93,51,93,60],[90,0,90,3],[90,4,90,41],[90,42,90,50],[90,51,90,60],[91,0,91,3],[91,4,91,41],[91,42,91,50],[91,51,91,60],[96,0,96,41],[96,42,96,50],[96,51,96,60],[97,0,97,41],[97,42,97,60],[99,0,99,42],[94,0,94,3],[94,4,94,41],[94,42,94,50],[94,51,94,60],[95,0,95,41],[95,42,95,50],[95,51,95,60]]}
[null,null,null,null,null,null,null,"MINISTERUL AGRICULTURII ŞI DEZVOLTĂRII RURALE"]
[null,null,null,null,null,null,null,null,null,null,null,null,null,null,null,null,null,null,null,null,null,null,null,null,null,null,null,null,null,null,null,null,null,null,null,null,null,null,null,null,null,null,"Anexa A1 HG_907"]
[null,null,null,null,null,null,null,"AGENŢIA PENTRU FINANŢAREA INVESTIŢIILOR RURALE"]
[null,null,null,null,null,null,null,null,null,null,null,null,null,null,null,null,null,null,null,null,null,null,null,null,null,null,null,null,null,null,null,null,null,null,null,null,null,null,null,null,null,null,null,null,null,null,null,null,null,null,null,"Aprilie 2017"]
[null,null,null,null,null,null,null,"Deviz financiar- Capitolul 3 - Cheltuieli pentru proiectare şi asistenţa tehnică - EURO"]
["Nr.2"]
[]
["(Titlu deviz)"]
["Nr.crt",null,null,null,"Specificaţie",null,null,null,null,null,null,null,null,null,null,null,null,null,null,null,null,null,null,null,null,null,null,null,null,null,null,null,null,null,null,null,null,null,null,null,null,null,"Valoare eligibilă",null,null,null,null,null,null,null,null,"Valoare\nneeligibilă"]
["3.1",null,null,null,"Cheltuieli pentru studii ",null,null,null,null,null,null,null,null,null,null,null,null,null,null,null,null,null,null,null,null,null,null,null,null,null,null,null,null,null,null,null,null,null,null,null,null,null,{"$f":"SUM(AQ11:AY13)","v":0},null,null,null,null,null,null,null,null,{"$f":"SUM(AZ11:BI13)","v":0}]
[null,null,null,null,"3.1.1 Studii de teren: studii geotehnice, geologice, hidrologice, hidrogeotehnice, fotogrammetrice, topografica şi de stabilitate ale terenului pe care se amplasează obiectivul de investiţie"]
[null,null,null,null,"3.1.2 Raport privind impactul asupra mediului"]
[null,null,null,null,"3.1.3 Studii de specialitate necesare în funcţie de specificul investiţiei"]
["3.2",null,null,null,"Documentaţii-suport şi cheltuieli pentru obţinerea de avize, acorduri şi autorizaţii",null,null,null,null,null,null,null,null,null,null,null,null,null,null,null,null,null,null,null,null,null,null,null,null,null,null,null,null,null,null,null,null,null,null,null,null,null,{"$f":"SUM(AQ15:AY23)","v":0},null,null,null,null,null,null,null,null,{"$f":"SUM(AZ15:BI23)","v":0}]
[null,null,null,null,"1. obţinerea/prelungirea valabilităţii ceritificatului de urbanism"]
[null,null,null,null,"2. obţinerea/prelungirea valabilităţii autorizaţiei de construire/desfiinţare"]
[null,null,null,null,"3. obţinerea avizelor şi acordurilor pentru racorduri şi branşamente la reţele publice de alimentare cu apă, canalizare, alimentare cu gaze, alimentare cu agent termic, energie electrică, telefonie"]
[null,null,null,null,"4. obţinerea certificatului de nomenclatură stradală şi adresă"]
[null,null,null,null,"5. întocmirea documentaţiei, obţinerea numărului cadastral provizoriu şi înregistrarea terenului în cartea funciară"]
[null,null,null,null,"6. obţinerea actului administrativ al autorităţii competente pentru protecţia mediului"]
[null,null,null,null,"7. obţinerea avizului de protecţie civilă"]
[null,null,null,null,"8. avizul de specialitate în cazul obiectivelor de patrimoniu"]
[null,null,null,null,"9. alte avize, acorduri şi autorizaţii"]
["3.3",null,null,null,"Cheltuieli pentru expertizarea tehnică a construcţiilor existente, a structurilor şi/sau, după caz, a proiectelor tehnice, inclusiv întocmirea de către expertul tehnic a raportului de expertiză tehnică"]
["3.4",null,null,null,"Cheltuieli pentru certificarea performanţei energetice şi auditul energetic al clădirilor"]
["3.5",null,null,null,"Cheltuieli pentru proiectare",null,null,null,null,null,null,null,null,null,null,null,null,null,null,null,null,null,null,null,null,null,null,null,null,null,null,null,null,null,null,null,null,null,null,null,null,null,{"$f":"SUM(AQ27:AY32)","v":0},null,null,null,null,null,null,null,null,{"$f":"SUM(AZ27:BI32)","v":0}]
[null,null,null,null,"3.5.1 Temă de proiectare"]
[null,null,null,null,"3.5.2 Studiu de prefezabilitate"]
[null,null,null,null,"3.5.3 Studiu de fezabilitate/documentaţie de avizare a lucrărilor de intervenţii şi deviz general"]
[null,null,null,null,"3.5.4 Documentaţiile tehnice necesare în vederea obţinerii avizelor/acordurilor/ autorizaţiilor"]
[null,null,null,null,"3.5.5 Verificarea tehnică de calitate a proiectului tehnic şi a detaliilor de execuţie"]
[null,null,null,null,"3.5.6 Proiect tehnic şi detalii de execuţie"]
["3.6",null,null,null,"Cheltuieli aferente organizării şi derulării procedurilor de achiziţii publice",null,null,null,null,null,null,null,null,null,null,null,null,null,null,null,null,null,null,null,null,null,null,null,null,null,null,null,null,null,null,null,null,null,null,null,null,null,{"$f":"SUM(AQ34:AY37)","v":0},null,null,null,null,null,null,null,null,{"$f":"SUM(AZ34:BI37)","v":0}]
[null,null,null,null,"1. Cheltuieli aferente întocmirii documentaţiei de atribuire şi multiplicării acesteia (exclusiv cele cumpărate de ofertanţi)"]
[null,null,null,null,"2. Cheltuieli cu onorariile, transportul, cazarea şi diurna membrilor desemnaţi în comisiile de evaluare"]
[null,null,null,null,"3. Anunţuri de intenţie, de participare şi de atribuire a contractelor, corespondenţă prin poştă, fax, poştă electronică în legătură cu procedurile de achiziţie publică"]
[null,null,null,null,"4. Cheltuieli aferente organizării şi derulării procedurilor de achiziţii publice"]
["3.7",null,null,null,"Cheltuieli pentru consultanţă",null,null,null,null,null,null,null,null,null,null,null,null,null,null,null,null,null,null,null,null,null,null,null,null,null,null,null,null,null,null,null,null,null,null,null,null,null,{"$f":"SUM(AQ39:AY40)","v":0},null,null,null,null,null,null,null,null,{"$f":"SUM(AZ39:BI40)","v":0}]
[null,null,null,null,"3.7.1 Managementul de proiect pentru obiectivul de investiţii"]
[null,null,null,null,"3.7.2 Auditul financiar"]
["3.8",null,null,null,"Cheltuieli pentru asistenţă tehnică",null,null,null,null,null,null,null,null,null,null,null,null,null,null,null,null,null,null,null,null,null,null,null,null,null,null,null,null,null,null,null,null,null,null,null,null,null,{"$f":"AQ42+AQ45","v":0},null,null,null,null,null,null,null,null,{"$f":"AZ42+AZ45","v":0}]
[null,null,null,null,"3.8.1. Asistenţă tehnică din partea proiectantului",null,null,null,null,null,null,null,null,null,null,null,null,null,null,null,null,null,null,null,null,null,null,null,null,null,null,null,null,null,null,null,null,null,null,null,null,null,{"$f":"SUM(AQ43:AY44)","v":0},null,null,null,null,null,null,null,null,{"$f":"SUM(AZ43:BI44)","v":0}]
[null,null,null,null,"\n1.1. pe perioada de execuţie a lucrărilor"]
[null,null,null,null,"1.2. pentru participarea proiectantului la fazele incluse în programul de control al lucrărilor de execuţie, avizat de către Inspectoratul de Stat în Construcţii"]
[null,null,null,null,"3.8.2 Dirigenţie de şantier, asigurată de personal tehnic de specialitate, autorizat"]
["Total valoare fără TVA",null,null,null,null,null,null,null,null,null,null,null,null,null,null,null,null,null,null,null,null,null,null,null,null,null,null,null,null,null,null,null,null,null,null,null,null,null,null,null,null,null,{"$f":"AQ10+AQ14+AQ24+AQ25+AQ26+AQ33+AQ38+AQ41","v":0},null,null,null,null,null,null,null,null,{"$f":"AZ10+AZ14+AZ24+AZ25+AZ26+AZ33+AZ38+AZ41","v":0}]
["Valoare TVA (aferentă cheltuielilor eligibile şi neeligibile)"]
["TOTAL DEVIZ FINANCIAR 1 (inclusiv TVA)",null,null,null,null,null,null,null,null,null,null,null,null,null,null,null,null,null,null,null,null,null,null,null,null,null,null,null,null,null,null,null,null,null,null,null,null,null,null,null,null,null,{"$f":"SUM(AQ46:BI47)","v":0}]
[]
[]
[null,null,null,null,null,null,null,"MINISTERUL AGRICULTURII ŞI DEZVOLTĂRII RURALE"]
[null,null,null,null,null,null,null,null,null,null,null,null,null,null,null,null,null,null,null,null,null,null,null,null,null,null,null,null,null,null,null,null,null,null,null,null,null,null,null,null,null,null,"Anexa A1 HG_907"]
[null,null,null,null,null,null,null,"AGENŢIA PENTRU FINANŢAREA INVESTIŢIILOR RURALE"]
[null,null,null,null,null,null,null,null,null,null,null,null,null,null,null,null,null,null,null,null,null,null,null,null,null,null,null,null,null,null,null,null,null,null,null,null,null,null,null,null,null,null,null,null,null,null,null,null,null,null,null,"Aprilie 2017"]
[null,null,null,null,null,null,null,"Deviz financiar- Capitolul 3 - Cheltuieli pentru proiectare şi asistenţa tehnică - EURO"]
["Nr.3"]
[]
["(Titlu deviz)"]
["Nr.crt",null,null,null,"Specificaţie",null,null,null,null,null,null,null,null,null,null,null,null,null,null,null,null,null,null,null,null,null,null,null,null,null,null,null,null,null,null,null,null,null,null,null,null,null,"Valoare eligibilă",null,null,null,null,null,null,null,null,"Valoare\nneeligibilă"]
["3.1",null,null,null,"Cheltuieli pentru studii ",null,null,null,null,null,null,null,null,null,null,null,null,null,null,null,null,null,null,null,null,null,null,null,null,null,null,null,null,null,null,null,null,null,null,null,null,null,{"$f":"SUM(AQ61:AY63)","v":0},null,null,null,null,null,null,null,null,{"$f":"SUM(AZ61:BI63)","v":0}]
[null,null,null,null,"3.1.1 Studii de teren: studii geotehnice, geologice, hidrologice, hidrogeotehnice, fotogrammetrice, topografica şi de stabilitate ale terenului pe care se amplasează obiectivul de investiţie"]
[null,null,null,null,"3.1.2 Raport privind impactul asupra mediului"]
[null,null,null,null,"3.1.3 Studii de specialitate necesare în funcţie de specificul investiţiei"]
["3.2",null,null,null,"Documentaţii-suport şi cheltuieli pentru obţinerea de avize, acorduri şi autorizaţii",null,null,null,null,null,null,null,null,null,null,null,null,null,null,null,null,null,null,null,null,null,null,null,null,null,null,null,null,null,null,null,null,null,null,null,null,null,{"$f":"SUM(AQ65:AY73)","v":0},null,null,null,null,null,null,null,null,{"$f":"SUM(AZ65:BI73)","v":0}]
[null,null,null,null,"1. obţinerea/prelungirea valabilităţii ceritificatului de urbanism"]
[null,null,null,null,"2. obţinerea/prelungirea valabilităţii autorizaţiei de construire/desfiinţare"]
[null,null,null,null,"3. obţinerea avizelor şi acordurilor pentru racorduri şi branşamente la reţele publice de alimentare cu apă, canalizare, alimentare cu gaze, alimentare cu agent termic, energie electrică, telefonie"]
[null,null,null,null,"4. obţinerea certificatului de nomenclatură stradală şi adresă"]
[null,null,null,null,"5. întocmirea documentaţiei, obţinerea numărului cadastral provizoriu şi înregistrarea terenului în cartea funciară"]
[null,null,null,null,"6. obţinerea actului administrativ al autorităţii competente pentru protecţia mediului"]
[null,null,null,null,"7. obţinerea avizului de protecţie civilă"]
[null,null,null,null,"8. avizul de specialitate în cazul obiectivelor de patrimoniu"]
[null,null,null,null,"9. alte avize, acorduri şi autorizaţii"]
["3.3",null,null,null,"Cheltuieli pentru expertizarea tehnică a construcţiilor existente, a structurilor şi/sau, după caz, a proiectelor tehnice, inclusiv întocmirea de către expertul tehnic a raportului de expertiză tehnică"]
["3.4",null,null,null,"Cheltuieli pentru certificarea performanţei energetice şi auditul energetic al clădirilor"]
["3.5",null,null,null,"Cheltuieli pentru proiectare",null,null,null,null,null,null,null,null,null,null,null,null,null,null,null,null,null,null,null,null,null,null,null,null,null,null,null,null,null,null,null,null,null,null,null,null,null,{"$f":"SUM(AQ77:AY82)","v":0},null,null,null,null,null,null,null,null,{"$f":"SUM(AZ77:BI82)","v":0}]
[null,null,null,null,"3.5.1 Temă de proiectare"]
[null,null,null,null,"3.5.2 Studiu de prefezabilitate"]
[null,null,null,null,"3.5.3 Studiu de fezabilitate/documentaţie de avizare a lucrărilor de intervenţii şi deviz general"]
[null,null,null,null,"3.5.4 Documentaţiile tehnice necesare în vederea obţinerii avizelor/acordurilor/ autorizaţiilor"]
[null,null,null,null,"3.5.5 Verificarea tehnică de calitate a proiectului tehnic şi a detaliilor de execuţie"]
[null,null,null,null,"3.5.6 Proiect tehnic şi detalii de execuţie"]
["3.6",null,null,null,"Cheltuieli aferente organizării şi derulării procedurilor de achiziţii publice",null,null,null,null,null,null,null,null,null,null,null,null,null,null,null,null,null,null,null,null,null,null,null,null,null,null,null,null,null,null,null,null,null,null,null,null,null,{"$f":"SUM(AQ84:AY87)","v":0},null,null,null,null,null,null,null,null,{"$f":"SUM(AZ84:BI87)","v":0}]
[null,null,null,null,"1. Cheltuieli aferente întocmirii documentaţiei de atribuire şi multiplicării acesteia (exclusiv cele cumpărate de ofertanţi)"]
[null,null,null,null,"2. Cheltuieli cu onorariile, transportul, cazarea şi diurna membrilor desemnaţi în comisiile de evaluare"]
[null,null,null,null,"3. Anunţuri de intenţie, de participare şi de atribuire a contractelor, corespondenţă prin poştă, fax, poştă electronică în legătură cu procedurile de achiziţie publică"]
[null,null,null,null,"4. Cheltuieli aferente organizării şi derulării procedurilor de achiziţii publice"]
["3.7",null,null,null,"Cheltuieli pentru consultanţă",null,null,null,null,null,null,null,null,null,null,null,null,null,null,null,null,null,null,null,null,null,null,null,null,null,null,null,null,null,null,null,null,null,null,null,null,null,{"$f":"SUM(AQ89:AY90)","v":0},null,null,null,null,null,null,null,null,{"$f":"SUM(AZ89:BI90)","v":0}]
[null,null,null,null,"3.7.1 Managementul de proiect pentru obiectivul de investiţii"]
[null,null,null,null,"3.7.2 Auditul financiar"]
["3.8",null,null,null,"Cheltuieli pentru asistenţă tehnică",null,null,null,null,null,null,null,null,null,null,null,null,null,null,null,null,null,null,null,null,null,null,null,null,null,null,null,null,null,null,null,null,null,null,null,null,null,{"$f":"AQ92+AQ95","v":0},null,null,null,null,null,null,null,null,{"$f":"AZ92+AZ95","v":0}]
[null,null,null,null,"3.8.1. Asistenţă tehnică din partea proiectantului",null,null,null,null,null,null,null,null,null,null,null,null,null,null,null,null,null,null,null,null,null,null,null,null,null,null,null,null,null,null,null,null,null,null,null,null,null,{"$f":"SUM(AQ93:AY94)","v":0},null,null,null,null,null,null,null,null,{"$f":"SUM(AZ93:BI94)","v":0}]
[null,null,null,null,"\n1.1. pe perioada de execuţie a lucrărilor"]
[null,null,null,null,"1.2. pentru participarea proiectantului la fazele incluse în programul de control al lucrărilor de execuţie, avizat de către Inspectoratul de Stat în Construcţii"]
[null,null,null,null,"3.8.2 Dirigenţie de şantier, asigurată de personal tehnic de specialitate, autorizat"]
["Total valoare fără TVA",null,null,null,null,null,null,null,null,null,null,null,null,null,null,null,null,null,null,null,null,null,null,null,null,null,null,null,null,null,null,null,null,null,null,null,null,null,null,null,null,null,{"$f":"AQ60+AQ64+AQ74+AQ75+AQ76+AQ83+AQ88+AQ91","v":0},null,null,null,null,null,null,null,null,{"$f":"AZ60+AZ64+AZ74+AZ75+AZ76+AZ83+AZ88+AZ91","v":0}]
["Valoare TVA (aferentă cheltuielilor eligibile şi neeligibile)"]
["TOTAL DEVIZ FINANCIAR 1 (inclusiv TVA)",null,null,null,null,null,null,null,null,null,null,null,null,null,null,null,null,null,null,null,null,null,null,null,null,null,null,null,null,null,null,null,null,null,null,null,null,null,null,null,null,null,{"$f":"SUM(AQ96:BI97)","v":0}]

{"sheet":"Anexa 2 HG_907","index":2,"n_rows":63,"n_cols":52,"rows_kept":63,"cut":false,"hidden":false,"merged":[[4,7,4,60],[5,0,5,60],[6,0,6,60],[7,0,7,60],[8,0,8,3],[8,4,8,41],[8,42,8,60],[0,7,0,41],[1,7,1,41],[1,42,2,60],[2,7,2,41],[3,7,3,41],[3,42,3,50],[3,51,3,60],[11,0,11,3],[11,4,11,41],[11,42,11,50],[11,51,11,60],[12,0,12,3],[12,4,12,41],[12,42,12,50],[12,51,12,60],[9,0,9,3],[9,4,9,41],[9,42,9,50],[9,51,9,60],[10,0,10,41],[10,42,10,50],[10,51,10,60],[15,0,15,3],[15,4,15,41],[15,42,15,50],[15,51,15,60],[16,0,16,3],[16,4,16,41],[16,42,16,50],[16,51,16,60],[13,0,13,3],[13,4,13,41],[13,42,13,50],[13,51,13,60],[14,0,14,3],[14,4,14,41],[14,42,14,50],[14,51,14,60],[17,0,17,60],[18,0,18,3],[18,4,18,41],[18,42,18,50],[18,51,18,60],[19,0,19,3],[19,4,19,41],[19,42,19,50],[19,51,19,60],[23,0,23,3],[23,4,23,41],[23,42,23,50],[23,51,23,60],[24,0,24,3],[24,4,24,41],[24,42,24,50],[24,51,24,60],[20,0,20,60],[21,0,21,3],[21,4,21,41],[21,42,21,50],[21,51,21,60],[22,0,22,3],[22,4,22,41],[22,42,22,50],[22,51,22,60],[27,0,27,41],[27,42,27,50],[27,51,27,60],[28,0,28,41],[28,42,28,60],[32,7,32,41],[25,0,25,3],[25,4,25,41],[25,42,25,50],[25,51,25,60],[26,0,26,41],[26,42,26,50],[26,51,26,60],[36,7,36,60],[37,0,37,60],[38,0,38,60],[39,0,39,60],[40,0,40,3],[40,4,40,41],[40,42,40,60],[33,7,33,41],[33,42,34,60],[34,7,34,41],[35,7,35,41],[35,42,35,50],[35,51,35,60],[43,0,43,3],[43,4,43,41],[43,42,43,50],[43,51,43,60],[44,0,44,3],[44,4,44,41],[44,42,44,50],[44,51,44,60],[41,0,41,3],[41,4,41,41],[41,42,41,50],[41,51,41,60],[42,0,42,41],[42,42,42,50],[42,51,42,60],[47,0,47,3],[47,4,47,41],[47,42,47,50],[47,51,47,60],[48,0,48,3],[48,4,48,41],[48,42,48,50],[48,51,48,60],[45,0,45,3],[45,4,45,41],[45,42,45,50],[45,51,45,60],[46,0,46,3],[46,4,46,41],[46,42,46,50],[46,51,46,60],[49,0,49,60],[50,0,50,3],[50,4,50,41],[50,42,50,50],[50,51,50,60],[51,0,51,3],[51,4,51,41],[51,42,51,50],[51,51,51,60],[55,0,55,3],[55,4,55,41],[55,42,55,50],[55,51,55,60],[56,0,56,3],[56,4,56,41],[56,42,56,50],[56,51,56,60],[52,0,52,60],[53,0,53,3],[53,4,53,41],[53,42,53,50],[53,51,53,60],[54,0,54,3],[54,4,54,41],[54,42,54,50],[54,51,54,60],[59,0,59,41],[59,42,59,50],[59,51,59,60],[60,0,60,41],[60,42,60,60],[57,0,57,3],[57,4,57,41],[57,42,57,50],[57,51,57,60],[58,0,58,41],[58,42,58,50],[58,51,58,60]]}
[null,null,null,null,null,null,null,"MINISTERUL AGRICULTURII ŞI DEZVOLTĂRII RURALE"]
[null,null,null,null,null,null,null,null,null,null,null,null,null,null,null,null,null,null,null,null,null,null,null,null,null,null,null,null,null,null,null,null,null,null,null,null,null,null,null,null,null,null,"Anexa A2 HG_907"]
[null,null,null,null,null,null,null,"AGENŢIA PENTRU FINANŢAREA INVESTIŢIILOR RURALE"]
[null,null,null,null,null,null,null,null,null,null,null,null,null,null,null,null,null,null,null,null,null,null,null,null,null,null,null,null,null,null,null,null,null,null,null,null,null,null,null,null,null,null,null,null,null,null,null,null,null,null,null,"Aprilie 2017"]
[null,null,null,null,null,null,null,"DEVIZUL OBIECTULUI *"]
["Nr.2"]
[]
[]
["Nr. crt.",null,null,null,"Denumire",null,null,null,null,null,null,null,null,null,null,null,null,null,null,null,null,null,null,null,null,null,null,null,null,null,null,null,null,null,null,null,null,null,null,null,null,null,"Valoarea pe categorii de lucrări, fară TVA - EURO"]
[null,null,null,null,"Cap. 4 - Cheltuieli pentru investiţia de bază",null,null,null,null,null,null,null,null,null,null,null,null,null,null,null,null,null,null,null,null,null,null,null,null,null,null,null,null,null,null,null,null,null,null,null,null,null,"Valoare eligibilă",null,null,null,null,null,null,null,null,"Valoare\nneeligibilă"]
["I - LUCRĂRI DE CONSTRUCŢII ŞI INSTALAŢII"]
["4.1",null,null,null,"Construcţii şi instalaţii"]
[null,null,null,null,"4.1.1 Terasamente, sistematizare pe verticală şi amenajări exterioare"]
[null,null,null,null,"4.1.2 Rezistenţă"]
[null,null,null,null,"4.1.3 Arhitectură"]
[null,null,null,null,"4.1.4 Instalaţii"]
[null,null,null,null,"TOTAL I ( fără TVA)",null,null,null,null,null,null,null,null,null,null,null,null,null,null,null,null,null,null,null,null,null,null,null,null,null,null,null,null,null,null,null,null,null,null,null,null,null,{"$f":"SUM(AQ12:AY16)","v":0},null,null,null,null,null,null,null,null,{"$f":"SUM(AZ12:BI16)","v":0}]
["II - MONTAJ"]
["4.2",null,null,null,"Montaj utilaje, echipamente tehnologice şi funcţionale"]
[null,null,null,null,"TOTAL II ( fără TVA)",null,null,null,null,null,null,null,null,null,null,null,null,null,null,null,null,null,null,null,null,null,null,null,null,null,null,null,null,null,null,null,null,null,null,null,null,null,{"$f":"SUM(AQ19)","v":0},null,null,null,null,null,null,null,null,{"$f":"SUM(AZ19)","v":0}]
["III - PROCURARE"]
["4.3",null,null,null,"Utilaje, echipamente tehnologice şi funcţionale care necesită montaj"]
["4.4",null,null,null,"Utilaje, echipamente tehnologice şi funcţionale care nu necesită montaj şi echipamente de transport"]
["4.5",null,null,null,"Dotări"]
["4.6",null,null,null,"Active necorporale"]
[null,null,null,null,"TOTAL III ( fără TVA)",null,null,null,null,null,null,null,null,null,null,null,null,null,null,null,null,null,null,null,null,null,null,null,null,null,null,null,null,null,null,null,null,null,null,null,null,null,{"$f":"SUM(AQ22:AY25)","v":0},null,null,null,null,null,null,null,null,{"$f":"SUM(AZ22:BI25)","v":0}]
["TOTAL ( TOTAL I + TOTAL II +TOTAL III) fără TVA",null,null,null,null,null,null,null,null,null,null,null,null,null,null,null,null,null,null,null,null,null,null,null,null,null,null,null,null,null,null,null,null,null,null,null,null,null,null,null,null,null,{"$f":"AQ26+AQ20+AQ17","v":0},null,null,null,null,null,null,null,null,{"$f":"AZ26+AZ20+AZ17","v":0}]
["TVA aferent cheltuielilor eligibile şi neeligibile"]
["TOTAL DEVIZ PE OBIECT (inclusiv TVA)",null,null,null,null,null,null,null,null,null,null,null,null,null,null,null,null,null,null,null,null,null,null,null,null,null,null,null,null,null,null,null,null,null,null,null,null,null,null,null,null,null,{"$f":"AQ27+AZ27+AQ28+AZ28","v":0}]
[]
[null,"*) Se înscrie denumirea obiectului de construcţie sau intervenţie"]
[]
[null,null,null,null,null,null,null,"MINISTERUL AGRICULTURII ŞI DEZVOLTĂRII RURALE"]
[null,null,null,null,null,null,null,null,null,null,null,null,null,null,null,null,null,null,null,null,null,null,null,null,null,null,null,null,null,null,null,null,null,null,null,null,null,null,null,null,null,null,"Anexa A2 HG_907"]
[null,null,null,null,null,null,null,"AGENŢIA PENTRU FINANŢAREA INVESTIŢIILOR RURALE"]
[null,null,null,null,null,null,null,null,null,null,null,null,null,null,null,null,null,null,null,null,null,null,null,null,null,null,null,null,null,null,null,null,null,null,null,null,null,null,null,null,null,null,null,null,null,null,null,null,null,null,null,"Aprilie 2017"]
[null,null,null,null,null,null,null,"DEVIZUL OBIECTULUI *"]
["Nr.3"]
[]
[]
["Nr. crt.",null,null,null,"Denumire",null,null,null,null,null,null,null,null,null,null,null,null,null,null,null,null,null,null,null,null,null,null,null,null,null,null,null,null,null,null,null,null,null,null,null,null,null,"Valoarea pe categorii de lucrări, fară TVA - EURO"]
[null,null,null,null,"Cap. 4 - Cheltuieli pentru investiţia de bază",null,null,null,null,null,null,null,null,null,null,null,null,null,null,null,null,null,null,null,null,null,null,null,null,null,null,null,null,null,null,null,null,null,null,null,null,null,"Valoare eligibilă",null,null,null,null,null,null,null,null,"Valoare\nneeligibilă"]
["I - LUCRĂRI DE CONSTRUCŢII ŞI INSTALAŢII"]
["4.1",null,null,null,"Construcţii şi instalaţii"]
[null,null,null,null,"4.1.1 Terasamente, sistematizare pe verticală şi amenajări exterioare"]
[null,null,null,null,"4.1.2 Rezistenţă"]
[null,null,null,null,"4.1.3 Arhitectură"]
[null,null,null,null,"4.1.4 Instalaţii"]
[null,null,null,null,"TOTAL I ( fără TVA)",null,null,null,null,null,null,null,null,null,null,null,null,null,null,null,null,null,null,null,null,null,null,null,null,null,null,null,null,null,null,null,null,null,null,null,null,null,{"$f":"SUM(AQ44:AY48)","v":0},null,null,null,null,null,null,null,null,{"$f":"SUM(AZ44:BI48)","v":0}]
["II - MONTAJ"]
["4.2",null,null,null,"Montaj utilaje, echipamente tehnologice şi funcţionale"]
[null,null,null,null,"TOTAL II ( fără TVA)",null,null,null,null,null,null,null,null,null,null,null,null,null,null,null,null,null,null,null,null,null,null,null,null,null,null,null,null,null,null,null,null,null,null,null,null,null,{"$f":"SUM(AQ51)","v":0},null,null,null,null,null,null,null,null,{"$f":"SUM(AZ51)","v":0}]
["III - PROCURARE"]
["4.3",null,null,null,"Utilaje, echipamente tehnologice şi funcţionale care necesită montaj"]
["4.4",null,null,null,"Utilaje, echipamente tehnologice şi funcţionale care nu necesită montaj şi echipamente de transport"]
["4.5",null,null,null,"Dotări"]
["4.6",null,null,null,"Active necorporale"]
[null,null,null,null,"TOTAL III ( fără TVA)",null,null,null,null,null,null,null,null,null,null,null,null,null,null,null,null,null,null,null,null,null,null,null,null,null,null,null,null,null,null,null,null,null,null,null,null,null,{"$f":"SUM(AQ54:AY57)","v":0},null,null,null,null,null,null,null,null,{"$f":"SUM(AZ54:BI57)","v":0}]
["TOTAL ( TOTAL I + TOTAL II +TOTAL III) fără TVA",null,null,null,null,null,null,null,null,null,null,null,null,null,null,null,null,null,null,null,null,null,null,null,null,null,null,null,null,null,null,null,null,null,null,null,null,null,null,null,null,null,{"$f":"AQ58+AQ52+AQ49","v":0},null,null,null,null,null,null,null,null,{"$f":"AZ58+AZ52+AZ49","v":0}]
["TVA aferent cheltuielilor eligibile şi neeligibile"]
["TOTAL DEVIZ PE OBIECT (inclusiv TVA)",null,null,null,null,null,null,null,null,null,null,null,null,null,null,null,null,null,null,null,null,null,null,null,null,null,null,null,null,null,null,null,null,null,null,null,null,null,null,null,null,null,{"$f":"AQ59+AZ59+AQ60+AZ60","v":0}]
[]
[null,"*) Se înscrie denumirea obiectului de construcţie sau intervenţie"]

{"sheet":"Anexa 3 HG_907","index":3,"n_rows":82,"n_cols":52,"rows_kept":82,"cut":false,"hidden":false,"merged":[[1,7,1,41],[1,42,2,60],[2,7,2,41],[3,7,3,41],[3,42,3,50],[3,51,3,60],[4,7,4,60],[5,0,5,60],[6,0,6,60],[7,0,7,60],[8,0,8,60],[9,0,9,3],[9,4,9,41],[9,42,9,50],[9,51,9,60],[12,0,12,3],[12,4,12,41],[12,42,12,50],[12,51,12,60],[13,0,13,3],[13,4,13,41],[13,42,13,50],[13,51,13,60],[10,0,10,3],[10,4,10,41],[10,42,10,50],[10,51,10,60],[11,0,11,3],[11,4,11,41],[11,42,11,50],[11,51,11,60],[16,0,16,3],[16,4,16,41],[16,42,16,50],[16,51,16,60],[17,0,17,3],[17,4,17,41],[17,42,17,50],[17,51,17,60],[14,0,14,3],[14,4,14,41],[14,42,14,50],[14,51,14,60],[15,0,15,3],[15,4,15,41],[15,42,15,50],[15,51,15,60],[20,0,20,3],[20,4,20,41],[20,42,20,50],[20,51,20,60],[21,0,21,41],[21,42,21,60],[18,0,18,3],[18,4,18,41],[18,42,18,50],[18,51,18,60],[19,0,19,3],[19,4,19,41],[19,42,19,50],[19,51,19,60],[22,0,22,3],[22,4,22,41],[22,42,22,50],[22,51,22,60],[23,0,23,60],[24,0,24,3],[24,4,24,41],[24,42,24,50],[24,51,24,60],[25,0,25,60],[26,0,26,3],[26,4,26,41],[26,42,26,50],[26,51,26,60],[27,0,27,3],[27,4,27,41],[27,42,27,50],[27,51,27,60],[30,0,30,3],[30,4,30,41],[30,42,30,50],[30,51,30,60],[31,0,31,3],[31,4,31,41],[31,42,31,50],[31,51,31,60],[28,0,28,3],[28,4,28,41],[28,42,28,50],[28,51,28,60],[29,0,29,3],[29,4,29,41],[29,42,29,50],[29,51,29,60],[34,0,34,3],[34,4,34,41],[34,42,34,50],[34,51,34,60],[35,0,35,3],[35,4,35,41],[35,42,35,50],[35,51,35,60],[32,0,32,3],[32,4,32,41],[32,42,32,50],[32,51,32,60],[33,0,33,3],[33,4,33,41],[33,42,33,50],[33,51,33,60],[38,0,38,3],[38,4,38,41],[38,42,38,50],[38,51,38,60],[39,0,39,3],[39,4,39,41],[39,42,39,60],[36,0,36,3],[36,4,36,41],[36,42,36,50],[36,51,36,60],[37,0,37,3],[37,4,37,41],[37,42,37,50],[37,51,37,60],[49,0,49,60],[50,0,50,60],[51,0,51,3],[51,4,51,41],[51,42,51,50],[51,51,51,60],[82,0,82,44],[43,7,43,41],[43,42,44,60],[44,7,44,41],[45,7,45,41],[45,42,45,50],[45,51,45,60],[46,7,46,60],[47,0,47,60],[48,0,48,60],[54,0,54,3],[54,4,54,41],[54,42,54,50],[54,51,54,60],[55,0,55,3],[55,4,55,41],[55,42,55,50],[55,51,55,60],[52,0,52,3],[52,4,52,41],[52,42,52,50],[52,51,52,60],[53,0,53,3],[53,4,53,41],[53,42,53,50],[53,51,53,60],[58,0,58,3],[58,4,58,41],[58,42,58,50],[58,51,58,60],[59,0,59,3],[59,4,59,41],[59,42,59,50],[59,51,59,60],[56,0,56,3],[56,4,56,41],[56,42,56,50],[56,51,56,60],[57,0,57,3],[57,4,57,41],[57,42,57,50],[57,51,57,60],[62,0,62,3],[62,4,62,41],[62,42,62,50],[62,51,62,60],[63,0,63,41],[63,42,63,60],[60,0,60,3],[60,4,60,41],[60,42,60,50],[60,51,60,60],[61,0,61,3],[61,4,61,41],[61,42,61,50],[61,51,61,60],[64,0,64,3],[64,4,64,41],[64,42,64,50],[64,51,64,60],[65,0,65,60],[66,0,66,3],[66,4,66,41],[66,42,66,50],[66,51,66,60],[67,0,67,60],[68,0,68,3],[68,4,68,41],[68,42,68,50],[68,51,68,60],[69,0,69,3],[69,4,69,41],[69,42,69,50],[69,51,69,60],[72,0,72,3],[72,4,72,41],[72,42,72,50],[72,51,72,60],[73,0,73,3],[73,4,73,41],[73,42,73,50],[73,51,73,60],[70,0,70,3],[70,4,70,41],[70,42,70,50],[70,51,70,60],[71,0,71,3],[71,4,71,41],[71,42,71,50],[71,51,71,60],[76,0,76,3],[76,4,76,41],[76,42,76,50],[76,51,76,60],[77,0,77,3],[77,4,77,41],[77,42,77,50],[77,51,77,60],[74,0,74,3],[74,4,74,41],[74,42,74,50],[74,51,74,60],[75,0,75,3],[75,4,75,41],[75,42,75,50],[75,51,75,60],[80,0,80,3],[80,4,80,41],[80,42,80,50],[80,51,80,60],[81,0,81,3],[81,4,81,41],[81,42,81,60],[78,0,78,3],[78,4,78,41],[78,42,78,50],[78,51,78,60],[79,0,79,3],[79,4,79,41],[79,42,79,50],[79,51,79,60]]}
[]
[null,null,null,null,null,null,null,"MINISTERUL AGRICULTURII ŞI DEZVOLTĂRII RURALE",null,null,null,null,null,null,null,null,null,null,null,null,null,null,null,null,null,null,null,null,null,null,null,null,null,null,null,null,null,null,null,null,null,null,"Anexa A3 HG_907"]
[]
[null,null,null,null,null,null,null,"AGENŢIA PENTRU FINANŢAREA INVESTIŢIILOR RURALE",null,null,null,null,null,null,null,null,null,null,null,null,null,null,null,null,null,null,null,null,null,null,null,null,null,null,null,null,null,null,null,null,null,null,null,null,null,null,null,null,null,null,null,"Aprilie 2017"]
[]
["Nr.2"]
[]
[]
["Deviz capitolul 2- Cheltuieli pentru asigurarea utilităţilor necesare obiectivului - EURO"]
["Nr. crt.",null,null,null,"Specificaţie",null,null,null,null,null,null,null,null,null,null,null,null,null,null,null,null,null,null,null,null,null,null,null,null,null,null,null,null,null,null,null,null,null,null,null,null,null,"Valoare eligibilă",null,null,null,null,null,null,null,null,"Valoare\nneeligibilă"]
[1,null,null,null,"Alimentare cu apă"]
[2,null,null,null,"Canalizare"]
[3,null,null,null,"Alimentare cu gaze naturale"]
[4,null,null,null,"Alimentare cu agent termic"]
[5,null,null,null,"Alimentare cu energie electrică"]
[6,null,null,null,"Telecomunicaţii (telefonie, radio-tv,etc)"]
[7,null,null,null,"Drumuri de acces"]
[8,null,null,null,"Căi ferate industriale"]
[9,null,null,null,"Alte utilitati"]
[null,null,null,null,"TOTAL DEVIZ CAPITOLUL 2",null,null,null,null,null,null,null,null,null,null,null,null,null,null,null,null,null,null,null,null,null,null,null,null,null,null,null,null,null,null,null,null,null,null,null,null,null,{"$f":"SUM(AQ11:AY19)","v":0},null,null,null,null,null,null,null,null,{"$f":"SUM(AZ11:BI19)","v":0}]
[null,null,null,null,"Valoare TVA aferentă cheltuielilor eligibile şi neeligibile"]
["TOTAL DEVIZ CAPITOLUL 2 (inclusiv TVA)",null,null,null,null,null,null,null,null,null,null,null,null,null,null,null,null,null,null,null,null,null,null,null,null,null,null,null,null,null,null,null,null,null,null,null,null,null,null,null,null,null,{"$f":"AQ20+AZ20+AQ21+AZ21","v":0}]
[]
[" Deviz capitolul 5 - Alte cheltuieli - EURO"]
["Nr. crt.",null,null,null,"Specificaţie",null,null,null,null,null,null,null,null,null,null,null,null,null,null,null,null,null,null,null,null,null,null,null,null,null,null,null,null,null,null,null,null,null,null,null,null,null,"Valoare eligibilă",null,null,null,null,null,null,null,null,"Valoare\nneeligibilă"]
[]
["5.1 ",null,null,null,"Organizare de şantier",null,null,null,null,null,null,null,null,null,null,null,null,null,null,null,null,null,null,null,null,null,null,null,null,null,null,null,null,null,null,null,null,null,null,null,null,null,{"$f":"SUM(AQ28:AY29)","v":0},null,null,null,null,null,null,null,null,{"$f":"SUM(AZ28:BI29)","v":0}]
[null,null,null,null,"5.1.1 Lucrări de construcţii şi instalaţii aferente organizării de şantier"]
[null,null,null,null,"5.1.2 Cheltuieli conexe organizării de şantier"]
["5.2",null,null,null,"Comisioane, cote, taxe, costul creditului",null,null,null,null,null,null,null,null,null,null,null,null,null,null,null,null,null,null,null,null,null,null,null,null,null,null,null,null,null,null,null,null,null,null,null,null,null,{"$f":"SUM(AQ32:AY35)","v":0},null,null,null,null,null,null,null,null,{"$f":"SUM(AZ31:BI35)","v":0}]
[null,null,null,null,"5.2.1. Comisioanele şi dobânzile aferente creditului băncii finanţatoare"]
[null,null,null,null,"5.2.2. Cota aferentă ISC pentru controlul calităţii lucrărilor de construcţii"]
[null,null,null,null,"5.2.3. Cota aferentă ISC pentru controlul statului în amenajarea teritoriului, urbanism şi pentru autorizarea lucrărilor de construcţii"]
[null,null,null,null,"5.2.4. Cota aferentă Casei Sociale a Constructorilor - CSC"]
[null,null,null,null,"5.2.5. Taxe pentru acorduri, avize conforme şi autorizaţia de construire/ desfiinţare"]
["5.3",null,null,null," Cheltuieli diverse si neprevazute"]
["5.4",null,null,null," Cheltuieli pentru informare şi publicitate"]
[null,null,null,null,"TOTAL DEVIZ CAPITOLUL 5",null,null,null,null,null,null,null,null,null,null,null,null,null,null,null,null,null,null,null,null,null,null,null,null,null,null,null,null,null,null,null,null,null,null,null,null,null,{"$f":"AQ27+AQ30+AQ36","v":0},null,null,null,null,null,null,null,null,{"$f":"AZ27+AZ30+AZ36+AZ37","v":0}]
[null,null,null,null,"VALOARE TVA aferentă cheltuielilor eligibile şi neeligibile"]
[null,null,null,null,"TOTAL DEVIZ CAPITOLUL 5 ( inclusiv TVA)",null,null,null,null,null,null,null,null,null,null,null,null,null,null,null,null,null,null,null,null,null,null,null,null,null,null,null,null,null,null,null,null,null,null,null,null,null,{"$f":"AQ38+AZ38+AQ39+AZ39","v":0}]
[]
[]
[]
[null,null,null,null,null,null,null,"MINISTERUL AGRICULTURII ŞI DEZVOLTĂRII RURALE",null,null,null,null,null,null,null,null,null,null,null,null,null,null,null,null,null,null,null,null,null,null,null,null,null,null,null,null,null,null,null,null,null,null,"Anexa A3 HG_907"]
[]
[null,null,null,null,null,null,null,"AGENŢIA PENTRU FINANŢAREA INVESTIŢIILOR RURALE",null,null,null,null,null,null,null,null,null,null,null,null,null,null,null,null,null,null,null,null,null,null,null,null,null,null,null,null,null,null,null,null,null,null,null,null,null,null,null,null,null,null,null,"Aprilie 2017"]
[]
["Nr.3"]
[]
[]
["Deviz capitolul 2- Cheltuieli pentru asigurarea utilităţilor necesare obiectivului - EURO"]
["Nr. crt.",null,null,null,"Specificaţie",null,null,null,null,null,null,null,null,null,null,null,null,null,null,null,null,null,null,null,null,null,null,null,null,null,null,null,null,null,null,null,null,null,null,null,null,null,"Valoare eligibilă",null,null,null,null,null,null,null,null,"Valoare\nneeligibilă"]
[1,null,null,null,"Alimentare cu apă"]
[2,null,null,null,"Canalizare"]
[3,null,null,null,"Alimentare cu gaze naturale"]
[4,null,null,null,"Alimentare cu agent termic"]
[5,null,null,null,"Alimentare cu energie electrică"]
[6,null,null,null,"Telecomunicaţii (telefonie, radio-tv,etc)"]
[7,null,null,null,"Drumuri de acces"]
[8,null,null,null,"Căi ferate industriale"]
[9,null,null,null,"Alte utilitati"]
[null,null,null,null,"TOTAL DEVIZ CAPITOLUL 2",null,null,null,null,null,null,null,null,null,null,null,null,null,null,null,null,null,null,null,null,null,null,null,null,null,null,null,null,null,null,null,null,null,null,null,null,null,{"$f":"SUM(AQ53:AY61)","v":0},null,null,null,null,null,null,null,null,{"$f":"SUM(AZ53:BI61)","v":0}]
[null,null,null,null,"Valoare TVA aferentă cheltuielilor eligibile şi neeligibile"]
["TOTAL DEVIZ CAPITOLUL 2 (inclusiv TVA)",null,null,null,null,null,null,null,null,null,null,null,null,null,null,null,null,null,null,null,null,null,null,null,null,null,null,null,null,null,null,null,null,null,null,null,null,null,null,null,null,null,{"$f":"AQ62+AZ62+AQ63+AZ63","v":0}]
[]
[" Deviz capitolul 5 - Alte cheltuieli - EURO"]
["Nr. crt.",null,null,null,"Specificaţie",null,null,null,null,null,null,null,null,null,null,null,null,null,null,null,null,null,null,null,null,null,null,null,null,null,null,null,null,null,null,null,null,null,null,null,null,null,"Valoare eligibilă",null,null,null,null,null,null,null,null,"Valoare\nneeligibilă"]
[]
["5.1 ",null,null,null,"Organizare de şantier",null,null,null,null,null,null,null,null,null,null,null,null,null,null,null,null,null,null,null,null,null,null,null,null,null,null,null,null,null,null,null,null,null,null,null,null,null,{"$f":"SUM(AQ70:AY71)","v":0},null,null,null,null,null,null,null,null,{"$f":"SUM(AZ70:BI71)","v":0}]
[null,null,null,null,"5.1.1 Lucrări de construcţii şi instalaţii aferente organizării de şantier"]
[null,null,null,null,"5.1.2 Cheltuieli conexe organizării de şantier"]
["5.2",null,null,null,"Comisioane, cote, taxe, costul creditului",null,null,null,null,null,null,null,null,null,null,null,null,null,null,null,null,null,null,null,null,null,null,null,null,null,null,null,null,null,null,null,null,null,null,null,null,null,{"$f":"SUM(AQ74:AY77)","v":0},null,null,null,null,null,null,null,null,{"$f":"SUM(AZ73:BI77)","v":0}]
[null,null,null,null,"5.2.1. Comisioanele şi dobânzile aferente creditului băncii finanţatoare"]
[null,null,null,null,"5.2.2. Cota aferentă ISC pentru controlul calităţii lucrărilor de construcţii"]
[null,null,null,null,"5.2.3. Cota aferentă ISC pentru controlul statului în amenajarea teritoriului, urbanism şi pentru autorizarea lucrărilor de construcţii"]
[null,null,null,null,"5.2.4. Cota aferentă Casei Sociale a Constructorilor - CSC"]
[null,null,null,null,"5.2.5. Taxe pentru acorduri, avize conforme şi autorizaţia de construire/ desfiinţare"]
["5.3",null,null,null," Cheltuieli diverse si neprevazute"]
["5.4",null,null,null," Cheltuieli pentru informare şi publicitate"]
[null,null,null,null,"TOTAL DEVIZ CAPITOLUL 5",null,null,null,null,null,null,null,null,null,null,null,null,null,null,null,null,null,null,null,null,null,null,null,null,null,null,null,null,null,null,null,null,null,null,null,null,null,{"$f":"AQ69+AQ72+AQ78","v":0},null,null,null,null,null,null,null,null,{"$f":"AZ69+AZ72+AZ78+AZ79","v":0}]
[null,null,null,null,"VALOARE TVA aferentă cheltuielilor eligibile şi neeligibile"]
[null,null,null,null,"TOTAL DEVIZ CAPITOLUL 5 ( inclusiv TVA)",null,null,null,null,null,null,null,null,null,null,null,null,null,null,null,null,null,null,null,null,null,null,null,null,null,null,null,null,null,null,null,null,null,null,null,null,null,{"$f":"AQ80+AZ80+AQ81+AZ81","v":0}]